Workbook

Sheet Info

Sheet Trial (hidden)

Sheet Instructions (hidden)
A1: Excel Skills | Loan Calculation & Analysis Template
A2: Instructions
A3: www.excel-skills.com
A5: This template enables users to calculate, analyze and forecast the monthly loan balances and interest charges relating to any loan that is subject to monthly repayment and daily interest calculations. The template was specifically designed for home loan calculations but can be used for any loan where the principles of monthly repayment and daily interest are applied.
A7: The main purpose of this template is to calculate loan balances and interest amounts based on the same calculation methodology that is applied by most financial institutions. This template can therefore be used to recalculate the amounts on the loan account statements that are received from financial institutions. The template accommodates multiple interest rate changes (variable interest rates), increased instalments and ad hoc loan repayments. In addition, the template also includes comprehensive forecast features which provide users with the functionality to analyze any loan over the entire loan period.
A9: Note: Refer to our Loan Statement template for a simplified version of this template. The Loan Statement template only includes the statement and summary features of this template and is therefore a lot simpler to understand and use. If you are only interested in loan amortization calculations, we recommend that you download our free Loan Amortization template.
A11: Worksheet Summary
A13: The main purpose of each worksheet is as follows:
A15: TransCode - includes the default transaction types that need to be selected when entering loan account transactions. Additional transaction types can also be added to the default list of transactions codes.
A16: Statement - all loan account transactions should be recorded on this sheet. All the interest and loan account balance calculations in this template are based on the transactions that are recorded on this sheet. Note that the Statement sheet includes 12 columns but only four of these columns require user input (the columns with the yellow column headings).
A17: Summary - includes a monthly summary of loan account transactions that is calculated from the Statement sheet. No user input is required on this sheet.
A18: Review - includes a comprehensive analysis of loan account balances and interest charges over the entire loan period. Loan account transaction totals are compared to an initial loan amortization calculation and a forecast of the remaining loan repayment period is added to the transaction totals and then also compared to the initial loan amortization schedule. The loan repayment forecast is based on a standard amortization calculation that is applied to the outstanding loan balance on a user defined review date as well as a loan amortization forecast that accommodates ad hoc loan repayments. This sheet can be used to calculate the outstanding loan balance and cumulative interest charges at the end of any month that falls within the loan period. User input is limited to selecting the appropriate loan review date.
A19: InitialAmort - includes an initial loan amortization calculation that is based on the principle loan amount, interest rate, loan period and repayment commencement date that is specified in cells D3 to D6. All the calculations on this sheet are automated.
A20: ForecastPmt - all forecasted ad hoc loan repayments should be recorded on this sheet. The monthly periods in the first column are based on the monthly periods on the Summary sheet. The ad hoc loan repayments that are recorded on this sheet are included on the ForecastAmort sheet.
A21: ForecastAmort - includes two amortization tables relating to the remaining loan repayment period. The first table includes a column for ad hoc loan repayments (based on the amounts entered on the ForecastPmt sheet) and the second table is based on standard loan amortization principles. Both tables are compiled based on the user defined loan review date selected on the Review sheet.
A22: CalcAmort - includes a loan amortization table calculator. This sheet is not linked to any of the other sheets in the template and has been included to enable users to compile their own loan amortization calculations.
A24: Note: The template includes a lot of complex formulas and has been designed within a specific worksheet structure. We therefore do not recommend adding additional rows or columns within the existing worksheet framework because it may result in errors or inaccurate calculations being encountered. If you therefore want to add your own calculations to the template, we recommend inserting a new worksheet for this purpose.
A26: Template Set-up
A28: Aside from recording loan account transactions, the template does not require a lot of set-up. We recommend that you start by entering the initial loan terms as per the loan agreement on the InitialAmort sheet. This includes the loan principle amount, interest rate, loan period and repayment commencement date. These input cells have no effect on your loan statement calculations and are only used to specify the required variables for calculating the initial amortization table on the InitialAmort sheet. The calculation results are included on the Review sheet in order to compare actual loan account movements to the initial loan amortization table.
A30: The next step is to review the transaction types on the TransCode sheet. The default template includes 7 transaction types of which the first 5 should be left unchanged. Each of these transaction types has a specific purpose and if you therefore change the type of transaction that is associated with the default transaction code, you may encounter inconsistencies in the template calculations.
A32: The Admin Fee and Insurance Premium transaction codes have been added as separate transaction types because these costs are frequently included as separate line items on home loan account statements and usually form part of the monthly loan repayment amounts. If you do not require these items, you can delete them or replace them with other costs that are included on your loan account statement. Note that both transaction type number 6 and 7 are reported separately on the Statement and Summary sheets and if you change the default transaction type descriptions, the new descriptions will be included in column C on the Statement sheet but you have to enter the new descriptions in columns G and H on the Summary sheet.
A34: All the transaction types on the TransCode sheet are included in list boxes in column B on the Statement sheet. Additional transaction types that are added to the default list of transaction types are also available for selection from these list boxes. You will therefore be able to enter the transactions relating to these transaction types on the Statement sheet but note that all transaction types with transaction codes greater than or equal to 8 are grouped together in one column on the Summary sheet (column I).
A36: Note: The contents on the TransCode sheet have been included in an Excel table. A new transaction code can therefore be created by simply entering the new code in the first empty cell below the table in column A. The table will then be extended automatically to include the new transaction type.
A38: Loan Account Transactions
A40: All loan account transactions need to be recorded on the Statement sheet. This sheet includes 12 columns but only four of these columns require user input (columns with a yellow column heading). The contents of this sheet have been included in an Excel table which means that the columns with light blue column headings (containing formulas) will automatically be copied for all new transactions that are recorded.
A42: When you therefore record any transaction, you will need to enter a date (in column A), select a transaction type from the list box in column B, enter a new interest rate (only if an interest rate change transaction is being recorded, otherwise enter 0%), enter a transaction amount in column E and the formulas in all the other columns will automatically be copied from one of the existing rows in the Excel table.
A44: Note: New transactions can be recorded by simply entering a transaction date in the first blank cell below the Excel table in column A. The table will then automatically be extended to include the new transaction and all the formulas in the columns with a light blue column heading will automatically be copied into the new transaction row.
A46: The following important guidelines should be followed when recording transactions on the Statement sheet:
A47: The first transaction that is recorded on this sheet should always be an interest rate change transaction (transaction type 5) and this transaction should be recorded on the same date as the first transaction on your loan account statement. The interest rate that is applicable to the loan should be entered in column D and the transaction amount in column E should be nil (the transaction amount for all interest rate change transactions should always be nil). This entry establishes the interest rate that should be used to calculate interest from the beginning of the loan period.
A48: All the transactions that are recorded on the Statement sheet should form part of a continuous cell range. There should therefore be no empty rows between transactions, otherwise the loan account balances and therefore also the interest calculations will be inaccurate.
A49: All transactions should be recorded or sorted in an ascending date sequence (oldest transactions first). If you enter a transaction that is out of sequence, the transaction date will be highlighted in red. This error can be corrected by simply sorting all the transactions on the Statement sheet in an ascending order by the date in the first column. By sorting the transactions in the correct order, you will ensure that the date sequence is rectified and that all interest calculations are accurate.
A50: The monthly interest on the outstanding loan account should be capitalized on the last day of each month. To accomplish this, record an interest capitalization transaction (select transaction code 4) for the last day of each month. The transaction amount in column E should be nil because the monthly interest capitalization calculation is performed automatically through the formula that has been entered in column F. This interest calculation only applies to transaction type 4 - if you therefore specify the incorrect transaction type, no interest will be capitalized to the loan at the end of the appropriate month. Also note that the date that is entered should be the last day of the month - if you enter any other date, the interest calculation will not be accurate. The transaction date in column A will be highlighted in orange if the incorrect interest capitalization date is specified.
A51: It is imperative that you don't replace any of the formulas in the columns with light blue column headings with alternative values because it will result in inaccurate calculations. We recommend that you save the template under a default file name after downloading it and save each loan calculation under a different file name. You will then be able to revert back to the original template if you delete any of the formulas by accident.
A52: All transaction amounts except for loan repayments and ad hoc repayments should be entered as positive values. Loan repayments and ad hoc repayments should be entered as negative values - if you enter positive values for any repayment type transactions, the transaction amounts will be highlighted in orange.
A54: The following section covers the default transaction types that should be recorded on the Statement sheet:
A56: Loan Advances
A58: Loan advances are amounts that are received from the financial institution who grants the loan. You can record as many loan advances as required by simply entering the appropriate transaction date, selecting transaction type 1 and entering the appropriate loan advance amount in the Transaction Amount column (column E). Loan advances should be entered as positive amounts.
A60: Loan Repayments
A62: For the purpose of compiling an accurate loan forecast, we have assigned scheduled loan repayments and ad hoc loan repayments to different transaction types. Scheduled loan repayments are determined by the terms in a loan agreement, while ad hoc loan repayments are effected at the borrower's own discretion. It is important to allocate repayments to the correct repayment type because the scheduled loan repayments that are recorded on the Statement sheet form part of the calculation of the remaining loan repayments which is important for forecasting purposes.
A64: Note: The number of remaining loan repayments is used to compile a loan forecast amortization table. If you therefore allocate ad hoc repayments to the loan repayment transaction type (transaction type 2), the forecast will not be accurate. Also note that a scheduled loan repayment should be entered for all monthly periods where a loan repayment is due, regardless of whether a loan repayment has been effected or not. In some instances (for example building loans), the loan period may commence before scheduled loan repayments are deducted on the loan account. When scheduled loan repayments are then deducted at a later stage, the repayment amount is calculated over a shorter loan period. In order to facilitate this calculation, you therefore need to include the correct remaining loan repayments in the calculation - this can be achieved by recording all scheduled loan repayments on the Statement sheet and simply entering a nil amount if a loan repayment is due but has not been effected during any particular repayment period.
A66: Scheduled loan repayments need to be recorded on the Statement sheet by entering the appropriate transaction date, selecting transaction type 2 and entering the appropriate loan repayment amount as a negative value in the Transaction Amount column. Note that if you enter a positive loan repayment amount, the amount will be highlighted in orange in the Transaction Amount column until it is rectified.
A68: Ad Hoc Repayments
A70: The template accommodates an unlimited number of ad hoc loan repayments. It also makes no difference whether the ad hoc repayment is an increased instalment or a lump sum repayment.
A72: Ad hoc repayments can be recorded on the Statement sheet by simply entering the appropriate transaction date, selecting transaction type 3 and entering a negative amount in the Transaction Amount column. If you enter a positive ad hoc loan repayment amount, the amount will be highlighted in orange until the error is rectified.
A74: Interest Capitalization
A76: The interest calculations in this template are based on the daily loan account balances. Transactions are included in the daily loan account balance as if the transactions occurred at the beginning of the day. For example, if a loan repayment is dated on the 2nd of January, the repayment is deducted from the loan balance of the previous day and included in the interest calculation from the 2nd of January. For month end interest capitalization purposes, the loan repayment on the 2nd will therefore be included in the monthly interest calculation for a period of 30 days.
A78: All interest calculations are automatically performed based on the transactions recorded on the Statement sheet. It is imperative that all transactions are recorded in the correct date sequence (ascending date order), otherwise the interest calculations may not be accurate. All interest calculations are performed based on the balances calculated in the Transaction Closing Balance column by applying the appropriate interest rate and the number of days that the balance is in effect to this amount.
A80: The calculated interest is capitalized to the loan account balance when you enter an Interest Capitalization transaction for the last day of the appropriate calendar month. Note that if you don't enter this transaction, the interest calculated for the particular month will not be added to the loan account balance and your loan account statement will not be accurate! It is therefore imperative that you add an Interest Capitalization transaction to the Statement sheet for every month that forms part of the loan period.
A82: Also note that this transaction has to be dated on the last day of the month - if you use any other date, the interest calculation will not be accurate. We have implemented conditional formatting in column A to highlight the interest capitalization transactions that are not dated on a month end date in orange. When you change the transaction date to the appropriate month end date, the formatting is automatically removed.
A84: Interest capitalization transactions can be recorded by entering the appropriate month end date, selecting transaction type 4 and entering a nil amount in the Transaction Amount column. The calculated interest is reflected in column F and is automatically added to the outstanding loan balance in column G.
A86: Interest Rate Changes
A88: This template accommodates an unlimited number of interest rate changes. An interest rate change can be recorded on the Statement sheet by entering the effective date of the interest rate change in column A, selecting transaction type 5, entering the new interest rate in column D and entering a nil amount in the Transaction Amount column. You'll notice that the interest rate in column H (used in all interest calculations) will change to the new interest rate that has been recorded. Interest on all subsequent transactions will be calculated based on the new interest rate (until the next interest rate change transaction is recorded).
A90: The first transaction that should be recorded on the Statement sheet is an interest rate change transaction. This transaction establishes the interest rate that should be used to calculate interest from the beginning of the loan period. If you omit this transaction, the interest rate that will be used to calculate interest on the initial loan balance will be nil and no interest will therefore be calculated and capitalized to the initial loan account balance until an interest rate is defined.
A92: Interest rate changes can only be recorded by using transaction type 5 - if you enter a new interest rate in column D and select any other transaction type, the interest rate change will not have any effect on interest calculations.
A94: Other Loan Costs
A96: As we've mentioned before, other loan costs (like admin fees and insurance) can be recorded by using transaction codes 6 and 7 or adding the appropriate transaction codes to the TransCode sheet and selecting the appropriate transaction type from the list box in column B on the Statement sheet. These transactions usually relate to costs that are charged to the loan account and should therefore be entered as positive values in the Transaction Amount column. Financial institutions typically include these costs in scheduled loan repayments and the costs are therefore deducted from the loan account balance when you record scheduled loan repayments (transaction type 2) on the Statement sheet.
A98: Loan Account Statement
A100: All loan transactions should be entered on the Statement sheet in accordance with the guidance provided in the previous section. After reading through the previous section, you should therefore be able to record all the appropriate transactions on the Statement sheet and we'll now provide guidance on the calculated columns (columns with a light blue column heading) on this sheet.
A102: The transaction description in column C has been included on the Statement sheet so that it is easy to identify the transaction types that are selected from the list boxes in column B. The list boxes only include the transaction type numbers - we've therefore included the description in column C to enable users to review the transaction type that has been selected.
A104: The calculated interest in column F represents the amount of interest that is capitalized to the loan account at the end of every calendar month. All scheduled loan repayments consist of an interest and capital portion - this column includes the interest portion that is calculated based on the daily loan account balances during the particular monthly period. This column should therefore only contain one calculated interest amount per calendar month.
A106: The monthly interest amount that should be capitalized is the total of all the accrued interest amounts in column L for the particular month. The accrued interest is calculated from the interest rate in column H, the interest days in column J and the transaction closing loan balance in column K.
A108: The outstanding loan balance on each transaction date is calculated in column G. This amount represents the capital balance that is still outstanding on the loan.
A110: The monthly capital portion of the loan repayments can be calculated by adding the interest and other costs together and deducting the sum of the scheduled loan repayments and the ad hoc loan repayments from this amount. Note that it may therefore be easier to calculate this amount from the totals on the Summary sheet.
A112: Loan Account Summary
A114: The Summary sheet includes a complete breakdown of the movements on the loan account for all monthly periods. All the totals on this sheet are calculated from the transactions that are entered on the Statement sheet. No user input is required on this sheet - users are only required to extend the Excel table for the appropriate number of new rows in order to add the required number of monthly periods to the summary.
A116: Note: The contents of this sheet have been included in an Excel table. The table can be extended by clicking the arrow in the bottom right corner of the table and dragging the table border downwards for the required number of rows. All the formulas that are included in the table will be copied automatically.
A118: The first monthly period on the Summary sheet is determined by the transaction date of the first transaction on the Statement sheet. The transaction date in row 4 on the Statement sheet therefore determines which monthly period is displayed in the first row of the Summary sheet. All subsequent monthly periods on the Summary sheet are calculated based on the first monthly period.
A120: The Loan Advance column is calculated based on all the transactions with a transaction type of 1 on the Statement sheet. Scheduled loan repayments (transaction type 2), ad hoc repayments (transaction type 3), interest capitalized (transaction type 4), admin fees (transaction type 6), insurance premiums (transaction type 7) and other costs (all transaction types greater than 7 that have been added to the TransCode sheet) are also calculated based on the transaction types of the transactions that are recorded on the Statement sheet.
A122: The number of repayments in column K is calculated by counting the number of scheduled loan repayments (transaction type 2) on the Statement sheet. This number should agree to the loan period that has elapsed at any given point in time - if the number is not correct, you should add the appropriate scheduled loan repayment on the Statement sheet (use a nil amount if no actual repayment has been effected). The number of repayments also forms part of the remaining loan period calculation for forecasting purposes (refer to the Loan Review section).
A124: As we've mentioned before, an interest capitalization transaction should be recorded for the month end date of every monthly period that forms part of the loan period in order to calculate interest accurately. If this transaction has been omitted for any monthly period, the number of repayments calculation in column K on the Summary sheet will contain an error ("month end?") that will be highlighted in orange. This error can be corrected by simply entering an interest capitalization transaction (transaction type 4) for the particular month on the Statement sheet.
A126: Note: The number of repayments on the Summary sheet should increase in increments of 1 for every subsequent monthly period. If this is not the case (two monthly periods reflect the same number), it means that a scheduled loan repayment (transaction type 2) has not been entered for the particular month (the second month with the same number of repayments). This problem can be rectified by entering a loan repayment amount (use any date during the particular monthly period) on the Statement sheet. A nil amount can be recorded if an actual loan repayment has not been effected during the month.
A128: The Summary sheet can be used to analyze all loan account transactions on a monthly basis for the duration of the loan period. It is therefore an extremely useful tool for reviewing the loan account transaction and balance history.
A130: The monthly periods that are included on the Summary sheet also determine which periods are available for selection on the Review sheet. It is therefore important to keep the Summary sheet up to date based on the transactions that have been recorded on the Statement sheet. As we've mentioned before, users simply need to extend the Excel table in order to copy all the formulas on the Summary sheet downwards so that the appropriate number of monthly periods are included on the sheet.
A132: Loan Review
A134: The Review sheet enables users to compile a comprehensive loan analysis for the entire loan period. The transactions that are recorded on the Statement sheet are compared to an initial loan amortization table before a forecast that is based on the remaining loan repayment period is added to the actual transactions that have been recorded on the Statement sheet in order to compile a loan analysis that covers the entire loan period. The actual loan forecast is then also compared to the initial amortization forecast and is calculated on two forecast bases - a standard amortization basis and an ad hoc repayments basis (refer to the Loan Repayment Forecasts section for more guidance on the forecast features).
A136: The only user input that is required on the Review sheet is selecting the appropriate loan review date. The loan review date input cell (cell B3) contains a list box that includes all the monthly periods on the Summary sheet. You can review the actual and initial loan amortization balances based on any monthly period that is selected from the list box. All the calculations on the Review sheet are automatically updated based on the review date that is selected. If a monthly period is not included in the list box, it means that you have not added the appropriate period to the Summary sheet.
A138: The loan history calculations include all the transactions that are recorded on the Statement sheet and are dated before the loan review date that is selected. The initial amortization column also only includes amounts before the review date. The loan history calculation therefore facilitates a comparison of the initial loan terms and the actual loan account movements up to the review date.
A140: The remaining loan repayments section includes three calculations - an initial loan amortization, a forecast calculation based on a standard amortization table and a forecast calculation that is based on an amortization table incorporating ad hoc repayments. Refer to the Initial Loan Amortization and Loan Repayment Forecasts sections for more guidance on these calculations.
A142: The forecast calculations for the remaining loan repayment period are based on the number of remaining loan repayments (cell B7) which is calculated by deducting the number of actual loan repayments in cell B6 from the loan period in cell B5. The number of actual loan repayments is determined by the number of scheduled loan repayments recorded on the Statement sheet - it is therefore imperative that a scheduled loan repayment (transaction type 2) is recorded on the Statement sheet for every month during the loan period, even if no actual loan repayment has been effected (use a nil value under these circumstances).
A144: The loan period summary section calculates the total interest and capital repayment balances over the entire loan period for all three calculation bases. This section also includes a comparison between the interest charges of the initial loan amortization calculation and the standard forecast amortization calculation as well as a comparison between the interest charges of the standard forecast amortization and the ad hoc forecast amortization calculations.
A146: An effective annual interest rate over the entire loan period is also calculated for all three calculation bases. You'll probably notice that the effective interest rate for the ad hoc forecast is in most instances significantly lower than the interest rates entered on the Statement sheet and included on the ForecastAmort sheet - this is because the effective interest rate is calculated over the entire loan period and ad hoc repayments result in a loan being repaid over a shorter loan period. It does not mean that a lower interest rate is achieved by effecting ad hoc repayments, but simply represents the interest savings that result from a shorter repayment period. The effective interest calculation result should therefore be interpreted in this context.
A148: Initial Loan Amortization
A150: An initial loan amortization calculation has been added to the template in order to facilitate a comparison between actual loan balances and the initial loan repayment terms. This comparison is especially useful for measuring the effect of interest rate changes. The initial loan amortization table is included on the InitialAmort sheet.
A152: This amortization table is calculated based on the initial loan amortization input values that are specified at the top of the sheet. Note that the loan period is limited to 360 months (30 years) and the monthly periods are determined based on the repayment commencement date that is specified in cell D6.
A154: The loan principle amount (cell D3) should be the same as the total of all the loan advances that have been recorded on the Statement sheet (refer to the Summary sheet in order to calculate the total of all actual loan advances). Note that if there is a difference, the loan principle amount will be highlighted in orange. The interest rate and loan period per the initial loan agreement should be entered in cells D4 and D5 respectively.
A156: In most instances, the repayment commencement date (cell D6) will be the same as the first transaction date that is entered on the Statement sheet. However, the repayment of some loans (like building loans) only commence on a later date and by including this input cell, we're therefore able to base the periods that are included in the initial amortization table on a user defined date so that the initial amortization calculation will match the commencement of actual loan repayments.
A158: Loan Repayment Forecasts
A160: The template also includes two separate loan repayment forecasts that are used to calculate loan balances and interest charges for the remaining loan repayment period. Note that the remaining loan repayment period is calculated based on the loan review date selected on the Review sheet (cell B3). The period selected from this list box therefore determines which repayment periods are based on actual transactions (all the periods before the loan review date) and which repayment periods are based on the forecasts (all the periods after the loan review date). The loan repayment forecasts are added to the actual loan account transactions in order to compile a loan review for the entire loan period. The forecasts consist of a standard loan repayment amortization table and an ad hoc loan repayment amortization table. Both amortization tables are included on the ForecastAmort sheet.
A162: Both amortization tables are based on the calculated values that are displayed at the top of the ForecastAmort sheet. The review date is selected from a list box on the Review sheet and the outstanding loan balance and interest rate is determined by looking up the appropriate values on the Statement sheet based on the loan review date that has been selected.
A164: The number of remaining loan repayments is calculated on the Review sheet by subtracting the number of actual loan repayments from the initial loan period. The number of actual loan repayments is calculated by counting the transaction type 2 transactions on the Statement sheet that are dated before the loan review date. The initial loan period is specified on the InitialAmort sheet.
A166: The standard amortization table (column K to P) calculates the remaining monthly loan repayment amounts and the interest that will be incurred over the remaining loan period. The total interest and capital repayments that are calculated are included on the Review sheet in the "Actual Loan: Standard" column and compared to the initial loan amortization table.
A168: The ad hoc forecast amortization table (column A to I) also calculates the remaining loan repayments and interest but enables users to include ad hoc loan repayments in the calculation. These ad hoc loan repayments should be recorded on the ForecastPmt sheet and are automatically included in the appropriate monthly periods on the amortization table. Note that the monthly periods on the ForecastPmt sheet are determined by the monthly periods on the Summary sheet and extended to include 360 months. You'll also notice that the loan review date that is specified on the Review sheet is highlighted in orange in column A on the ForecastPmt sheet.
A170: Ad hoc loan repayments that are dated before the review date (on the ForecastPmt sheet) will not form part of the ad hoc forecast amortization table (on the ForecastAmort sheet) because the amortization table starts in the month following the review date. If an ad hoc loan repayment is dated before the loan review date, it should however be included in the transactions that are recorded on the Statement sheet if the payment has been effected and it will therefore already be taken into account in the loan analysis of the entire loan period.
A172: The ad hoc amortization table accepts both lump sum repayments and increased instalments and enables users to calculate the interest savings that result from effecting these types of repayments over the remaining loan repayment period. Note that the monthly loan repayment amounts that are calculated on the ad hoc amortization table are not adjusted to take the effect of ad hoc loan repayments into account - the ad hoc loan repayments are allocated directly against the outstanding capital balance of the loan, thereby resulting in a shorter loan repayment period and a significant saving in interest.
A174: The ad hoc forecast amortization table is therefore a comprehensive, flexible loan repayment analysis tool that can be used to analyze the effect of ad hoc loan repayments on interest charges. The interest saving is calculated by comparing the ad hoc forecast amortization table (the "Actual Loan: Forecast" column) to the standard forecast amortization table (the "Actual Loan: Standard" column) on the Review sheet. As we've mentioned before, both of these amortization tables are calculated based on the remaining loan repayment period.
A176: Loan Amortization Table Calculations
A178: The loan amortization calculator on the CalcAmort sheet can be used to perform your own loan repayment and interest calculations by simply specifying the appropriate input values in the cells with a yellow cell background at the top of the sheet.
A180: This calculator can be used to perform any loan repayment calculation over a maximum loan period of 30 years. For example, if you want to determine the new monthly loan repayment amount after a change in the annual loan interest rate:
A181: Enter an interest rate change transaction on the Statement sheet (in accordance with the guidance that we provided in the Loan Account Transactions section).
A182: Calculate the outstanding loan balance on the effective date by adding the accrued interest amounts for the particular month (in column L) on the Statement sheet to the outstanding loan balance in column G.
A183: Enter the outstanding loan balance and the new interest rate in the appropriate input cells on the CalcAmort sheet.
A184: Enter the remaining loan period in the appropriate input cell on the same sheet.
A185: The new loan repayment amount is calculated in column D on the CalcAmort sheet.
A186: Add any other monthly loan costs (for example admin fees and insurance premiums) to this amount. The calculated monthly loan repayment amount should equal the amended loan repayment amount that is deducted on the next account statement that is received from the appropriate financial institution.
A188: Help & Customization
A190: If you experience any difficulty while using this template and you are not able to find the appropriate guidance in these instructions, please e-mail us at support@excel-skills.com for assistance. This template has been designed with flexibility in mind to ensure that it can be used in most business environments. If however you need an Excel based template that is customized specifically for your business requirements, please e-mail our Support function and provide a brief explanation of your requirements.
A192: © Copyright
A194: This template remains the intellectual property of www.excel-skills.com and is protected by international copyright laws. Any publication or distribution of this template outside the scope of the permitted use of the template is expressly prohibited. In terms of the permitted use of this template, only the distribution of the template to persons within the same organisation as the registered user or persons outside the organisation who can reasonably be expected to require access to the template as a direct result of the use of the template by the registered user is allowed. Subsequent distribution of the template by parties outside of the organisation is however expressly prohibited and represents an infringement of international copyright laws.

Sheet TransCode (hidden)
A1: Transaction Codes
A3: Code | B3: Transaction Type
A4: 1 | B4: Loan Advance
A5: 2 | B5: Loan Repayment
A6: 3 | B6: Ad Hoc Repayment
A7: 4 | B7: Interest Capitalized
A8: 5 | B8: Interest Rate Change
A9: 6 | B9: Admin Fee
A10: 7 | B10: Insurance Premium

Sheet Statement (hidden)
A1: Loan Statement
A2: © www.excel-skills.com
A3: Date | B3: Code | C3: Transaction Description | D3: New Interest Rate | E3: Transaction Amount | F3: Calculated Interest | G3: Outstanding Balance | H3: Interest Rate | I3: Transaction Month | J3: Interest Days | K3: Transaction Closing | L3: Accrued Interest
A4: 43556 | B4: 5 | C4: =IF(ISNA(VLOOKUP($B4,Transactions,2,0))=TRUE,"Select Valid Code",VLOOKUP($B4,Transactions,2,0)) -> Interest Rate Change | D4: 0.1 | E4: 0 | F4: =IF(B4<>4,0,SUM(OFFSET($L$3,1,0,ROW(L4)-ROW($L$3),1))-SUM(OFFSET($F$3,1,0,ROW(G4)-ROW($G$3)-1,1))) -> 0 | G4: =SUM(E4:F4)+SUM(OFFSET(A4,-1,COLUMN($G$3)-1,1,1)) -> 0 | H4: =IF(B4=5,D4,SUM(OFFSET(A4,-1,COLUMN($H$3)-1,1,1))) -> 0.1 | I4: =YEAR(A4)&"/"&MONTH(A4) -> 2019/4 | J4: =IF(I4<>OFFSET(A4,-1,COLUMN($I$3)-1,1,1),IF(B4=4,A4-1-DATE(YEAR(A4),MONTH(A4),0)+1,A4-1-DATE(YEAR(A4),MONTH(A4),0)),IF(B4=4,A4-OFFSET(A4,-1,0,1,1)+1,A4-OFFSET(A4,-1,0,1,1))) -> 0 | K4: =IF(ISNUMBER(OFFSET(G4,-1,0,1,1))=FALSE,0,OFFSET(G4,-1,0,1,1)) -> 0 | L4: =IF(ISNUMBER(OFFSET(H4,-1,0,1,1))=FALSE,0,K4*J4/365*OFFSET(H4,-1,0,1,1)) -> 0
A5: 43556 | B5: 1 | C5: Loan Advance | D5: 0 | E5: 2000000 | F5: =IF(B5<>4,0,SUM(OFFSET($L$3,1,0,ROW(L5)-ROW($L$3),1))-SUM(OFFSET($F$3,1,0,ROW(G5)-ROW($G$3)-1,1))) -> 0 | G5: =SUM(E5:F5)+SUM(OFFSET(A5,-1,COLUMN($G$3)-1,1,1)) -> 2000000 | H5: =IF(B5=5,D5,SUM(OFFSET(A5,-1,COLUMN($H$3)-1,1,1))) -> 0.1 | I5: =YEAR(A5)&"/"&MONTH(A5) -> 2019/4 | J5: 0 | K5: =IF(ISNUMBER(OFFSET(G5,-1,0,1,1))=FALSE,0,OFFSET(G5,-1,0,1,1)) -> 0 | L5: =IF(ISNUMBER(OFFSET(H5,-1,0,1,1))=FALSE,0,K5*J5/365*OFFSET(H5,-1,0,1,1)) -> 0
A6: 43557 | B6: 6 | C6: Admin Fee | D6: 0 | E6: 80 | F6: 0 | G6: 2000080 | H6: 0.1 | I6: 2019/4 | J6: 1 | K6: 2000000 | L6: 547.9452055
A7: 43558 | B7: 7 | C7: Insurance Premium | D7: 0 | E7: 370 | F7: 0 | G7: 2000450 | H7: 0.1 | I7: 2019/4 | J7: 1 | K7: 2000080 | L7: 547.9671233
A8: 43562 | B8: 2 | C8: Loan Repayment | D8: 0 | E8: -19750.43 | F8: 0 | G8: 1980699.57 | H8: 0.1 | I8: 2019/4 | J8: 4 | K8: 2000450 | L8: 2192.273973
A9: 43585 | B9: 4 | C9: Interest Capitalized | D9: 0 | E9: 0 | F9: 16311.9643 | G9: 1997011.534 | H9: 0.1 | I9: 2019/4 | J9: 24 | K9: 1980699.57 | L9: 13023.77799
A10: 43587 | B10: 6 | C10: Admin Fee | D10: 0 | E10: 80 | F10: 0 | G10: 1997091.534 | H10: 0.1 | I10: 2019/5 | J10: 1 | K10: 1997011.534 | L10: 547.1264478
A11: 43588 | B11: 7 | C11: Insurance Premium | D11: 0 | E11: 370 | F11: 0 | G11: 1997461.534 | H11: 0.1 | I11: 2019/5 | J11: 1 | K11: 1997091.534 | L11: 547.1483656
A12: 43592 | B12: 2 | C12: Loan Repayment | D12: 0 | E12: -19750.43 | F12: 0 | G12: 1977711.104 | H12: 0.1 | I12: 2019/5 | J12: 4 | K12: 1997461.534 | L12: 2188.998942
A13: 43616 | B13: 4 | C13: Interest Capitalized | D13: 0 | E13: 0 | F13: 16829.24022 | G13: 1994540.345 | H13: 0.1 | I13: 2019/5 | J13: 25 | K13: 1977711.104 | L13: 13545.96647
A14: 43618 | B14: 6 | C14: Admin Fee | D14: 0 | E14: 80 | F14: 0 | G14: 1994620.345 | H14: 0.1 | I14: 2019/6 | J14: 1 | K14: 1994540.345 | L14: 546.4494095
A15: 43619 | B15: 7 | C15: Insurance Premium | D15: 0 | E15: 370 | F15: 0 | G15: 1994990.345 | H15: 0.1 | I15: 2019/6 | J15: 1 | K15: 1994620.345 | L15: 546.4713273
A16: 43623 | B16: 2 | C16: Loan Repayment | D16: 0 | E16: -19750.43 | F16: 0 | G16: 1975239.915 | H16: 0.1 | I16: 2019/6 | J16: 4 | K16: 1994990.345 | L16: 2186.290789
A17: 43646 | B17: 4 | C17: Interest Capitalized | D17: 0 | E17: 0 | F17: 16267.09042 | G17: 1991507.005 | H17: 0.1 | I17: 2019/6 | J17: 24 | K17: 1975239.915 | L17: 12987.87889
A18: 43648 | B18: 6 | C18: Admin Fee | D18: 0 | E18: 80 | F18: 0 | G18: 1991587.005 | H18: 0.1 | I18: 2019/7 | J18: 1 | K18: 1991507.005 | L18: 545.6183575
A19: 43649 | B19: 7 | C19: Insurance Premium | D19: 0 | E19: 370 | F19: 0 | G19: 1991957.005 | H19: 0.1 | I19: 2019/7 | J19: 1 | K19: 1991587.005 | L19: 545.6402753
A20: 43653 | B20: 2 | C20: Loan Repayment | D20: 0 | E20: -19750.43 | F20: 0 | G20: 1972206.575 | H20: 0.1 | I20: 2019/7 | J20: 4 | K20: 1991957.005 | L20: 2182.966581
A21: 43677 | B21: 4 | C21: Interest Capitalized | D21: 0 | E21: 0 | F21: 16782.48943 | G21: 1988989.064 | H21: 0.1 | I21: 2019/7 | J21: 25 | K21: 1972206.575 | L21: 13508.26421
A22: 43679 | B22: 6 | C22: Admin Fee | D22: 0 | E22: 80 | F22: 0 | G22: 1989069.064 | H22: 0.1 | I22: 2019/8 | J22: 1 | K22: 1988989.064 | L22: 544.9285108
A23: 43680 | B23: 7 | C23: Insurance Premium | D23: 0 | E23: 370 | F23: 0 | G23: 1989439.064 | H23: 0.1 | I23: 2019/8 | J23: 1 | K23: 1989069.064 | L23: 544.9504286
A24: 43684 | B24: 2 | C24: Loan Repayment | D24: 0 | E24: -19750.43 | F24: 0 | G24: 1969688.634 | H24: 0.1 | I24: 2019/8 | J24: 4 | K24: 1989439.064 | L24: 2180.207194
A25: 43708 | B25: 4 | C25: Interest Capitalized | D25: 0 | E25: 0 | F25: 16761.10418 | G25: 1986449.739 | H25: 0.1 | I25: 2019/8 | J25: 25 | K25: 1969688.634 | L25: 13491.01804
A26: 43710 | B26: 6 | C26: Admin Fee | D26: 0 | E26: 80 | F26: 0 | G26: 1986529.739 | H26: 0.1 | I26: 2019/9 | J26: 1 | K26: 1986449.739 | L26: 544.2328051
A27: 43711 | B27: 7 | C27: Insurance Premium | D27: 0 | E27: 370 | F27: 0 | G27: 1986899.739 | H27: 0.1 | I27: 2019/9 | J27: 1 | K27: 1986529.739 | L27: 544.2547229
A28: 43715 | B28: 2 | C28: Loan Repayment | D28: 0 | E28: -19750.43 | F28: 0 | G28: 1967149.309 | H28: 0.1 | I28: 2019/9 | J28: 4 | K28: 1986899.739 | L28: 2177.424371
A29: 43738 | B29: 4 | C29: Interest Capitalized | D29: 0 | E29: 0 | F29: 16200.59228 | G29: 1983349.901 | H29: 0.1 | I29: 2019/9 | J29: 24 | K29: 1967149.309 | L29: 12934.68038
A30: 43740 | B30: 6 | C30: Admin Fee | D30: 0 | E30: 80 | F30: 0 | G30: 1983429.901 | H30: 0.1 | I30: 2019/10 | J30: 1 | K30: 1983349.901 | L30: 543.3835345
A31: 43741 | B31: 7 | C31: Insurance Premium | D31: 0 | E31: 370 | F31: 0 | G31: 1983799.901 | H31: 0.1 | I31: 2019/10 | J31: 1 | K31: 1983429.901 | L31: 543.4054523
A32: 43745 | B32: 2 | C32: Loan Repayment | D32: 0 | E32: -19750.43 | F32: 0 | G32: 1964049.471 | H32: 0.1 | I32: 2019/10 | J32: 4 | K32: 1983799.901 | L32: 2174.027289
A33: 43769 | B33: 4 | C33: Interest Capitalized | D33: 0 | E33: 0 | F33: 16713.20991 | G33: 1980762.681 | H33: 0.1 | I33: 2019/10 | J33: 25 | K33: 1964049.471 | L33: 13452.39364
A34: 43771 | B34: 6 | C34: Admin Fee | D34: 0 | E34: 80 | F34: 0 | G34: 1980842.681 | H34: 0.1 | I34: 2019/11 | J34: 1 | K34: 1980762.681 | L34: 542.674707
A35: 43772 | B35: 7 | C35: Insurance Premium | D35: 0 | E35: 370 | F35: 0 | G35: 1981212.681 | H35: 0.1 | I35: 2019/11 | J35: 1 | K35: 1980842.681 | L35: 542.6966249
A36: 43776 | B36: 2 | C36: Loan Repayment | D36: 0 | E36: -19750.43 | F36: 0 | G36: 1961462.251 | H36: 0.1 | I36: 2019/11 | J36: 4 | K36: 1981212.681 | L36: 2171.191979
A37: 43792 | B37: 5 | C37: Interest Rate Change | D37: 0.1025 | E37: 0 | F37: 0 | G37: 1961462.251 | H37: 0.1025 | I37: 2019/11 | J37: 16 | K37: 1961462.251 | L37: 8598.190688
A38: 43799 | B38: 4 | C38: Interest Capitalized | D38: 0 | E38: 0 | F38: 16261.32673 | G38: 1977723.577 | H38: 0.1025 | I38: 2019/11 | J38: 8 | K38: 1961462.251 | L38: 4406.572728
A39: 43801 | B39: 6 | C39: Admin Fee | D39: 0 | E39: 80 | F39: 0 | G39: 1977803.577 | H39: 0.1025 | I39: 2019/12 | J39: 1 | K39: 1977723.577 | L39: 555.3881279
A40: 43802 | B40: 7 | C40: Insurance Premium | D40: 0 | E40: 370 | F40: 0 | G40: 1978173.577 | H40: 0.1025 | I40: 2019/12 | J40: 1 | K40: 1977803.577 | L40: 555.4105937
A41: 43806 | B41: 2 | C41: Loan Repayment | D41: 0 | E41: -19909.05 | F41: 0 | G41: 1958264.527 | H41: 0.1025 | I41: 2019/12 | J41: 4 | K41: 1978173.577 | L41: 2222.057991
A42: 43830 | B42: 4 | C42: Interest Capitalized | D42: 0 | E42: 0 | F42: 17080.94672 | G42: 1975345.474 | H42: 0.1025 | I42: 2019/12 | J42: 25 | K42: 1958264.527 | L42: 13748.09
A43: 43832 | B43: 6 | C43: Admin Fee | D43: 0 | E43: 80 | F43: 0 | G43: 1975425.474 | H43: 0.1025 | I43: 2020/1 | J43: 1 | K43: 1975345.474 | L43: 554.7203044
A44: 43833 | B44: 7 | C44: Insurance Premium | D44: 0 | E44: 370 | F44: 0 | G44: 1975795.474 | H44: 0.1025 | I44: 2020/1 | J44: 1 | K44: 1975425.474 | L44: 554.7427701
A45: 43837 | B45: 2 | C45: Loan Repayment | D45: 0 | E45: -19909.05 | F45: 0 | G45: 1955886.424 | H45: 0.1025 | I45: 2020/1 | J45: 4 | K45: 1975795.474 | L45: 2219.386697
A46: 43861 | B46: 4 | C46: Interest Capitalized | D46: 0 | E46: 0 | F46: 17060.24419 | G46: 1972946.668 | H46: 0.1025 | I46: 2020/1 | J46: 25 | K46: 1955886.424 | L46: 13731.39442
A47: 43863 | B47: 6 | C47: Admin Fee | D47: 0 | E47: 80 | F47: 0 | G47: 1973026.668 | H47: 0.1025 | I47: 2020/2 | J47: 1 | K47: 1972946.668 | L47: 554.0466671
A48: 43864 | B48: 7 | C48: Insurance Premium | D48: 0 | E48: 370 | F48: 0 | G48: 1973396.668 | H48: 0.1025 | I48: 2020/2 | J48: 1 | K48: 1973026.668 | L48: 554.0691329
A49: 43868 | B49: 2 | C49: Loan Repayment | D49: 0 | E49: -19909.05 | F49: 0 | G49: 1953487.618 | H49: 0.1025 | I49: 2020/2 | J49: 4 | K49: 1973396.668 | L49: 2216.692148
A50: 43890 | B50: 4 | C50: Interest Capitalized | D50: 0 | E50: 0 | F50: 15942.19715 | G50: 1969429.816 | H50: 0.1025 | I50: 2020/2 | J50: 23 | K50: 1953487.618 | L50: 12617.38921
A51: 43892 | B51: 6 | C51: Admin Fee | D51: 0 | E51: 80 | F51: 0 | G51: 1969509.816 | H51: 0.1025 | I51: 2020/3 | J51: 1 | K51: 1969429.816 | L51: 553.0590578
A52: 43893 | B52: 7 | C52: Insurance Premium | D52: 0 | E52: 370 | F52: 0 | G52: 1969879.816 | H52: 0.1025 | I52: 2020/3 | J52: 1 | K52: 1969509.816 | L52: 553.0815235
A53: 43897 | B53: 2 | C53: Loan Repayment | D53: 0 | E53: -19909.05 | F53: 0 | G53: 1949970.766 | H53: 0.1025 | I53: 2020/3 | J53: 4 | K53: 1969879.816 | L53: 2212.741711
A54: 43921 | B54: 4 | C54: Interest Capitalized | D54: 0 | E54: 0 | F54: 17008.74554 | G54: 1966979.511 | H54: 0.1025 | I54: 2020/3 | J54: 25 | K54: 1949970.766 | L54: 13689.86325
A55: 43923 | B55: 6 | C55: Admin Fee | D55: 0 | E55: 85 | F55: 0 | G55: 1967064.511 | H55: 0.1025 | I55: 2020/4 | J55: 1 | K55: 1966979.511 | L55: 552.3709586
A56: 43924 | B56: 7 | C56: Insurance Premium | D56: 0 | E56: 400 | F56: 0 | G56: 1967464.511 | H56: 0.1025 | I56: 2020/4 | J56: 1 | K56: 1967064.511 | L56: 552.3948284
A57: 43928 | B57: 2 | C57: Loan Repayment | D57: 0 | E57: -19944.05 | F57: 0 | G57: 1947520.461 | H57: 0.1025 | I57: 2020/4 | J57: 4 | K57: 1967464.511 | L57: 2210.028629
A58: 43951 | B58: 4 | C58: Interest Capitalized | D58: 0 | E58: 0 | F58: 16440.54876 | G58: 1963961.01 | H58: 0.1025 | I58: 2020/4 | J58: 24 | K58: 1947520.461 | L58: 13125.75434
A59: 43953 | B59: 6 | C59: Admin Fee | D59: 0 | E59: 85 | F59: 0 | G59: 1964046.01 | H59: 0.1025 | I59: 2020/5 | J59: 1 | K59: 1963961.01 | L59: 551.5232973
A60: 43954 | B60: 7 | C60: Insurance Premium | D60: 0 | E60: 400 | F60: 0 | G60: 1964446.01 | H60: 0.1025 | I60: 2020/5 | J60: 1 | K60: 1964046.01 | L60: 551.5471671
A61: 43958 | B61: 2 | C61: Loan Repayment | D61: 0 | E61: -19944.05 | F61: 0 | G61: 1944501.96 | H61: 0.1025 | I61: 2020/5 | J61: 4 | K61: 1964446.01 | L61: 2206.637984
A62: 43982 | B62: 4 | C62: Interest Capitalized | D62: 0 | E62: 0 | F62: 16961.17769 | G62: 1961463.138 | H62: 0.1025 | I62: 2020/5 | J62: 25 | K62: 1944501.96 | L62: 13651.46924
A63: 43984 | B63: 6 | C63: Admin Fee | D63: 0 | E63: 85 | F63: 0 | G63: 1961548.138 | H63: 0.1025 | I63: 2020/6 | J63: 1 | K63: 1961463.138 | L63: 550.82184
A64: 43985 | B64: 7 | C64: Insurance Premium | D64: 0 | E64: 400 | F64: 0 | G64: 1961948.138 | H64: 0.1025 | I64: 2020/6 | J64: 1 | K64: 1961548.138 | L64: 550.8457098
A65: 43989 | B65: 2 | C65: Loan Repayment | D65: 0 | E65: -19944.05 | F65: 0 | G65: 1942004.088 | H65: 0.1025 | I65: 2020/6 | J65: 4 | K65: 1961948.138 | L65: 2203.832154
A66: 44012 | B66: 4 | C66: Interest Capitalized | D66: 0 | E66: 0 | F66: 16394.0752 | G66: 1958398.163 | H66: 0.1025 | I66: 2020/6 | J66: 24 | K66: 1942004.088 | L66: 13088.57549
A67: 44014 | B67: 6 | C67: Admin Fee | D67: 0 | E67: 85 | F67: 0 | G67: 1958483.163 | H67: 0.1025 | I67: 2020/7 | J67: 1 | K67: 1958398.163 | L67: 549.9611279
A68: 44015 | B68: 7 | C68: =IF(ISNA(VLOOKUP($B68,Transactions,2,0))=TRUE,"Select Valid Code",VLOOKUP($B68,Transactions,2,0)) -> Insurance Premium | D68: 0 | E68: 400 | F68: 0 | G68: 1958883.163 | H68: 0.1025 | I68: 2020/7 | J68: =IF(I68<>OFFSET(A68,-1,COLUMN($I$3)-1,1,1),IF(B68=4,A68-1-DATE(YEAR(A68),MONTH(A68),0)+1,A68-1-DATE(YEAR(A68),MONTH(A68),0)),IF(B68=4,A68-OFFSET(A68,-1,0,1,1)+1,A68-OFFSET(A68,-1,0,1,1))) -> 1 | K68: 1958483.163 | L68: 549.9849977
A69: 44019 | B69: 2 | C69: Loan Repayment | D69: 0 | E69: -19944.05 | F69: =IF(B69<>4,0,SUM(OFFSET($L$3,1,0,ROW(L69)-ROW($L$3),1))-SUM(OFFSET($F$3,1,0,ROW(G69)-ROW($G$3)-1,1))) -> 0 | G69: =SUM(E69:F69)+SUM(OFFSET(A69,-1,COLUMN($G$3)-1,1,1)) -> 1938939.113 | H69: =IF(B69=5,D69,SUM(OFFSET(A69,-1,COLUMN($H$3)-1,1,1))) -> 0.1025 | I69: =YEAR(A69)&"/"&MONTH(A69) -> 2020/7 | J69: 4 | K69: =IF(ISNUMBER(OFFSET(G69,-1,0,1,1))=FALSE,0,OFFSET(G69,-1,0,1,1)) -> 1958883.163 | L69: =IF(ISNUMBER(OFFSET(H69,-1,0,1,1))=FALSE,0,K69*J69/365*OFFSET(H69,-1,0,1,1)) -> 2200.389306
A70: 44043 | B70: 4 | C70: Interest Capitalized | D70: 0 | E70: 0 | F70: 16912.75044 | G70: 1955851.863 | H70: 0.1025 | I70: 2020/7 | J70: 25 | K70: 1938939.113 | L70: 13612.415
A71: 44045 | B71: 6 | C71: Admin Fee | D71: 0 | E71: 85 | F71: 0 | G71: 1955936.863 | H71: 0.1025 | I71: 2020/8 | J71: 1 | K71: 1955851.863 | L71: 549.2460712
A72: 44046 | B72: 7 | C72: Insurance Premium | D72: 0 | E72: 400 | F72: 0 | G72: 1956336.863 | H72: 0.1025 | I72: 2020/8 | J72: 1 | K72: 1955936.863 | L72: 549.269941
A73: 44050 | B73: 2 | C73: Loan Repayment | D73: 0 | E73: -19944.05 | F73: 0 | G73: 1936392.813 | H73: 0.1025 | I73: 2020/8 | J73: 4 | K73: 1956336.863 | L73: 2197.529079
A74: 44074 | B74: 4 | C74: Interest Capitalized | D74: 0 | E74: 0 | F74: 16890.58368 | G74: 1953283.397 | H74: 0.1025 | I74: 2020/8 | J74: 25 | K74: 1936392.813 | L74: 13594.53859
A75: 44076 | B75: 6 | C75: Admin Fee | D75: 0 | E75: 85 | F75: 0 | G75: 1953368.397 | H75: 0.1025 | I75: 2020/9 | J75: 1 | K75: 1953283.397 | L75: 548.5247895
A76: 44077 | B76: 7 | C76: Insurance Premium | D76: 0 | E76: 400 | F76: 0 | G76: 1953768.397 | H76: 0.1025 | I76: 2020/9 | J76: 1 | K76: 1953368.397 | L76: 548.5486594
A77: 44081 | B77: 2 | C77: Loan Repayment | D77: 0 | E77: -19944.05 | F77: 0 | G77: 1933824.347 | H77: 0.1025 | I77: 2020/9 | J77: 4 | K77: 1953768.397 | L77: 2194.643953
A78: 44104 | B78: 4 | C78: Interest Capitalized | D78: 0 | E78: 0 | F78: 16325.16368 | G78: 1950149.51 | H78: 0.1025 | I78: 2020/9 | J78: 24 | K78: 1933824.347 | L78: 13033.44628
A79: 44106 | B79: 6 | C79: Admin Fee | D79: 0 | E79: 85 | F79: 0 | G79: 1950234.51 | H79: 0.1025 | I79: 2020/10 | J79: 1 | K79: 1950149.51 | L79: 547.6447256
A80: 44107 | B80: 7 | C80: Insurance Premium | D80: 0 | E80: 400 | F80: 0 | G80: 1950634.51 | H80: 0.1025 | I80: 2020/10 | J80: 1 | K80: 1950234.51 | L80: 547.6685954
A81: 44111 | B81: 2 | C81: Loan Repayment | D81: 0 | E81: -19944.05 | F81: 0 | G81: 1930690.46 | H81: 0.1025 | I81: 2020/10 | J81: 4 | K81: 1950634.51 | L81: 2191.123697
A82: 44135 | B82: 4 | C82: Interest Capitalized | D82: 0 | E82: 0 | F82: 16840.94196 | G82: 1947531.402 | H82: 0.1025 | I82: 2020/10 | J82: 25 | K82: 1930690.46 | L82: 13554.50495
A83: 44137 | B83: 6 | C83: Admin Fee | D83: 0 | E83: 85 | F83: 0 | G83: 1947616.402 | H83: 0.1025 | I83: 2020/11 | J83: 1 | K83: 1947531.402 | L83: 546.9095034
A84: 44138 | B84: 7 | C84: Insurance Premium | D84: 0 | E84: 400 | F84: 0 | G84: 1948016.402 | H84: 0.1025 | I84: 2020/11 | J84: 1 | K84: 1947616.402 | L84: 546.9333733
A85: 44142 | B85: 2 | C85: Loan Repayment | D85: 0 | E85: -19944.05 | F85: 0 | G85: 1928072.352 | H85: 0.1025 | I85: 2020/11 | J85: 4 | K85: 1948016.402 | L85: 2188.182808
A86: 44165 | B86: 4 | C86: Interest Capitalized | D86: 0 | E86: 0 | F86: 16276.7051 | G86: 1944349.058 | H86: 0.1025 | I86: 2020/11 | J86: 24 | K86: 1928072.352 | L86: 12994.67942
A87: 44167 | B87: 6 | C87: Admin Fee | D87: 0 | E87: 85 | F87: 0 | G87: 1944434.058 | H87: 0.1025 | I87: 2020/12 | J87: 1 | K87: 1944349.058 | L87: 546.0158312
A88: 44168 | B88: 7 | C88: Insurance Premium | D88: 0 | E88: 400 | F88: 0 | G88: 1944834.058 | H88: 0.1025 | I88: 2020/12 | J88: 1 | K88: 1944434.058 | L88: 546.0397011
A89: 44172 | B89: 2 | C89: Loan Repayment | D89: 0 | E89: -19944.05 | F89: 0 | G89: 1924890.008 | H89: 0.1025 | I89: 2020/12 | J89: 4 | K89: 1944834.058 | L89: 2184.608119
A90: 44196 | B90: 4 | C90: Interest Capitalized | D90: 0 | E90: 0 | F90: 16790.44624 | G90: 1941680.454 | H90: 0.1025 | I90: 2020/12 | J90: 25 | K90: 1924890.008 | L90: 13513.78259

Sheet Summary (hidden)
A1: Loan Summary
A2: © www.excel-skills.com
A3: Month | B3: Opening Balance | C3: Loan Advance | D3: Loan Repayment | E3: Ad Hoc Repayment | F3: Interest Capitalized | G3: Admin Fees | H3: Insurance Premium | I3: Other Costs | J3: Closing Balance | K3: Number of Repayments
A4: =IF(ISNUMBER(A3)=FALSE,DATE(YEAR(OFFSET(Statement!$A$3,1,0,1,1)),MONTH(OFFSET(Statement!$A$3,1,0,1,1))+1,0),DATE(YEAR(A3),MONTH(A3)+2,0)) -> 2019-04-30 | B4: =IF(ISNUMBER(B3)=FALSE,0,J3) -> 0 | C4: =SUMPRODUCT((TransDate>=DATE(YEAR($A4),MONTH($A4),1))*(TransDate<=$A4)*(TransCode=1)*(TransAmount)) -> 2000000 | D4: =SUMPRODUCT((TransDate>=DATE(YEAR($A4),MONTH($A4),1))*(TransDate<=$A4)*(TransCode=2)*(TransAmount)) -> -19750.43 | E4: =SUMPRODUCT((TransDate>=DATE(YEAR($A4),MONTH($A4),1))*(TransDate<=$A4)*(TransCode=3)*(TransAmount)) -> 0 | F4: =SUMPRODUCT((TransDate>=DATE(YEAR($A4),MONTH($A4),1))*(TransDate<=$A4)*(TransCode=4)*(TransInt)) -> 16311.9643 | G4: =SUMPRODUCT((TransDate>=DATE(YEAR($A4),MONTH($A4),1))*(TransDate<=$A4)*(TransCode=6)*(TransAmount)) -> 80 | H4: =SUMPRODUCT((TransDate>=DATE(YEAR($A4),MONTH($A4),1))*(TransDate<=$A4)*(TransCode=7)*(TransAmount)) -> 370 | I4: =IF(SUMPRODUCT((TransDate>=DATE(YEAR($A4),MONTH($A4),1))*(TransDate<=$A4)*(TransAmount))+SUMPRODUCT((TransDate>=DATE(YEAR($A4),MONTH($A4),1))*(TransDate<=$A4)*(TransInt))-SUM(C4:H4)<0.009,0,SUMPRODUCT((TransDate>=DATE(YEAR($A4),MONTH($A4),1))*(TransDate<=$A4)*(TransAmount))+SUMPRODUCT((TransDate>=DATE(YEAR($A4),MONTH($A4),1))*(TransDate<=$A4)*(TransInt))-SUM(C4:H4)) -> 0 | J4: =SUM(B4:I4) -> 1997011.534 | K4: =IF(ISNA(MATCH($A4,StateMonth,0))=TRUE,"month end?",COUNTIF(OFFSET(Statement!$A$3,0,0,MATCH($A4,StateMonth,0),2),"2")) -> 1
A5: =IF(ISNUMBER(A4)=FALSE,DATE(YEAR(OFFSET(Statement!$A$3,1,0,1,1)),MONTH(OFFSET(Statement!$A$3,1,0,1,1))+1,0),DATE(YEAR(A4),MONTH(A4)+2,0)) -> 2019-05-31 | B5: =IF(ISNUMBER(B4)=FALSE,0,J4) -> 1997011.534 | C5: 0 | D5: -19750.43 | E5: 0 | F5: 16829.24022 | G5: 80 | H5: 370 | I5: 0 | J5: =SUM(B5:I5) -> 1994540.345 | K5: =IF(ISNA(MATCH($A5,StateMonth,0))=TRUE,"month end?",COUNTIF(OFFSET(Statement!$A$3,0,0,MATCH($A5,StateMonth,0),2),"2")) -> 2
A6: =IF(ISNUMBER(A5)=FALSE,DATE(YEAR(OFFSET(Statement!$A$3,1,0,1,1)),MONTH(OFFSET(Statement!$A$3,1,0,1,1))+1,0),DATE(YEAR(A5),MONTH(A5)+2,0)) -> 2019-06-30 | B6: 1994540.345 | C6: 0 | D6: -19750.43 | E6: 0 | F6: 16267.09042 | G6: 80 | H6: 370 | I6: 0 | J6: 1991507.005 | K6: =IF(ISNA(MATCH($A6,StateMonth,0))=TRUE,"month end?",COUNTIF(OFFSET(Statement!$A$3,0,0,MATCH($A6,StateMonth,0),2),"2")) -> 3
A7: =IF(ISNUMBER(A6)=FALSE,DATE(YEAR(OFFSET(Statement!$A$3,1,0,1,1)),MONTH(OFFSET(Statement!$A$3,1,0,1,1))+1,0),DATE(YEAR(A6),MONTH(A6)+2,0)) -> 2019-07-31 | B7: 1991507.005 | C7: 0 | D7: -19750.43 | E7: 0 | F7: 16782.48943 | G7: 80 | H7: 370 | I7: 0 | J7: 1988989.064 | K7: =IF(ISNA(MATCH($A7,StateMonth,0))=TRUE,"month end?",COUNTIF(OFFSET(Statement!$A$3,0,0,MATCH($A7,StateMonth,0),2),"2")) -> 4
A8: =IF(ISNUMBER(A7)=FALSE,DATE(YEAR(OFFSET(Statement!$A$3,1,0,1,1)),MONTH(OFFSET(Statement!$A$3,1,0,1,1))+1,0),DATE(YEAR(A7),MONTH(A7)+2,0)) -> 2019-08-31 | B8: 1988989.064 | C8: 0 | D8: -19750.43 | E8: 0 | F8: 16761.10418 | G8: 80 | H8: 370 | I8: 0 | J8: 1986449.739 | K8: =IF(ISNA(MATCH($A8,StateMonth,0))=TRUE,"month end?",COUNTIF(OFFSET(Statement!$A$3,0,0,MATCH($A8,StateMonth,0),2),"2")) -> 5
A9: =IF(ISNUMBER(A8)=FALSE,DATE(YEAR(OFFSET(Statement!$A$3,1,0,1,1)),MONTH(OFFSET(Statement!$A$3,1,0,1,1))+1,0),DATE(YEAR(A8),MONTH(A8)+2,0)) -> 2019-09-30 | B9: 1986449.739 | C9: 0 | D9: -19750.43 | E9: 0 | F9: 16200.59228 | G9: 80 | H9: 370 | I9: 0 | J9: 1983349.901 | K9: =IF(ISNA(MATCH($A9,StateMonth,0))=TRUE,"month end?",COUNTIF(OFFSET(Statement!$A$3,0,0,MATCH($A9,StateMonth,0),2),"2")) -> 6
A10: =IF(ISNUMBER(A9)=FALSE,DATE(YEAR(OFFSET(Statement!$A$3,1,0,1,1)),MONTH(OFFSET(Statement!$A$3,1,0,1,1))+1,0),DATE(YEAR(A9),MONTH(A9)+2,0)) -> 2019-10-31 | B10: 1983349.901 | C10: 0 | D10: -19750.43 | E10: 0 | F10: 16713.20991 | G10: 80 | H10: 370 | I10: 0 | J10: 1980762.681 | K10: =IF(ISNA(MATCH($A10,StateMonth,0))=TRUE,"month end?",COUNTIF(OFFSET(Statement!$A$3,0,0,MATCH($A10,StateMonth,0),2),"2")) -> 7
A11: =IF(ISNUMBER(A10)=FALSE,DATE(YEAR(OFFSET(Statement!$A$3,1,0,1,1)),MONTH(OFFSET(Statement!$A$3,1,0,1,1))+1,0),DATE(YEAR(A10),MONTH(A10)+2,0)) -> 2019-11-30 | B11: 1980762.681 | C11: 0 | D11: -19750.43 | E11: 0 | F11: 16261.32673 | G11: 80 | H11: 370 | I11: 0 | J11: 1977723.577 | K11: =IF(ISNA(MATCH($A11,StateMonth,0))=TRUE,"month end?",COUNTIF(OFFSET(Statement!$A$3,0,0,MATCH($A11,StateMonth,0),2),"2")) -> 8
A12: =IF(ISNUMBER(A11)=FALSE,DATE(YEAR(OFFSET(Statement!$A$3,1,0,1,1)),MONTH(OFFSET(Statement!$A$3,1,0,1,1))+1,0),DATE(YEAR(A11),MONTH(A11)+2,0)) -> 2019-12-31 | B12: 1977723.577 | C12: 0 | D12: -19909.05 | E12: 0 | F12: 17080.94672 | G12: 80 | H12: 370 | I12: 0 | J12: 1975345.474 | K12: =IF(ISNA(MATCH($A12,StateMonth,0))=TRUE,"month end?",COUNTIF(OFFSET(Statement!$A$3,0,0,MATCH($A12,StateMonth,0),2),"2")) -> 9
A13: =IF(ISNUMBER(A12)=FALSE,DATE(YEAR(OFFSET(Statement!$A$3,1,0,1,1)),MONTH(OFFSET(Statement!$A$3,1,0,1,1))+1,0),DATE(YEAR(A12),MONTH(A12)+2,0)) -> 2020-01-31 | B13: 1975345.474 | C13: 0 | D13: -19909.05 | E13: 0 | F13: 17060.24419 | G13: 80 | H13: 370 | I13: 0 | J13: 1972946.668 | K13: =IF(ISNA(MATCH($A13,StateMonth,0))=TRUE,"month end?",COUNTIF(OFFSET(Statement!$A$3,0,0,MATCH($A13,StateMonth,0),2),"2")) -> 10
A14: =IF(ISNUMBER(A13)=FALSE,DATE(YEAR(OFFSET(Statement!$A$3,1,0,1,1)),MONTH(OFFSET(Statement!$A$3,1,0,1,1))+1,0),DATE(YEAR(A13),MONTH(A13)+2,0)) -> 2020-02-29 | B14: 1972946.668 | C14: 0 | D14: -19909.05 | E14: 0 | F14: 15942.19715 | G14: 80 | H14: 370 | I14: 0 | J14: 1969429.816 | K14: =IF(ISNA(MATCH($A14,StateMonth,0))=TRUE,"month end?",COUNTIF(OFFSET(Statement!$A$3,0,0,MATCH($A14,StateMonth,0),2),"2")) -> 11
A15: =IF(ISNUMBER(A14)=FALSE,DATE(YEAR(OFFSET(Statement!$A$3,1,0,1,1)),MONTH(OFFSET(Statement!$A$3,1,0,1,1))+1,0),DATE(YEAR(A14),MONTH(A14)+2,0)) -> 2020-03-31 | B15: 1969429.816 | C15: 0 | D15: -19909.05 | E15: 0 | F15: 17008.74554 | G15: 80 | H15: 370 | I15: 0 | J15: 1966979.511 | K15: =IF(ISNA(MATCH($A15,StateMonth,0))=TRUE,"month end?",COUNTIF(OFFSET(Statement!$A$3,0,0,MATCH($A15,StateMonth,0),2),"2")) -> 12
A16: =IF(ISNUMBER(A15)=FALSE,DATE(YEAR(OFFSET(Statement!$A$3,1,0,1,1)),MONTH(OFFSET(Statement!$A$3,1,0,1,1))+1,0),DATE(YEAR(A15),MONTH(A15)+2,0)) -> 2020-04-30 | B16: 1966979.511 | C16: 0 | D16: -19944.05 | E16: 0 | F16: 16440.54876 | G16: 85 | H16: 400 | I16: 0 | J16: 1963961.01 | K16: =IF(ISNA(MATCH($A16,StateMonth,0))=TRUE,"month end?",COUNTIF(OFFSET(Statement!$A$3,0,0,MATCH($A16,StateMonth,0),2),"2")) -> 13
A17: =IF(ISNUMBER(A16)=FALSE,DATE(YEAR(OFFSET(Statement!$A$3,1,0,1,1)),MONTH(OFFSET(Statement!$A$3,1,0,1,1))+1,0),DATE(YEAR(A16),MONTH(A16)+2,0)) -> 2020-05-31 | B17: 1963961.01 | C17: 0 | D17: -19944.05 | E17: 0 | F17: 16961.17769 | G17: 85 | H17: 400 | I17: 0 | J17: 1961463.138 | K17: =IF(ISNA(MATCH($A17,StateMonth,0))=TRUE,"month end?",COUNTIF(OFFSET(Statement!$A$3,0,0,MATCH($A17,StateMonth,0),2),"2")) -> 14
A18: =IF(ISNUMBER(A17)=FALSE,DATE(YEAR(OFFSET(Statement!$A$3,1,0,1,1)),MONTH(OFFSET(Statement!$A$3,1,0,1,1))+1,0),DATE(YEAR(A17),MONTH(A17)+2,0)) -> 2020-06-30 | B18: 1961463.138 | C18: 0 | D18: -19944.05 | E18: 0 | F18: 16394.0752 | G18: 85 | H18: 400 | I18: 0 | J18: 1958398.163 | K18: =IF(ISNA(MATCH($A18,StateMonth,0))=TRUE,"month end?",COUNTIF(OFFSET(Statement!$A$3,0,0,MATCH($A18,StateMonth,0),2),"2")) -> 15
A19: =IF(ISNUMBER(A18)=FALSE,DATE(YEAR(OFFSET(Statement!$A$3,1,0,1,1)),MONTH(OFFSET(Statement!$A$3,1,0,1,1))+1,0),DATE(YEAR(A18),MONTH(A18)+2,0)) -> 2020-07-31 | B19: 1958398.163 | C19: 0 | D19: -19944.05 | E19: 0 | F19: 16912.75044 | G19: 85 | H19: 400 | I19: 0 | J19: 1955851.863 | K19: =IF(ISNA(MATCH($A19,StateMonth,0))=TRUE,"month end?",COUNTIF(OFFSET(Statement!$A$3,0,0,MATCH($A19,StateMonth,0),2),"2")) -> 16
A20: =IF(ISNUMBER(A19)=FALSE,DATE(YEAR(OFFSET(Statement!$A$3,1,0,1,1)),MONTH(OFFSET(Statement!$A$3,1,0,1,1))+1,0),DATE(YEAR(A19),MONTH(A19)+2,0)) -> 2020-08-31 | B20: 1955851.863 | C20: 0 | D20: -19944.05 | E20: 0 | F20: 16890.58368 | G20: 85 | H20: 400 | I20: 0 | J20: 1953283.397 | K20: =IF(ISNA(MATCH($A20,StateMonth,0))=TRUE,"month end?",COUNTIF(OFFSET(Statement!$A$3,0,0,MATCH($A20,StateMonth,0),2),"2")) -> 17
A21: =IF(ISNUMBER(A20)=FALSE,DATE(YEAR(OFFSET(Statement!$A$3,1,0,1,1)),MONTH(OFFSET(Statement!$A$3,1,0,1,1))+1,0),DATE(YEAR(A20),MONTH(A20)+2,0)) -> 2020-09-30 | B21: 1953283.397 | C21: 0 | D21: -19944.05 | E21: 0 | F21: 16325.16368 | G21: 85 | H21: 400 | I21: 0 | J21: 1950149.51 | K21: =IF(ISNA(MATCH($A21,StateMonth,0))=TRUE,"month end?",COUNTIF(OFFSET(Statement!$A$3,0,0,MATCH($A21,StateMonth,0),2),"2")) -> 18
A22: =IF(ISNUMBER(A21)=FALSE,DATE(YEAR(OFFSET(Statement!$A$3,1,0,1,1)),MONTH(OFFSET(Statement!$A$3,1,0,1,1))+1,0),DATE(YEAR(A21),MONTH(A21)+2,0)) -> 2020-10-31 | B22: 1950149.51 | C22: 0 | D22: -19944.05 | E22: 0 | F22: 16840.94196 | G22: 85 | H22: 400 | I22: 0 | J22: 1947531.402 | K22: =IF(ISNA(MATCH($A22,StateMonth,0))=TRUE,"month end?",COUNTIF(OFFSET(Statement!$A$3,0,0,MATCH($A22,StateMonth,0),2),"2")) -> 19
A23: =IF(ISNUMBER(A22)=FALSE,DATE(YEAR(OFFSET(Statement!$A$3,1,0,1,1)),MONTH(OFFSET(Statement!$A$3,1,0,1,1))+1,0),DATE(YEAR(A22),MONTH(A22)+2,0)) -> 2020-11-30 | B23: 1947531.402 | C23: 0 | D23: -19944.05 | E23: 0 | F23: 16276.7051 | G23: 85 | H23: 400 | I23: 0 | J23: 1944349.058 | K23: =IF(ISNA(MATCH($A23,StateMonth,0))=TRUE,"month end?",COUNTIF(OFFSET(Statement!$A$3,0,0,MATCH($A23,StateMonth,0),2),"2")) -> 20
A24: =IF(ISNUMBER(A23)=FALSE,DATE(YEAR(OFFSET(Statement!$A$3,1,0,1,1)),MONTH(OFFSET(Statement!$A$3,1,0,1,1))+1,0),DATE(YEAR(A23),MONTH(A23)+2,0)) -> 2020-12-31 | B24: 1944349.058 | C24: 0 | D24: -19944.05 | E24: 0 | F24: 16790.44624 | G24: 85 | H24: 400 | I24: 0 | J24: 1941680.454 | K24: =IF(ISNA(MATCH($A24,StateMonth,0))=TRUE,"month end?",COUNTIF(OFFSET(Statement!$A$3,0,0,MATCH($A24,StateMonth,0),2),"2")) -> 21

Sheet Review (hidden)
A1: Loan Review
A3: Review Date | B3: 44196 | C3: =IF(B6="Error","No transactions recorded for this period. Select a new period!","") -> 
A5: Loan Period | B5: =InitialAmort!$D$5 -> 240
A6: Number of Actual Repayments | B6: =IF(ISNUMBER(VLOOKUP($B$3,Summary!$A$4:K260,COLUMN(Summary!$K$3),0))=FALSE,"Error",VLOOKUP($B$3,Summary!$A$4:K260,COLUMN(Summary!$K$3),0)) -> 21
A7: Remaining Loan Repayments | B7: =InitialAmort!$D$5-B6 -> 219
A8: © www.excel-skills.com
A9: Loan History (as at review date) | B9: Initial Amortization | C9: Actual Loan | D9: Difference | F9: Loan Period Summary | G9: Initial Amortization | H9: Actual Loan: Standard | I9: Actual Loan: Forecast
A10: Loan Advances | B10: =InitialAmort!$D$3 -> 2000000 | C10: =SUM(OFFSET(Summary!$A$3,1,2,MATCH(Review!$B$3,ReviewDates,0),1)) -> 2000000 | D10: =B10-C10 -> 0 | F10: Total Interest Charges | G10: =B17+B24 -> 2632103.896 | H10: =C24+C17 -> 2707082.27 | I10: =D24+C17 -> 2707082.27
F11: Total Capital Repayments | G11: =B23+B16 -> 2000000 | H11: =C23+C16 -> 2000000 | I11: =D23+C16 -> 2000000
A12: Scheduled Loan Repayments | B12: =IF(ISNA(MATCH(Review!$B$3,InitialAmort!$A$9:$A$368,0))=TRUE,0,SUM(OFFSET(InitialAmort!$A$8,1,3,MATCH(Review!$B$3,InitialAmort!$A$9:$A$368,0),1))) -> 405309.0909 | C12: =-SUM(OFFSET(Summary!$A$3,1,3,MATCH(Review!$B$3,ReviewDates,0),1)) -> 417136.09 | D12: =B12-C12 -> -11826.99907 | F12: Total Loan Repayments | G12: =SUM(G10:G11) -> 4632103.896 | H12: =SUM(H10:H11) -> 4707082.27 | I12: =SUM(I10:I11) -> 4707082.27
A13: Ad Hoc Loan Repayments | B13: 0 | C13: =-SUM(OFFSET(Summary!$A$3,1,4,MATCH(Review!$B$3,ReviewDates,0),1)) -> 0 | D13: 0 | F13: Interest: Actual vs Initial Amortization | H13: =G10-H10 -> -74978.37382
B14: =SUM(B12:B13) -> 405309.0909 | C14: =SUM(C12:C13) -> 417136.09 | D14: =SUM(D12:D13) -> -11826.99907 | F14: Actual Interest: Amortization vs Forecast | I14: =H10-I10 -> 0
A15: Loan Repayment Breakdown | F15: Effective Annual Interest Rate | G15: =RATE(InitialAmort!$D$5,-SUM($G$10:$G$11)/InitialAmort!$D$5,$G$11,0,0)*12 -> 0.1 | H15: =IF(H11<0.009,0,RATE(InitialAmort!$D$5,-SUM($H$10:$H$11)/InitialAmort!$D$5,$H$11,0,0)*12) -> 0.1023498973 | I15: =IF(I$11<0.009,0,RATE(InitialAmort!$D$5,-SUM($I$10:$I$11)/InitialAmort!$D$5,$I$11,0,0)*12) -> 0.1023498973
A16: Capital Repayment | B16: =IF(ISNA(MATCH(Review!$B$3,InitialAmort!$A$9:$A$368,0))=TRUE,0,SUM(OFFSET(InitialAmort!$A$8,1,5,MATCH(Review!$B$3,InitialAmort!$A$9:$A$368,0),1))) -> 60170.82589 | C16: =C14-C17-C18 -> 58319.5462 | D16: 1851.279686
A17: Interest Repayment | B17: =IF(ISNA(MATCH(Review!$B$3,InitialAmort!$A$9:$A$368,0))=TRUE,0,SUM(OFFSET(InitialAmort!$A$8,1,4,MATCH(Review!$B$3,InitialAmort!$A$9:$A$368,0),1))) -> 345138.265 | C17: =SUM(OFFSET(Summary!$A$3,1,5,MATCH(Review!$B$3,ReviewDates,0),1)) -> 349051.5438 | D17: -3913.278755
A18: Other Costs | B18: 0 | C18: =SUM(OFFSET(Summary!$A$3,1,6,MATCH(Review!$B$3,ReviewDates,0),3)) -> 9765 | D18: -9765
A20: Outstanding Loan Balance | B20: =B10-B16 -> 1939829.174 | C20: =C10-C16 -> 1941680.454 | D20: =B20-C20 -> -1851.279686
A22: Remaining Loan Repayments | B22: Initial Amortization | C22: Actual Loan: Standard | D22: Actual Loan: Forecast
A23: Capital | B23: =InitialAmort!F369-Review!B16 -> 1939829.174 | C23: =ForecastAmort!N369 -> 1941680.454 | D23: =ForecastAmort!G369 -> 1941680.454
A24: Interest | B24: =InitialAmort!E369-Review!B17 -> 2286965.631 | C24: =ForecastAmort!M369 -> 2358030.726 | D24: =ForecastAmort!F369 -> 2358030.726
A25: Total Remaining Loan Repayments | B25: =SUM(B23:B24) -> 4226794.805 | C25: =SUM(C23:C24) -> 4299711.18 | D25: =SUM(D23:D24) -> 4299711.18

Sheet InitialAmort (hidden)
A1: Initial Loan Amortization Table
A3: Principle Loan Amount | D3: 2000000 | H3: =Review!C10 -> 2000000
A4: Annual Interest Rate | D4: 0.1
A5: Loan Period (in Months) | D5: 240
A6: Repayment Commencement Date | D6: 43556
A7: © www.excel-skills.com
A8: Month | B8: Repayment Number | C8: Opening Balance | D8: Loan Repayment | E8: Interest Charged | F8: Capital Repaid | G8: Closing Balance | H8: % Outstanding
A9: =DATE(YEAR($D$6),MONTH($D$6)+1,1-1) -> 2019-04-30 | B9: 1 | C9: =$D$3 -> 2000000 | D9: =-PMT($D$4/12,$D$5,$D$3,0,0) -> 19300.4329 | E9: =C9*$D$4/12 -> 16666.66667 | F9: =D9-E9 -> 2633.766235 | G9: =C9-F9 -> 1997366.234 | H9: =G9/$D$3 -> 0.9986831169
A10: =DATE(YEAR(A9),MONTH(A9)+2,1-1) -> 2019-05-31 | B10: 2 | C10: =IF(ROUND(G9,0)>0,G9,0) -> 1997366.234 | D10: =IF($D$5+1-B10=0,0,D9) -> 19300.4329 | E10: 16644.71861 | F10: 2655.714287 | G10: 1994710.519 | H10: 0.9973552597
A11: 2019-06-30 | B11: 3 | C11: 1994710.519 | D11: 19300.4329 | E11: 16622.58766 | F11: 2677.845239 | G11: 1992032.674 | H11: 0.9960163371
A12: 2019-07-31 | B12: 4 | C12: 1992032.674 | D12: 19300.4329 | E12: 16600.27229 | F12: 2700.160616 | G12: 1989332.514 | H12: 0.9946662568
A13: 2019-08-31 | B13: 5 | C13: 1989332.514 | D13: 19300.4329 | E13: 16577.77095 | F13: 2722.661955 | G13: 1986609.852 | H13: 0.9933049258
A14: 2019-09-30 | B14: 6 | C14: 1986609.852 | D14: 19300.4329 | E14: 16555.0821 | F14: 2745.350804 | G14: 1983864.501 | H14: 0.9919322504
A15: 2019-10-31 | B15: 7 | C15: 1983864.501 | D15: 19300.4329 | E15: 16532.20417 | F15: 2768.228728 | G15: 1981096.272 | H15: 0.9905481361
A16: 2019-11-30 | B16: 8 | C16: 1981096.272 | D16: 19300.4329 | E16: 16509.1356 | F16: 2791.2973 | G16: 1978304.975 | H16: 0.9891524874
A17: 2019-12-31 | B17: 9 | C17: 1978304.975 | D17: 19300.4329 | E17: 16485.87479 | F17: 2814.558111 | G17: 1975490.417 | H17: 0.9877452084
A18: 2020-01-31 | B18: 10 | C18: 1975490.417 | D18: 19300.4329 | E18: 16462.42014 | F18: 2838.012762 | G18: 1972652.404 | H18: 0.986326202
A19: 2020-02-29 | B19: 11 | C19: 1972652.404 | D19: 19300.4329 | E19: 16438.77003 | F19: 2861.662868 | G19: 1969790.741 | H19: 0.9848953705
A20: 2020-03-31 | B20: 12 | C20: 1969790.741 | D20: 19300.4329 | E20: 16414.92284 | F20: 2885.510059 | G20: 1966905.231 | H20: 0.9834526155
A21: 2020-04-30 | B21: 13 | C21: 1966905.231 | D21: 19300.4329 | E21: 16390.87693 | F21: 2909.555976 | G21: 1963995.675 | H21: 0.9819978375
A22: 2020-05-31 | B22: 14 | C22: 1963995.675 | D22: 19300.4329 | E22: 16366.63063 | F22: 2933.802276 | G22: 1961061.873 | H22: 0.9805309364
A23: 2020-06-30 | B23: 15 | C23: 1961061.873 | D23: 19300.4329 | E23: 16342.18227 | F23: 2958.250628 | G23: 1958103.622 | H23: 0.9790518111
A24: 2020-07-31 | B24: 16 | C24: 1958103.622 | D24: 19300.4329 | E24: 16317.53018 | F24: 2982.902717 | G24: 1955120.719 | H24: 0.9775603597
A25: 2020-08-31 | B25: 17 | C25: 1955120.719 | D25: 19300.4329 | E25: 16292.67266 | F25: 3007.760239 | G25: 1952112.959 | H25: 0.9760564796
A26: 2020-09-30 | B26: 18 | C26: 1952112.959 | D26: 19300.4329 | E26: 16267.60799 | F26: 3032.824908 | G26: 1949080.134 | H26: 0.9745400671
A27: 2020-10-31 | B27: 19 | C27: 1949080.134 | D27: 19300.4329 | E27: 16242.33445 | F27: 3058.098449 | G27: 1946022.036 | H27: 0.9730110179
A28: 2020-11-30 | B28: 20 | C28: 1946022.036 | D28: 19300.4329 | E28: 16216.8503 | F28: 3083.582603 | G28: 1942938.453 | H28: 0.9714692266
A29: 2020-12-31 | B29: 21 | C29: 1942938.453 | D29: 19300.4329 | E29: 16191.15378 | F29: 3109.279124 | G29: 1939829.174 | H29: 0.9699145871
A30: 2021-01-31 | B30: 22 | C30: 1939829.174 | D30: 19300.4329 | E30: 16165.24312 | F30: 3135.189784 | G30: 1936693.984 | H30: 0.9683469922
A31: 2021-02-28 | B31: 23 | C31: 1936693.984 | D31: 19300.4329 | E31: 16139.11654 | F31: 3161.316365 | G31: 1933532.668 | H31: 0.966766334
A32: 2021-03-31 | B32: 24 | C32: 1933532.668 | D32: 19300.4329 | E32: 16112.77223 | F32: 3187.660668 | G32: 1930345.007 | H32: 0.9651725036
A33: 2021-04-30 | B33: 25 | C33: 1930345.007 | D33: 19300.4329 | E33: 16086.20839 | F33: 3214.224507 | G33: 1927130.783 | H33: 0.9635653914
A34: 2021-05-31 | B34: 26 | C34: 1927130.783 | D34: 19300.4329 | E34: 16059.42319 | F34: 3241.009712 | G34: 1923889.773 | H34: 0.9619448865
A35: 2021-06-30 | B35: 27 | C35: 1923889.773 | D35: 19300.4329 | E35: 16032.41478 | F35: 3268.018126 | G35: 1920621.755 | H35: 0.9603108775
A36: 2021-07-31 | B36: 28 | C36: 1920621.755 | D36: 19300.4329 | E36: 16005.18129 | F36: 3295.25161 | G36: 1917326.503 | H36: 0.9586632517
A37: 2021-08-31 | B37: 29 | C37: 1917326.503 | D37: 19300.4329 | E37: 15977.72086 | F37: 3322.71204 | G37: 1914003.791 | H37: 0.9570018957
A38: 2021-09-30 | B38: 30 | C38: 1914003.791 | D38: 19300.4329 | E38: 15950.03159 | F38: 3350.401307 | G38: 1910653.39 | H38: 0.955326695
A39: 2021-10-31 | B39: 31 | C39: 1910653.39 | D39: 19300.4329 | E39: 15922.11158 | F39: 3378.321318 | G39: 1907275.069 | H39: 0.9536375343
A40: 2021-11-30 | B40: 32 | C40: 1907275.069 | D40: 19300.4329 | E40: 15893.95891 | F40: 3406.473996 | G40: 1903868.595 | H40: 0.9519342973
A41: 2021-12-31 | B41: 33 | C41: 1903868.595 | D41: 19300.4329 | E41: 15865.57162 | F41: 3434.861279 | G41: 1900433.733 | H41: 0.9502168667
A42: 2022-01-31 | B42: 34 | C42: 1900433.733 | D42: 19300.4329 | E42: 15836.94778 | F42: 3463.485123 | G42: 1896970.248 | H42: 0.9484851241
A43: 2022-02-28 | B43: 35 | C43: 1896970.248 | D43: 19300.4329 | E43: 15808.0854 | F43: 3492.347499 | G43: 1893477.901 | H43: 0.9467389504
A44: 2022-03-31 | B44: 36 | C44: 1893477.901 | D44: 19300.4329 | E44: 15778.98251 | F44: 3521.450395 | G44: 1889956.45 | H44: 0.9449782252
A45: 2022-04-30 | B45: 37 | C45: 1889956.45 | D45: 19300.4329 | E45: 15749.63709 | F45: 3550.795815 | G45: 1886405.655 | H45: 0.9432028273
A46: 2022-05-31 | B46: 38 | C46: 1886405.655 | D46: 19300.4329 | E46: 15720.04712 | F46: 3580.38578 | G46: 1882825.269 | H46: 0.9414126344
A47: 2022-06-30 | B47: 39 | C47: 1882825.269 | D47: 19300.4329 | E47: 15690.21057 | F47: 3610.222328 | G47: 1879215.046 | H47: 0.9396075232
A48: 2022-07-31 | B48: 40 | C48: 1879215.046 | D48: 19300.4329 | E48: 15660.12539 | F48: 3640.307514 | G48: 1875574.739 | H48: 0.9377873695
A49: 2022-08-31 | B49: 41 | C49: 1875574.739 | D49: 19300.4329 | E49: 15629.78949 | F49: 3670.64341 | G49: 1871904.096 | H49: 0.9359520478
A50: 2022-09-30 | B50: 42 | C50: 1871904.096 | D50: 19300.4329 | E50: 15599.2008 | F50: 3701.232105 | G50: 1868202.863 | H50: 0.9341014317
A51: 2022-10-31 | B51: 43 | C51: 1868202.863 | D51: 19300.4329 | E51: 15568.3572 | F51: 3732.075706 | G51: 1864470.788 | H51: 0.9322353939
A52: 2022-11-30 | B52: 44 | C52: 1864470.788 | D52: 19300.4329 | E52: 15537.25656 | F52: 3763.176337 | G52: 1860707.611 | H52: 0.9303538057
A53: 2022-12-31 | B53: 45 | C53: 1860707.611 | D53: 19300.4329 | E53: 15505.89676 | F53: 3794.53614 | G53: 1856913.075 | H53: 0.9284565376
A54: 2023-01-31 | B54: 46 | C54: 1856913.075 | D54: 19300.4329 | E54: 15474.27563 | F54: 3826.157274 | G54: 1853086.918 | H54: 0.926543459
A55: 2023-02-28 | B55: 47 | C55: 1853086.918 | D55: 19300.4329 | E55: 15442.39098 | F55: 3858.041918 | G55: 1849228.876 | H55: 0.924614438
A56: 2023-03-31 | B56: 48 | C56: 1849228.876 | D56: 19300.4329 | E56: 15410.24063 | F56: 3890.192268 | G56: 1845338.684 | H56: 0.9226693419
A57: 2023-04-30 | B57: 49 | C57: 1845338.684 | D57: 19300.4329 | E57: 15377.82236 | F57: 3922.610537 | G57: 1841416.073 | H57: 0.9207080366
A58: 2023-05-31 | B58: 50 | C58: 1841416.073 | D58: 19300.4329 | E58: 15345.13394 | F58: 3955.298958 | G58: 1837460.774 | H58: 0.9187303871
A59: 2023-06-30 | B59: 51 | C59: 1837460.774 | D59: 19300.4329 | E59: 15312.17312 | F59: 3988.259782 | G59: 1833472.515 | H59: 0.9167362573
A60: 2023-07-31 | B60: 52 | C60: 1833472.515 | D60: 19300.4329 | E60: 15278.93762 | F60: 4021.495281 | G60: 1829451.019 | H60: 0.9147255096
A61: 2023-08-31 | B61: 53 | C61: 1829451.019 | D61: 19300.4329 | E61: 15245.42516 | F61: 4055.007741 | G61: 1825396.011 | H61: 0.9126980057
A62: 2023-09-30 | B62: 54 | C62: 1825396.011 | D62: 19300.4329 | E62: 15211.63343 | F62: 4088.799472 | G62: 1821307.212 | H62: 0.910653606
A63: 2023-10-31 | B63: 55 | C63: 1821307.212 | D63: 19300.4329 | E63: 15177.5601 | F63: 4122.872801 | G63: 1817184.339 | H63: 0.9085921696
A64: 2023-11-30 | B64: 56 | C64: 1817184.339 | D64: 19300.4329 | E64: 15143.20283 | F64: 4157.230075 | G64: 1813027.109 | H64: 0.9065135546
A65: 2023-12-31 | B65: 57 | C65: 1813027.109 | D65: 19300.4329 | E65: 15108.55924 | F65: 4191.873659 | G65: 1808835.235 | H65: 0.9044176177
A66: 2024-01-31 | B66: 58 | C66: 1808835.235 | D66: 19300.4329 | E66: 15073.62696 | F66: 4226.805939 | G66: 1804608.43 | H66: 0.9023042148
A67: 2024-02-29 | B67: 59 | C67: 1804608.43 | D67: 19300.4329 | E67: 15038.40358 | F67: 4262.029322 | G67: 1800346.4 | H67: 0.9001732001
A68: 2024-03-31 | B68: 60 | C68: 1800346.4 | D68: 19300.4329 | E68: 15002.88667 | F68: 4297.546233 | G68: 1796048.854 | H68: 0.898024427
A69: 2024-04-30 | B69: 61 | C69: 1796048.854 | D69: 19300.4329 | E69: 14967.07378 | F69: 4333.359118 | G69: 1791715.495 | H69: 0.8958577474
A70: 2024-05-31 | B70: 62 | C70: 1791715.495 | D70: 19300.4329 | E70: 14930.96246 | F70: 4369.470444 | G70: 1787346.024 | H70: 0.8936730122
A71: 2024-06-30 | B71: 63 | C71: 1787346.024 | D71: 19300.4329 | E71: 14894.5502 | F71: 4405.882698 | G71: 1782940.142 | H71: 0.8914700709
A72: 2024-07-31 | B72: 64 | C72: 1782940.142 | D72: 19300.4329 | E72: 14857.83451 | F72: 4442.598387 | G72: 1778497.543 | H72: 0.8892487717
A73: 2024-08-31 | B73: 65 | C73: 1778497.543 | D73: 19300.4329 | E73: =C73*$D$4/12 -> 14820.81286 | F73: =D73-E73 -> 4479.62004 | G73: =C73-F73 -> 1774017.923 | H73: =G73/$D$3 -> 0.8870089616
A74: =DATE(YEAR(A73),MONTH(A73)+2,1-1) -> 2024-09-30 | B74: 66 | C74: =IF(ROUND(G73,0)>0,G73,0) -> 1774017.923 | D74: =IF($D$5+1-B74=0,0,D73) -> 19300.4329 | E74: 14783.48269 | F74: 4516.950207 | G74: 1769500.973 | H74: 0.8847504865
A75: 2024-10-31 | B75: 67 | C75: 1769500.973 | D75: 19300.4329 | E75: 14745.84144 | F75: 4554.591459 | G75: 1764946.382 | H75: 0.8824731908
A76: 2024-11-30 | B76: 68 | C76: 1764946.382 | D76: 19300.4329 | E76: 14707.88651 | F76: 4592.546388 | G76: 1760353.835 | H76: 0.8801769176
A77: 2024-12-31 | B77: 69 | C77: 1760353.835 | D77: 19300.4329 | E77: 14669.61529 | F77: 4630.817608 | G77: 1755723.018 | H77: 0.8778615088
A78: 2025-01-31 | B78: 70 | C78: 1755723.018 | D78: 19300.4329 | E78: 14631.02515 | F78: 4669.407755 | G78: 1751053.61 | H78: 0.8755268049
A79: 2025-02-28 | B79: 71 | C79: 1751053.61 | D79: 19300.4329 | E79: 14592.11342 | F79: 4708.319486 | G79: 1746345.29 | H79: 0.8731726452
A80: 2025-03-31 | B80: 72 | C80: 1746345.29 | D80: 19300.4329 | E80: 14552.87742 | F80: 4747.555482 | G80: 1741597.735 | H80: 0.8707988675
A81: 2025-04-30 | B81: 73 | C81: 1741597.735 | D81: 19300.4329 | E81: 14513.31446 | F81: 4787.118444 | G81: 1736810.616 | H81: 0.8684053082
A82: 2025-05-31 | B82: 74 | C82: 1736810.616 | D82: 19300.4329 | E82: 14473.4218 | F82: 4827.011098 | G82: 1731983.605 | H82: 0.8659918027
A83: 2025-06-30 | B83: 75 | C83: 1731983.605 | D83: 19300.4329 | E83: 14433.19671 | F83: 4867.23619 | G83: 1727116.369 | H83: 0.8635581846
A84: 2025-07-31 | B84: 76 | C84: 1727116.369 | D84: 19300.4329 | E84: 14392.63641 | F84: 4907.796492 | G84: 1722208.573 | H84: 0.8611042863
A85: 2025-08-31 | B85: 77 | C85: 1722208.573 | D85: 19300.4329 | E85: 14351.73811 | F85: 4948.694796 | G85: 1717259.878 | H85: 0.8586299389
A86: 2025-09-30 | B86: 78 | C86: 1717259.878 | D86: 19300.4329 | E86: 14310.49898 | F86: 4989.933919 | G86: 1712269.944 | H86: 0.856134972
A87: 2025-10-31 | B87: 79 | C87: 1712269.944 | D87: 19300.4329 | E87: 14268.9162 | F87: 5031.516702 | G87: 1707238.427 | H87: 0.8536192136
A88: 2025-11-30 | B88: 80 | C88: 1707238.427 | D88: 19300.4329 | E88: 14226.98689 | F88: 5073.446008 | G88: 1702164.981 | H88: 0.8510824906
A89: 2025-12-31 | B89: 81 | C89: 1702164.981 | D89: 19300.4329 | E89: 14184.70818 | F89: 5115.724724 | G89: 1697049.257 | H89: 0.8485246283
A90: 2026-01-31 | B90: 82 | C90: 1697049.257 | D90: 19300.4329 | E90: 14142.07714 | F90: 5158.355764 | G90: 1691890.901 | H90: 0.8459454504
A91: 2026-02-28 | B91: 83 | C91: 1691890.901 | D91: 19300.4329 | E91: 14099.09084 | F91: 5201.342062 | G91: 1686689.559 | H91: 0.8433447794
A92: 2026-03-31 | B92: 84 | C92: 1686689.559 | D92: 19300.4329 | E92: 14055.74632 | F92: 5244.686579 | G92: 1681444.872 | H92: 0.8407224361
A93: 2026-04-30 | B93: 85 | C93: 1681444.872 | D93: 19300.4329 | E93: 14012.0406 | F93: 5288.3923 | G93: 1676156.48 | H93: 0.8380782399
A94: 2026-05-31 | B94: 86 | C94: 1676156.48 | D94: 19300.4329 | E94: 13967.97067 | F94: 5332.462236 | G94: 1670824.018 | H94: 0.8354120088
A95: 2026-06-30 | B95: 87 | C95: 1670824.018 | D95: 19300.4329 | E95: 13923.53348 | F95: 5376.899421 | G95: 1665447.118 | H95: 0.8327235591
A96: 2026-07-31 | B96: 88 | C96: 1665447.118 | D96: 19300.4329 | E96: 13878.72598 | F96: 5421.706917 | G96: 1660025.411 | H96: 0.8300127056
A97: 2026-08-31 | B97: 89 | C97: 1660025.411 | D97: 19300.4329 | E97: 13833.54509 | F97: 5466.887808 | G97: 1654558.523 | H97: 0.8272792617
A98: 2026-09-30 | B98: 90 | C98: 1654558.523 | D98: 19300.4329 | E98: 13787.9877 | F98: 5512.445206 | G98: 1649046.078 | H98: 0.8245230391
A99: 2026-10-31 | B99: 91 | C99: 1649046.078 | D99: 19300.4329 | E99: 13742.05065 | F99: 5558.382249 | G99: 1643487.696 | H99: 0.821743848
A100: 2026-11-30 | B100: 92 | C100: 1643487.696 | D100: 19300.4329 | E100: 13695.7308 | F100: 5604.702101 | G100: 1637882.994 | H100: 0.818941497
A101: 2026-12-31 | B101: 93 | C101: 1637882.994 | D101: 19300.4329 | E101: 13649.02495 | F101: 5651.407952 | G101: 1632231.586 | H101: 0.816115793
A102: 2027-01-31 | B102: 94 | C102: 1632231.586 | D102: 19300.4329 | E102: 13601.92988 | F102: 5698.503019 | G102: 1626533.083 | H102: 0.8132665415
A103: 2027-02-28 | B103: 95 | C103: 1626533.083 | D103: 19300.4329 | E103: 13554.44236 | F103: 5745.990544 | G103: 1620787.092 | H103: 0.8103935462
A104: 2027-03-31 | B104: 96 | C104: 1620787.092 | D104: 19300.4329 | E104: 13506.5591 | F104: 5793.873798 | G104: 1614993.219 | H104: 0.8074966093
A105: 2027-04-30 | B105: 97 | C105: 1614993.219 | D105: 19300.4329 | E105: 13458.27682 | F105: 5842.15608 | G105: 1609151.063 | H105: 0.8045755313
A106: 2027-05-31 | B106: 98 | C106: 1609151.063 | D106: 19300.4329 | E106: 13409.59219 | F106: 5890.840714 | G106: 1603260.222 | H106: 0.8016301109
A107: 2027-06-30 | B107: 99 | C107: 1603260.222 | D107: 19300.4329 | E107: 13360.50185 | F107: 5939.931053 | G107: 1597320.291 | H107: 0.7986601454
A108: 2027-07-31 | B108: 100 | C108: 1597320.291 | D108: 19300.4329 | E108: 13311.00242 | F108: 5989.430479 | G108: 1591330.86 | H108: 0.7956654301
A109: 2027-08-31 | B109: 101 | C109: 1591330.86 | D109: 19300.4329 | E109: 13261.0905 | F109: 6039.342399 | G109: 1585291.518 | H109: 0.7926457589
A110: 2027-09-30 | B110: 102 | C110: 1585291.518 | D110: 19300.4329 | E110: 13210.76265 | F110: 6089.670253 | G110: 1579201.848 | H110: 0.7896009238
A111: 2027-10-31 | B111: 103 | C111: 1579201.848 | D111: 19300.4329 | E111: 13160.0154 | F111: 6140.417505 | G111: 1573061.43 | H111: 0.7865307151
A112: 2027-11-30 | B112: 104 | C112: 1573061.43 | D112: 19300.4329 | E112: 13108.84525 | F112: 6191.587651 | G112: 1566869.842 | H112: 0.7834349212
A113: 2027-12-31 | B113: 105 | C113: 1566869.842 | D113: 19300.4329 | E113: 13057.24869 | F113: 6243.184214 | G113: 1560626.658 | H113: 0.7803133291
A114: 2028-01-31 | B114: 106 | C114: 1560626.658 | D114: 19300.4329 | E114: 13005.22215 | F114: 6295.210749 | G114: 1554331.447 | H114: 0.7771657237
A115: 2028-02-29 | B115: 107 | C115: 1554331.447 | D115: 19300.4329 | E115: 12952.76206 | F115: 6347.670839 | G115: 1547983.777 | H115: 0.7739918883
A116: 2028-03-31 | B116: 108 | C116: 1547983.777 | D116: 19300.4329 | E116: 12899.86481 | F116: 6400.568096 | G116: 1541583.209 | H116: 0.7707916043
A117: 2028-04-30 | B117: 109 | C117: 1541583.209 | D117: 19300.4329 | E117: 12846.52674 | F117: 6453.906164 | G117: 1535129.302 | H117: 0.7675646512
A118: 2028-05-31 | B118: 110 | C118: 1535129.302 | D118: 19300.4329 | E118: 12792.74419 | F118: 6507.688715 | G118: 1528621.614 | H118: 0.7643108068
A119: 2028-06-30 | B119: 111 | C119: 1528621.614 | D119: 19300.4329 | E119: 12738.51345 | F119: 6561.919454 | G119: 1522059.694 | H119: 0.7610298471
A120: 2028-07-31 | B120: 112 | C120: 1522059.694 | D120: 19300.4329 | E120: 12683.83079 | F120: 6616.602116 | G120: 1515443.092 | H120: 0.7577215461
A121: 2028-08-31 | B121: 113 | C121: 1515443.092 | D121: 19300.4329 | E121: 12628.69243 | F121: 6671.740467 | G121: 1508771.352 | H121: 0.7543856758
A122: 2028-09-30 | B122: 114 | C122: 1508771.352 | D122: 19300.4329 | E122: 12573.0946 | F122: 6727.338304 | G122: 1502044.013 | H122: 0.7510220067
A123: 2028-10-31 | B123: 115 | C123: 1502044.013 | D123: 19300.4329 | E123: 12517.03344 | F123: 6783.399457 | G123: 1495260.614 | H123: 0.7476303069
A124: 2028-11-30 | B124: 116 | C124: 1495260.614 | D124: 19300.4329 | E124: 12460.50512 | F124: 6839.927786 | G124: 1488420.686 | H124: 0.744210343
A125: 2028-12-31 | B125: 117 | C125: 1488420.686 | D125: 19300.4329 | E125: 12403.50572 | F125: 6896.927184 | G125: 1481523.759 | H125: 0.7407618795
A126: 2029-01-31 | B126: 118 | C126: 1481523.759 | D126: 19300.4329 | E126: 12346.03132 | F126: 6954.401577 | G126: 1474569.357 | H126: 0.7372846787
A127: 2029-02-28 | B127: 119 | C127: 1474569.357 | D127: 19300.4329 | E127: 12288.07798 | F127: 7012.354924 | G127: 1467557.002 | H127: 0.7337785012
A128: 2029-03-31 | B128: 120 | C128: 1467557.002 | D128: 19300.4329 | E128: 12229.64169 | F128: 7070.791215 | G128: 1460486.211 | H128: 0.7302431056
A129: 2029-04-30 | B129: 121 | C129: 1460486.211 | D129: 19300.4329 | E129: 12170.71843 | F129: 7129.714475 | G129: 1453356.497 | H129: 0.7266782484
A130: 2029-05-31 | B130: 122 | C130: 1453356.497 | D130: 19300.4329 | E130: 12111.30414 | F130: 7189.128762 | G130: 1446167.368 | H130: 0.723083684
A131: 2029-06-30 | B131: 123 | C131: 1446167.368 | D131: 19300.4329 | E131: 12051.39473 | F131: 7249.038169 | G131: 1438918.33 | H131: 0.7194591649
A132: 2029-07-31 | B132: 124 | C132: 1438918.33 | D132: 19300.4329 | E132: 11990.98608 | F132: 7309.44682 | G132: 1431608.883 | H132: 0.7158044415
A133: 2029-08-31 | B133: 125 | C133: 1431608.883 | D133: 19300.4329 | E133: 11930.07402 | F133: 7370.358877 | G133: 1424238.524 | H133: 0.712119262
A134: 2029-09-30 | B134: 126 | C134: 1424238.524 | D134: 19300.4329 | E134: 11868.65437 | F134: 7431.778534 | G134: 1416806.746 | H134: 0.7084033728
A135: 2029-10-31 | B135: 127 | C135: 1416806.746 | D135: 19300.4329 | E135: 11806.72288 | F135: 7493.710022 | G135: 1409313.036 | H135: 0.7046565178
A136: 2029-11-30 | B136: 128 | C136: 1409313.036 | D136: 19300.4329 | E136: 11744.2753 | F136: 7556.157605 | G136: 1401756.878 | H136: 0.700878439
A137: 2029-12-31 | B137: 129 | C137: 1401756.878 | D137: 19300.4329 | E137: =C137*$D$4/12 -> 11681.30732 | F137: =D137-E137 -> 7619.125585 | G137: =C137-F137 -> 1394137.752 | H137: =G137/$D$3 -> 0.6970688762
A138: =DATE(YEAR(A137),MONTH(A137)+2,1-1) -> 2030-01-31 | B138: 130 | C138: =IF(ROUND(G137,0)>0,G137,0) -> 1394137.752 | D138: =IF($D$5+1-B138=0,0,D137) -> 19300.4329 | E138: 11617.8146 | F138: 7682.618299 | G138: 1386455.134 | H138: 0.693227567
A139: 2030-02-28 | B139: 131 | C139: 1386455.134 | D139: 19300.4329 | E139: 11553.79278 | F139: 7746.640118 | G139: 1378708.494 | H139: 0.689354247
A140: 2030-03-31 | B140: 132 | C140: 1378708.494 | D140: 19300.4329 | E140: 11489.23745 | F140: 7811.195452 | G140: 1370897.298 | H140: 0.6854486492
A141: 2030-04-30 | B141: 133 | C141: 1370897.298 | D141: 19300.4329 | E141: 11424.14415 | F141: 7876.288748 | G141: 1363021.01 | H141: 0.6815105049
A142: 2030-05-31 | B142: 134 | C142: 1363021.01 | D142: 19300.4329 | E142: 11358.50841 | F142: 7941.924487 | G142: 1355079.085 | H142: 0.6775395426
A143: 2030-06-30 | B143: 135 | C143: 1355079.085 | D143: 19300.4329 | E143: 11292.32571 | F143: 8008.107191 | G143: 1347070.978 | H143: 0.673535489
A144: 2030-07-31 | B144: 136 | C144: 1347070.978 | D144: 19300.4329 | E144: 11225.59148 | F144: 8074.841418 | G144: 1338996.137 | H144: 0.6694980683
A145: 2030-08-31 | B145: 137 | C145: 1338996.137 | D145: 19300.4329 | E145: 11158.30114 | F145: 8142.131763 | G145: 1330854.005 | H145: 0.6654270024
A146: 2030-09-30 | B146: 138 | C146: 1330854.005 | D146: 19300.4329 | E146: 11090.45004 | F146: 8209.982861 | G146: 1322644.022 | H146: 0.661322011
A147: 2030-10-31 | B147: 139 | C147: 1322644.022 | D147: 19300.4329 | E147: 11022.03352 | F147: 8278.399385 | G147: 1314365.623 | H147: 0.6571828113
A148: 2030-11-30 | B148: 140 | C148: 1314365.623 | D148: 19300.4329 | E148: 10953.04686 | F148: 8347.386046 | G148: 1306018.237 | H148: 0.6530091183
A149: 2030-12-31 | B149: 141 | C149: 1306018.237 | D149: 19300.4329 | E149: 10883.4853 | F149: 8416.947597 | G149: 1297601.289 | H149: 0.6488006445
A150: 2031-01-31 | B150: 142 | C150: 1297601.289 | D150: 19300.4329 | E150: 10813.34407 | F150: 8487.088827 | G150: 1289114.2 | H150: 0.6445571001
A151: 2031-02-28 | B151: 143 | C151: 1289114.2 | D151: 19300.4329 | E151: 10742.61833 | F151: 8557.814567 | G151: 1280556.386 | H151: 0.6402781928
A152: 2031-03-31 | B152: 144 | C152: 1280556.386 | D152: 19300.4329 | E152: 10671.30321 | F152: 8629.129688 | G152: 1271927.256 | H152: 0.6359636279
A153: 2031-04-30 | B153: 145 | C153: 1271927.256 | D153: 19300.4329 | E153: 10599.3938 | F153: 8701.039102 | G153: 1263226.217 | H153: 0.6316131084
A154: 2031-05-31 | B154: 146 | C154: 1263226.217 | D154: 19300.4329 | E154: 10526.88514 | F154: 8773.547762 | G154: 1254452.669 | H154: 0.6272263345
A155: 2031-06-30 | B155: 147 | C155: 1254452.669 | D155: 19300.4329 | E155: 10453.77224 | F155: 8846.66066 | G155: 1245606.008 | H155: 0.6228030042
A156: 2031-07-31 | B156: 148 | C156: 1245606.008 | D156: 19300.4329 | E156: 10380.05007 | F156: 8920.382832 | G156: 1236685.626 | H156: 0.6183428128
A157: 2031-08-31 | B157: 149 | C157: 1236685.626 | D157: 19300.4329 | E157: 10305.71355 | F157: 8994.719355 | G157: 1227690.906 | H157: 0.6138454531
A158: 2031-09-30 | B158: 150 | C158: 1227690.906 | D158: 19300.4329 | E158: 10230.75755 | F158: 9069.67535 | G158: 1218621.231 | H158: 0.6093106154
A159: 2031-10-31 | B159: 151 | C159: 1218621.231 | D159: 19300.4329 | E159: 10155.17692 | F159: 9145.255978 | G159: 1209475.975 | H159: 0.6047379874
A160: 2031-11-30 | B160: 152 | C160: 1209475.975 | D160: 19300.4329 | E160: 10078.96646 | F160: 9221.466444 | G160: 1200254.508 | H160: 0.6001272542
A161: 2031-12-31 | B161: 153 | C161: 1200254.508 | D161: 19300.4329 | E161: 10002.1209 | F161: 9298.311998 | G161: 1190956.196 | H161: 0.5954780982
A162: 2032-01-31 | B162: 154 | C162: 1190956.196 | D162: 19300.4329 | E162: 9924.63497 | F162: 9375.797931 | G162: 1181580.398 | H162: 0.5907901992
A163: 2032-02-29 | B163: 155 | C163: 1181580.398 | D163: 19300.4329 | E163: 9846.503321 | F163: 9453.929581 | G163: 1172126.469 | H163: 0.5860632345
A164: 2032-03-31 | B164: 156 | C164: 1172126.469 | D164: 19300.4329 | E164: 9767.720574 | F164: 9532.712327 | G164: 1162593.757 | H164: 0.5812968783
A165: 2032-04-30 | B165: 157 | C165: 1162593.757 | D165: 19300.4329 | E165: 9688.281305 | F165: 9612.151597 | G165: 1152981.605 | H165: 0.5764908025
A166: 2032-05-31 | B166: 158 | C166: 1152981.605 | D166: 19300.4329 | E166: 9608.180042 | F166: 9692.25286 | G166: 1143289.352 | H166: 0.5716446761
A167: 2032-06-30 | B167: 159 | C167: 1143289.352 | D167: 19300.4329 | E167: 9527.411268 | F167: 9773.021634 | G167: 1133516.33 | H167: 0.5667581652
A168: 2032-07-31 | B168: 160 | C168: 1133516.33 | D168: 19300.4329 | E168: 9445.969421 | F168: 9854.463481 | G168: 1123661.867 | H168: 0.5618309335
A169: 2032-08-31 | B169: 161 | C169: 1123661.867 | D169: 19300.4329 | E169: 9363.848892 | F169: 9936.58401 | G169: 1113725.283 | H169: 0.5568626415
A170: 2032-09-30 | B170: 162 | C170: 1113725.283 | D170: 19300.4329 | E170: 9281.044025 | F170: 10019.38888 | G170: 1103705.894 | H170: 0.5518529471
A171: 2032-10-31 | B171: 163 | C171: 1103705.894 | D171: 19300.4329 | E171: 9197.549118 | F171: 10102.88378 | G171: 1093603.01 | H171: 0.5468015052
A172: 2032-11-30 | B172: 164 | C172: 1093603.01 | D172: 19300.4329 | E172: 9113.358419 | F172: 10187.07448 | G172: 1083415.936 | H172: 0.5417079679
A173: 2032-12-31 | B173: 165 | C173: 1083415.936 | D173: 19300.4329 | E173: 9028.466132 | F173: 10271.96677 | G173: 1073143.969 | H173: 0.5365719845
A174: 2033-01-31 | B174: 166 | C174: 1073143.969 | D174: 19300.4329 | E174: 8942.866409 | F174: 10357.56649 | G174: 1062786.403 | H174: 0.5313932013
A175: 2033-02-28 | B175: 167 | C175: 1062786.403 | D175: 19300.4329 | E175: 8856.553355 | F175: 10443.87955 | G175: 1052342.523 | H175: 0.5261712615
A176: 2033-03-31 | B176: 168 | C176: 1052342.523 | D176: 19300.4329 | E176: 8769.521025 | F176: 10530.91188 | G176: 1041811.611 | H176: 0.5209058056
A177: 2033-04-30 | B177: 169 | C177: 1041811.611 | D177: 19300.4329 | E177: 8681.763426 | F177: 10618.66948 | G177: 1031192.942 | H177: 0.5155964708
A178: 2033-05-31 | B178: 170 | C178: 1031192.942 | D178: 19300.4329 | E178: 8593.274514 | F178: 10707.15839 | G178: 1020485.783 | H178: 0.5102428917
A179: 2033-06-30 | B179: 171 | C179: 1020485.783 | D179: 19300.4329 | E179: 8504.048194 | F179: 10796.38471 | G179: 1009689.399 | H179: 0.5048446993
A180: 2033-07-31 | B180: 172 | C180: 1009689.399 | D180: 19300.4329 | E180: 8414.078322 | F180: 10886.35458 | G180: 998803.044 | H180: 0.499401522
A181: 2033-08-31 | B181: 173 | C181: 998803.044 | D181: 19300.4329 | E181: 8323.3587 | F181: 10977.0742 | G181: 987825.9698 | H181: 0.4939129849
A182: 2033-09-30 | B182: 174 | C182: 987825.9698 | D182: 19300.4329 | E182: 8231.883082 | F182: 11068.54982 | G182: 976757.42 | H182: 0.48837871
A183: 2033-10-31 | B183: 175 | C183: 976757.42 | D183: 19300.4329 | E183: 8139.645167 | F183: 11160.78773 | G183: 965596.6323 | H183: 0.4827983161
A184: 2033-11-30 | B184: 176 | C184: 965596.6323 | D184: 19300.4329 | E184: 8046.638602 | F184: 11253.7943 | G184: 954342.838 | H184: 0.477171419
A185: 2033-12-31 | B185: 177 | C185: 954342.838 | D185: 19300.4329 | E185: 7952.856983 | F185: 11347.57592 | G185: 942995.262 | H185: 0.471497631
A186: 2034-01-31 | B186: 178 | C186: 942995.262 | D186: 19300.4329 | E186: 7858.29385 | F186: 11442.13905 | G186: 931553.123 | H186: 0.4657765615
A187: 2034-02-28 | B187: 179 | C187: 931553.123 | D187: 19300.4329 | E187: 7762.942692 | F187: 11537.49021 | G187: 920015.6328 | H187: 0.4600078164
A188: 2034-03-31 | B188: 180 | C188: 920015.6328 | D188: 19300.4329 | E188: 7666.79694 | F188: 11633.63596 | G188: 908381.9968 | H188: 0.4541909984
A189: 2034-04-30 | B189: 181 | C189: 908381.9968 | D189: 19300.4329 | E189: 7569.849974 | F189: 11730.58293 | G189: 896651.4139 | H189: 0.4483257069
A190: 2034-05-31 | B190: 182 | C190: 896651.4139 | D190: 19300.4329 | E190: 7472.095116 | F190: 11828.33779 | G190: 884823.0761 | H190: 0.4424115381
A191: 2034-06-30 | B191: 183 | C191: 884823.0761 | D191: 19300.4329 | E191: 7373.525634 | F191: 11926.90727 | G191: 872896.1688 | H191: 0.4364480844
A192: 2034-07-31 | B192: 184 | C192: 872896.1688 | D192: 19300.4329 | E192: 7274.13474 | F192: 12026.29816 | G192: 860869.8707 | H192: 0.4304349353
A193: 2034-08-31 | B193: 185 | C193: 860869.8707 | D193: 19300.4329 | E193: 7173.915589 | F193: 12126.51731 | G193: 848743.3534 | H193: 0.4243716767
A194: 2034-09-30 | B194: 186 | C194: 848743.3534 | D194: 19300.4329 | E194: 7072.861278 | F194: 12227.57162 | G194: 836515.7817 | H194: 0.4182578909
A195: 2034-10-31 | B195: 187 | C195: 836515.7817 | D195: 19300.4329 | E195: 6970.964848 | F195: 12329.46805 | G195: 824186.3137 | H195: 0.4120931568
A196: 2034-11-30 | B196: 188 | C196: 824186.3137 | D196: 19300.4329 | E196: 6868.219281 | F196: 12432.21362 | G196: 811754.1001 | H196: 0.40587705
A197: 2034-12-31 | B197: 189 | C197: 811754.1001 | D197: 19300.4329 | E197: 6764.617501 | F197: 12535.8154 | G197: 799218.2847 | H197: 0.3996091423
A198: 2035-01-31 | B198: 190 | C198: 799218.2847 | D198: 19300.4329 | E198: 6660.152372 | F198: 12640.28053 | G198: 786578.0041 | H198: 0.3932890021
A199: 2035-02-28 | B199: 191 | C199: 786578.0041 | D199: 19300.4329 | E199: 6554.816701 | F199: 12745.6162 | G199: 773832.3879 | H199: 0.386916194
A200: 2035-03-31 | B200: 192 | C200: 773832.3879 | D200: 19300.4329 | E200: 6448.603233 | F200: 12851.82967 | G200: 760980.5583 | H200: 0.3804902791
A201: 2035-04-30 | B201: 193 | C201: 760980.5583 | D201: 19300.4329 | E201: =C201*$D$4/12 -> 6341.504652 | F201: =D201-E201 -> 12958.92825 | G201: =C201-F201 -> 748021.63 | H201: =G201/$D$3 -> 0.374010815
... 168 more rows

Sheet ForecastPmt (hidden)
A1: Loan Repayment Forecast | Ad Hoc Loan Repayments
A3: Review Date | C3: =Review!$B$3 -> 2020-12-31
A4: © www.excel-skills.com
A5: Month | B5: Repayment Number | C5: Ad Hoc Repayment
A6: =Summary!$A$4 -> 2019-04-30 | B6: 1 | C6: 0
A7: =DATE(YEAR(A6),MONTH(A6)+2,1-1) -> 2019-05-31 | B7: 2 | C7: 0
A8: 2019-06-30 | B8: 3 | C8: 0
A9: 2019-07-31 | B9: 4 | C9: 0
A10: 2019-08-31 | B10: 5 | C10: 0
A11: 2019-09-30 | B11: 6 | C11: 0
A12: 2019-10-31 | B12: 7 | C12: 0
A13: 2019-11-30 | B13: 8 | C13: 0
A14: 2019-12-31 | B14: 9 | C14: 0
A15: 2020-01-31 | B15: 10 | C15: 0
A16: 2020-02-29 | B16: 11 | C16: 0
A17: 2020-03-31 | B17: 12 | C17: 0
A18: 2020-04-30 | B18: 13 | C18: 0
A19: 2020-05-31 | B19: 14 | C19: 0
A20: 2020-06-30 | B20: 15 | C20: 0
A21: 2020-07-31 | B21: 16 | C21: 0
A22: 2020-08-31 | B22: 17 | C22: 0
A23: 2020-09-30 | B23: 18 | C23: 0
A24: 2020-10-31 | B24: 19 | C24: 0
A25: 2020-11-30 | B25: 20 | C25: 0
A26: 2020-12-31 | B26: 21 | C26: 0
A27: 2021-01-31 | B27: 22 | C27: 0
A28: 2021-02-28 | B28: 23 | C28: 0
A29: 2021-03-31 | B29: 24 | C29: 0
A30: 2021-04-30 | B30: 25 | C30: 0
A31: 2021-05-31 | B31: 26 | C31: 0
A32: 2021-06-30 | B32: 27 | C32: 0
A33: 2021-07-31 | B33: 28 | C33: 0
A34: 2021-08-31 | B34: 29 | C34: 0
A35: 2021-09-30 | B35: 30 | C35: 0
A36: 2021-10-31 | B36: 31 | C36: 0
A37: 2021-11-30 | B37: 32 | C37: 0
A38: 2021-12-31 | B38: 33 | C38: 0
A39: 2022-01-31 | B39: 34 | C39: 0
A40: 2022-02-28 | B40: 35 | C40: 0
A41: 2022-03-31 | B41: 36 | C41: 0
A42: 2022-04-30 | B42: 37 | C42: 0
A43: 2022-05-31 | B43: 38 | C43: 0
A44: 2022-06-30 | B44: 39 | C44: 0
A45: 2022-07-31 | B45: 40 | C45: 0
A46: 2022-08-31 | B46: 41 | C46: 0
A47: 2022-09-30 | B47: 42 | C47: 0
A48: 2022-10-31 | B48: 43 | C48: 0
A49: 2022-11-30 | B49: 44 | C49: 0
A50: 2022-12-31 | B50: 45 | C50: 0
A51: 2023-01-31 | B51: 46 | C51: 0
A52: 2023-02-28 | B52: 47 | C52: 0
A53: 2023-03-31 | B53: 48 | C53: 0
A54: 2023-04-30 | B54: 49 | C54: 0
A55: 2023-05-31 | B55: 50 | C55: 0
A56: 2023-06-30 | B56: 51 | C56: 0
A57: 2023-07-31 | B57: 52 | C57: 0
A58: 2023-08-31 | B58: 53 | C58: 0
A59: 2023-09-30 | B59: 54 | C59: 0
A60: 2023-10-31 | B60: 55 | C60: 0
A61: 2023-11-30 | B61: 56 | C61: 0
A62: 2023-12-31 | B62: 57 | C62: 0
A63: 2024-01-31 | B63: 58 | C63: 0
A64: 2024-02-29 | B64: 59 | C64: 0
A65: 2024-03-31 | B65: 60 | C65: 0
A66: 2024-04-30 | B66: 61 | C66: 0
A67: 2024-05-31 | B67: 62 | C67: 0
A68: 2024-06-30 | B68: 63 | C68: 0
A69: 2024-07-31 | B69: 64 | C69: 0
A70: 2024-08-31 | B70: 65 | C70: 0
A71: =DATE(YEAR(A70),MONTH(A70)+2,1-1) -> 2024-09-30 | B71: 66 | C71: 0
A72: 2024-10-31 | B72: 67 | C72: 0
A73: 2024-11-30 | B73: 68 | C73: 0
A74: 2024-12-31 | B74: 69 | C74: 0
A75: 2025-01-31 | B75: 70 | C75: 0
A76: 2025-02-28 | B76: 71 | C76: 0
A77: 2025-03-31 | B77: 72 | C77: 0
A78: 2025-04-30 | B78: 73 | C78: 0
A79: 2025-05-31 | B79: 74 | C79: 0
A80: 2025-06-30 | B80: 75 | C80: 0
A81: 2025-07-31 | B81: 76 | C81: 0
A82: 2025-08-31 | B82: 77 | C82: 0
A83: 2025-09-30 | B83: 78 | C83: 0
A84: 2025-10-31 | B84: 79 | C84: 0
A85: 2025-11-30 | B85: 80 | C85: 0
A86: 2025-12-31 | B86: 81 | C86: 0
A87: 2026-01-31 | B87: 82 | C87: 0
A88: 2026-02-28 | B88: 83 | C88: 0
A89: 2026-03-31 | B89: 84 | C89: 0
A90: 2026-04-30 | B90: 85 | C90: 0
A91: 2026-05-31 | B91: 86 | C91: 0
A92: 2026-06-30 | B92: 87 | C92: 0
A93: 2026-07-31 | B93: 88 | C93: 0
A94: 2026-08-31 | B94: 89 | C94: 0
A95: 2026-09-30 | B95: 90 | C95: 0
A96: 2026-10-31 | B96: 91 | C96: 0
A97: 2026-11-30 | B97: 92 | C97: 0
A98: 2026-12-31 | B98: 93 | C98: 0
A99: 2027-01-31 | B99: 94 | C99: 0
A100: 2027-02-28 | B100: 95 | C100: 0
A101: 2027-03-31 | B101: 96 | C101: 0
A102: 2027-04-30 | B102: 97 | C102: 0
A103: 2027-05-31 | B103: 98 | C103: 0
A104: 2027-06-30 | B104: 99 | C104: 0
A105: 2027-07-31 | B105: 100 | C105: 0
A106: 2027-08-31 | B106: 101 | C106: 0
A107: 2027-09-30 | B107: 102 | C107: 0
A108: 2027-10-31 | B108: 103 | C108: 0
A109: 2027-11-30 | B109: 104 | C109: 0
A110: 2027-12-31 | B110: 105 | C110: 0
A111: 2028-01-31 | B111: 106 | C111: 0
A112: 2028-02-29 | B112: 107 | C112: 0
A113: 2028-03-31 | B113: 108 | C113: 0
A114: 2028-04-30 | B114: 109 | C114: 0
A115: 2028-05-31 | B115: 110 | C115: 0
A116: 2028-06-30 | B116: 111 | C116: 0
A117: 2028-07-31 | B117: 112 | C117: 0
A118: 2028-08-31 | B118: 113 | C118: 0
A119: 2028-09-30 | B119: 114 | C119: 0
A120: 2028-10-31 | B120: 115 | C120: 0
A121: 2028-11-30 | B121: 116 | C121: 0
A122: 2028-12-31 | B122: 117 | C122: 0
A123: 2029-01-31 | B123: 118 | C123: 0
A124: 2029-02-28 | B124: 119 | C124: 0
A125: 2029-03-31 | B125: 120 | C125: 0
A126: 2029-04-30 | B126: 121 | C126: 0
A127: 2029-05-31 | B127: 122 | C127: 0
A128: 2029-06-30 | B128: 123 | C128: 0
A129: 2029-07-31 | B129: 124 | C129: 0
A130: 2029-08-31 | B130: 125 | C130: 0
A131: 2029-09-30 | B131: 126 | C131: 0
A132: 2029-10-31 | B132: 127 | C132: 0
A133: 2029-11-30 | B133: 128 | C133: 0
A134: 2029-12-31 | B134: 129 | C134: 0
A135: =DATE(YEAR(A134),MONTH(A134)+2,1-1) -> 2030-01-31 | B135: 130 | C135: 0
A136: 2030-02-28 | B136: 131 | C136: 0
A137: 2030-03-31 | B137: 132 | C137: 0
A138: 2030-04-30 | B138: 133 | C138: 0
A139: 2030-05-31 | B139: 134 | C139: 0
A140: 2030-06-30 | B140: 135 | C140: 0
A141: 2030-07-31 | B141: 136 | C141: 0
A142: 2030-08-31 | B142: 137 | C142: 0
A143: 2030-09-30 | B143: 138 | C143: 0
A144: 2030-10-31 | B144: 139 | C144: 0
A145: 2030-11-30 | B145: 140 | C145: 0
A146: 2030-12-31 | B146: 141 | C146: 0
A147: 2031-01-31 | B147: 142 | C147: 0
A148: 2031-02-28 | B148: 143 | C148: 0
A149: 2031-03-31 | B149: 144 | C149: 0
A150: 2031-04-30 | B150: 145 | C150: 0
A151: 2031-05-31 | B151: 146 | C151: 0
A152: 2031-06-30 | B152: 147 | C152: 0
A153: 2031-07-31 | B153: 148 | C153: 0
A154: 2031-08-31 | B154: 149 | C154: 0
A155: 2031-09-30 | B155: 150 | C155: 0
A156: 2031-10-31 | B156: 151 | C156: 0
A157: 2031-11-30 | B157: 152 | C157: 0
A158: 2031-12-31 | B158: 153 | C158: 0
A159: 2032-01-31 | B159: 154 | C159: 0
A160: 2032-02-29 | B160: 155 | C160: 0
A161: 2032-03-31 | B161: 156 | C161: 0
A162: 2032-04-30 | B162: 157 | C162: 0
A163: 2032-05-31 | B163: 158 | C163: 0
A164: 2032-06-30 | B164: 159 | C164: 0
A165: 2032-07-31 | B165: 160 | C165: 0
A166: 2032-08-31 | B166: 161 | C166: 0
A167: 2032-09-30 | B167: 162 | C167: 0
A168: 2032-10-31 | B168: 163 | C168: 0
A169: 2032-11-30 | B169: 164 | C169: 0
A170: 2032-12-31 | B170: 165 | C170: 0
A171: 2033-01-31 | B171: 166 | C171: 0
A172: 2033-02-28 | B172: 167 | C172: 0
A173: 2033-03-31 | B173: 168 | C173: 0
A174: 2033-04-30 | B174: 169 | C174: 0
A175: 2033-05-31 | B175: 170 | C175: 0
A176: 2033-06-30 | B176: 171 | C176: 0
A177: 2033-07-31 | B177: 172 | C177: 0
A178: 2033-08-31 | B178: 173 | C178: 0
A179: 2033-09-30 | B179: 174 | C179: 0
A180: 2033-10-31 | B180: 175 | C180: 0
A181: 2033-11-30 | B181: 176 | C181: 0
A182: 2033-12-31 | B182: 177 | C182: 0
A183: 2034-01-31 | B183: 178 | C183: 0
A184: 2034-02-28 | B184: 179 | C184: 0
A185: 2034-03-31 | B185: 180 | C185: 0
A186: 2034-04-30 | B186: 181 | C186: 0
A187: 2034-05-31 | B187: 182 | C187: 0
A188: 2034-06-30 | B188: 183 | C188: 0
A189: 2034-07-31 | B189: 184 | C189: 0
A190: 2034-08-31 | B190: 185 | C190: 0
A191: 2034-09-30 | B191: 186 | C191: 0
A192: 2034-10-31 | B192: 187 | C192: 0
A193: 2034-11-30 | B193: 188 | C193: 0
A194: 2034-12-31 | B194: 189 | C194: 0
A195: 2035-01-31 | B195: 190 | C195: 0
A196: 2035-02-28 | B196: 191 | C196: 0
A197: 2035-03-31 | B197: 192 | C197: 0
A198: 2035-04-30 | B198: 193 | C198: 0
A199: =DATE(YEAR(A198),MONTH(A198)+2,1-1) -> 2035-05-31 | B199: 194 | C199: 0
A200: 2035-06-30 | B200: 195 | C200: 0
A201: 2035-07-31 | B201: 196 | C201: 0
... 165 more rows

Sheet ForecastAmort (hidden)
A1: Loan Repayment Forecast | Amortization Table
A3: Outstanding Loan Balance | C3: =Review!C20 -> 1941680.454
A4: Statement Interest Rate | C4: =VLOOKUP($C$6,StatementRange,8,1) -> 0.1025
A5: Remaining Loan Repayments | C5: =Review!B7 -> 219
A6: Review Date | C6: =Review!B3 -> 44196
A7: © www.excel-skills.com | K7: Standard Amortization
A8: Month | B8: Repayment Number | C8: Opening Balance | D8: Ad Hoc Repayment | E8: Loan Repayment | F8: Interest | G8: Capital | H8: Closing Balance | I8: % Outstanding | K8: Opening Balance | L8: Loan Repayment | M8: Interest | N8: Capital | O8: Closing Balance | P8: % Outstanding
A9: =DATE(YEAR(C6),MONTH(C6)+2,1-1) -> 2021-01-31 | B9: 1 | C9: =$C$3 -> 1941680.454 | D9: =IF(ISNA(VLOOKUP($A9,ForecastPmt!$A$6:$C$365,3,0))=TRUE,0,VLOOKUP($A9,ForecastPmt!$A$6:$C$365,3,0)) -> 0 | E9: =-PMT($C$4/12,$C$5,$C$3,0,0) -> 19633.38438 | F9: =C9*$C$4/12 -> 16585.18721 | G9: =D9+E9-F9 -> 3048.197175 | H9: =IF(C9-G9<0.009,0,C9-G9) -> 1938632.257 | I9: =H9/$C$3 -> 0.9984301242 | K9: =$C$3 -> 1941680.454 | L9: =-PMT($C$4/12,$C$5,$C$3,0,0) -> 19633.38438 | M9: =K9*$C$4/12 -> 16585.18721 | N9: =L9-M9 -> 3048.197175 | O9: =IF(K9-N9<0.009,0,K9-N9) -> 1938632.257 | P9: =O9/$C$3 -> 0.9984301242
A10: =DATE(YEAR(A9),MONTH(A9)+2,1-1) -> 2021-02-28 | B10: 2 | C10: =IF(H9>0,H9,0) -> 1938632.257 | D10: =IF(ISNA(VLOOKUP($A10,ForecastPmt!$A$6:$C$365,3,0))=TRUE,0,VLOOKUP($A10,ForecastPmt!$A$6:$C$365,3,0)) -> 0 | E10: =IF(H9>$E$9,$E$9,IF(H9+F10>$E$9,$E$9,H9+F10)) -> 19633.38438 | F10: 16559.15053 | G10: =D10+E10-F10 -> 3074.233859 | H10: =IF(C10-G10<0.009,0,C10-G10) -> 1935558.023 | I10: 0.996846839 | K10: =IF(O9>0,O9,0) -> 1938632.257 | L10: =IF($C$5+1-B10=0,0,L9) -> 19633.38438 | M10: 16559.15053 | N10: 3074.233859 | O10: =IF(K10-N10<0.009,0,K10-N10) -> 1935558.023 | P10: 0.996846839
A11: 2021-03-31 | B11: 3 | C11: =IF(H10>0,H10,0) -> 1935558.023 | D11: =IF(ISNA(VLOOKUP($A11,ForecastPmt!$A$6:$C$365,3,0))=TRUE,0,VLOOKUP($A11,ForecastPmt!$A$6:$C$365,3,0)) -> 0 | E11: =IF(H10>$E$9,$E$9,IF(H10+F11>$E$9,$E$9,H10+F11)) -> 19633.38438 | F11: 16532.89144 | G11: 3100.49294 | H11: 1932457.53 | I11: 0.99525003 | K11: =IF(O10>0,O10,0) -> 1935558.023 | L11: =IF($C$5+1-B11=0,0,L10) -> 19633.38438 | M11: 16532.89144 | N11: 3100.49294 | O11: 1932457.53 | P11: 0.99525003
A12: 2021-04-30 | B12: 4 | C12: 1932457.53 | D12: =IF(ISNA(VLOOKUP($A12,ForecastPmt!$A$6:$C$365,3,0))=TRUE,0,VLOOKUP($A12,ForecastPmt!$A$6:$C$365,3,0)) -> 0 | E12: 19633.38438 | F12: 16506.40807 | G12: 3126.976317 | H12: 1929330.554 | I12: 0.9936395815 | K12: 1932457.53 | L12: 19633.38438 | M12: 16506.40807 | N12: 3126.976317 | O12: 1929330.554 | P12: 0.9936395815
A13: 2021-05-31 | B13: 5 | C13: 1929330.554 | D13: =IF(ISNA(VLOOKUP($A13,ForecastPmt!$A$6:$C$365,3,0))=TRUE,0,VLOOKUP($A13,ForecastPmt!$A$6:$C$365,3,0)) -> 0 | E13: 19633.38438 | F13: 16479.69848 | G13: 3153.685906 | H13: 1926176.868 | I13: 0.9920153771 | K13: 1929330.554 | L13: 19633.38438 | M13: 16479.69848 | N13: 3153.685906 | O13: 1926176.868 | P13: 0.9920153771
A14: 2021-06-30 | B14: 6 | C14: 1926176.868 | D14: =IF(ISNA(VLOOKUP($A14,ForecastPmt!$A$6:$C$365,3,0))=TRUE,0,VLOOKUP($A14,ForecastPmt!$A$6:$C$365,3,0)) -> 0 | E14: 19633.38438 | F14: 16452.76074 | G14: 3180.62364 | H14: 1922996.244 | I14: 0.9903772993 | K14: 1926176.868 | L14: 19633.38438 | M14: 16452.76074 | N14: 3180.62364 | O14: 1922996.244 | P14: 0.9903772993
A15: 2021-07-31 | B15: 7 | C15: 1922996.244 | D15: =IF(ISNA(VLOOKUP($A15,ForecastPmt!$A$6:$C$365,3,0))=TRUE,0,VLOOKUP($A15,ForecastPmt!$A$6:$C$365,3,0)) -> 0 | E15: 19633.38438 | F15: 16425.59292 | G15: 3207.791467 | H15: 1919788.452 | I15: 0.9887252296 | K15: 1922996.244 | L15: 19633.38438 | M15: 16425.59292 | N15: 3207.791467 | O15: 1919788.452 | P15: 0.9887252296
A16: 2021-08-31 | B16: 8 | C16: 1919788.452 | D16: =IF(ISNA(VLOOKUP($A16,ForecastPmt!$A$6:$C$365,3,0))=TRUE,0,VLOOKUP($A16,ForecastPmt!$A$6:$C$365,3,0)) -> 0 | E16: 19633.38438 | F16: 16398.19303 | G16: 3235.191353 | H16: 1916553.261 | I16: 0.9870590485 | K16: 1919788.452 | L16: 19633.38438 | M16: 16398.19303 | N16: 3235.191353 | O16: 1916553.261 | P16: 0.9870590485
A17: 2021-09-30 | B17: 9 | C17: 1916553.261 | D17: =IF(ISNA(VLOOKUP($A17,ForecastPmt!$A$6:$C$365,3,0))=TRUE,0,VLOOKUP($A17,ForecastPmt!$A$6:$C$365,3,0)) -> 0 | E17: 19633.38438 | F17: 16370.55911 | G17: 3262.825279 | H17: 1913290.436 | I17: 0.9853786354 | K17: 1916553.261 | L17: 19633.38438 | M17: 16370.55911 | N17: 3262.825279 | O17: 1913290.436 | P17: 0.9853786354
A18: 2021-10-31 | B18: 10 | C18: 1913290.436 | D18: =IF(ISNA(VLOOKUP($A18,ForecastPmt!$A$6:$C$365,3,0))=TRUE,0,VLOOKUP($A18,ForecastPmt!$A$6:$C$365,3,0)) -> 0 | E18: 19633.38438 | F18: 16342.68914 | G18: 3290.695245 | H18: 1909999.741 | I18: 0.9836838687 | K18: 1913290.436 | L18: 19633.38438 | M18: 16342.68914 | N18: 3290.695245 | O18: 1909999.741 | P18: 0.9836838687
A19: 2021-11-30 | B19: 11 | C19: 1909999.741 | D19: =IF(ISNA(VLOOKUP($A19,ForecastPmt!$A$6:$C$365,3,0))=TRUE,0,VLOOKUP($A19,ForecastPmt!$A$6:$C$365,3,0)) -> 0 | E19: 19633.38438 | F19: 16314.58112 | G19: 3318.803267 | H19: 1906680.937 | I19: 0.981974626 | K19: 1909999.741 | L19: 19633.38438 | M19: 16314.58112 | N19: 3318.803267 | O19: 1906680.937 | P19: 0.981974626
A20: 2021-12-31 | B20: 12 | C20: 1906680.937 | D20: =IF(ISNA(VLOOKUP($A20,ForecastPmt!$A$6:$C$365,3,0))=TRUE,0,VLOOKUP($A20,ForecastPmt!$A$6:$C$365,3,0)) -> 0 | E20: 19633.38438 | F20: 16286.23301 | G20: 3347.151378 | H20: 1903333.786 | I20: 0.9802507834 | K20: 1906680.937 | L20: 19633.38438 | M20: 16286.23301 | N20: 3347.151378 | O20: 1903333.786 | P20: 0.9802507834
A21: 2022-01-31 | B21: 13 | C21: 1903333.786 | D21: =IF(ISNA(VLOOKUP($A21,ForecastPmt!$A$6:$C$365,3,0))=TRUE,0,VLOOKUP($A21,ForecastPmt!$A$6:$C$365,3,0)) -> 0 | E21: 19633.38438 | F21: 16257.64276 | G21: 3375.741629 | H21: 1899958.044 | I21: 0.9785122164 | K21: 1903333.786 | L21: 19633.38438 | M21: 16257.64276 | N21: 3375.741629 | O21: 1899958.044 | P21: 0.9785122164
A22: 2022-02-28 | B22: 14 | C22: 1899958.044 | D22: =IF(ISNA(VLOOKUP($A22,ForecastPmt!$A$6:$C$365,3,0))=TRUE,0,VLOOKUP($A22,ForecastPmt!$A$6:$C$365,3,0)) -> 0 | E22: 19633.38438 | F22: 16228.8083 | G22: 3404.576089 | H22: 1896553.468 | I22: 0.9767587991 | K22: 1899958.044 | L22: 19633.38438 | M22: 16228.8083 | N22: 3404.576089 | O22: 1896553.468 | P22: 0.9767587991
A23: 2022-03-31 | B23: 15 | C23: 1896553.468 | D23: =IF(ISNA(VLOOKUP($A23,ForecastPmt!$A$6:$C$365,3,0))=TRUE,0,VLOOKUP($A23,ForecastPmt!$A$6:$C$365,3,0)) -> 0 | E23: 19633.38438 | F23: 16199.72754 | G23: 3433.656843 | H23: 1893119.811 | I23: 0.9749904047 | K23: 1896553.468 | L23: 19633.38438 | M23: 16199.72754 | N23: 3433.656843 | O23: 1893119.811 | P23: 0.9749904047
A24: 2022-04-30 | B24: 16 | C24: 1893119.811 | D24: =IF(ISNA(VLOOKUP($A24,ForecastPmt!$A$6:$C$365,3,0))=TRUE,0,VLOOKUP($A24,ForecastPmt!$A$6:$C$365,3,0)) -> 0 | E24: 19633.38438 | F24: 16170.39839 | G24: 3462.985995 | H24: 1889656.825 | I24: 0.9732069052 | K24: 1893119.811 | L24: 19633.38438 | M24: 16170.39839 | N24: 3462.985995 | O24: 1889656.825 | P24: 0.9732069052
A25: 2022-05-31 | B25: 17 | C25: 1889656.825 | D25: =IF(ISNA(VLOOKUP($A25,ForecastPmt!$A$6:$C$365,3,0))=TRUE,0,VLOOKUP($A25,ForecastPmt!$A$6:$C$365,3,0)) -> 0 | E25: 19633.38438 | F25: 16140.81872 | G25: 3492.565667 | H25: 1886164.26 | I25: 0.9714081718 | K25: 1889656.825 | L25: 19633.38438 | M25: 16140.81872 | N25: 3492.565667 | O25: 1886164.26 | P25: 0.9714081718
A26: 2022-06-30 | B26: 18 | C26: 1886164.26 | D26: =IF(ISNA(VLOOKUP($A26,ForecastPmt!$A$6:$C$365,3,0))=TRUE,0,VLOOKUP($A26,ForecastPmt!$A$6:$C$365,3,0)) -> 0 | E26: 19633.38438 | F26: 16110.98639 | G26: 3522.397999 | H26: 1882641.862 | I26: 0.9695940741 | K26: 1886164.26 | L26: 19633.38438 | M26: 16110.98639 | N26: 3522.397999 | O26: 1882641.862 | P26: 0.9695940741
A27: 2022-07-31 | B27: 19 | C27: 1882641.862 | D27: =IF(ISNA(VLOOKUP($A27,ForecastPmt!$A$6:$C$365,3,0))=TRUE,0,VLOOKUP($A27,ForecastPmt!$A$6:$C$365,3,0)) -> 0 | E27: 19633.38438 | F27: 16080.89924 | G27: 3552.485149 | H27: 1879089.377 | I27: 0.967764481 | K27: 1882641.862 | L27: 19633.38438 | M27: 16080.89924 | N27: 3552.485149 | O27: 1879089.377 | P27: 0.967764481
A28: 2022-08-31 | B28: 20 | C28: 1879089.377 | D28: =IF(ISNA(VLOOKUP($A28,ForecastPmt!$A$6:$C$365,3,0))=TRUE,0,VLOOKUP($A28,ForecastPmt!$A$6:$C$365,3,0)) -> 0 | E28: 19633.38438 | F28: 16050.55509 | G28: 3582.829293 | H28: 1875506.547 | I28: 0.9659192601 | K28: 1879089.377 | L28: 19633.38438 | M28: 16050.55509 | N28: 3582.829293 | O28: 1875506.547 | P28: 0.9659192601
A29: 2022-09-30 | B29: 21 | C29: 1875506.547 | D29: =IF(ISNA(VLOOKUP($A29,ForecastPmt!$A$6:$C$365,3,0))=TRUE,0,VLOOKUP($A29,ForecastPmt!$A$6:$C$365,3,0)) -> 0 | E29: 19633.38438 | F29: 16019.95176 | G29: 3613.432626 | H29: 1871893.115 | I29: 0.964058278 | K29: 1875506.547 | L29: 19633.38438 | M29: 16019.95176 | N29: 3613.432626 | O29: 1871893.115 | P29: 0.964058278
A30: 2022-10-31 | B30: 22 | C30: 1871893.115 | D30: =IF(ISNA(VLOOKUP($A30,ForecastPmt!$A$6:$C$365,3,0))=TRUE,0,VLOOKUP($A30,ForecastPmt!$A$6:$C$365,3,0)) -> 0 | E30: 19633.38438 | F30: 15989.08702 | G30: 3644.297363 | H30: 1868248.817 | I30: 0.9621814 | K30: 1871893.115 | L30: 19633.38438 | M30: 15989.08702 | N30: 3644.297363 | O30: 1868248.817 | P30: 0.9621814
A31: 2022-11-30 | B31: 23 | C31: 1868248.817 | D31: =IF(ISNA(VLOOKUP($A31,ForecastPmt!$A$6:$C$365,3,0))=TRUE,0,VLOOKUP($A31,ForecastPmt!$A$6:$C$365,3,0)) -> 0 | E31: 19633.38438 | F31: 15957.95865 | G31: 3675.425736 | H31: 1864573.392 | I31: 0.9602884903 | K31: 1868248.817 | L31: 19633.38438 | M31: 15957.95865 | N31: 3675.425736 | O31: 1864573.392 | P31: 0.9602884903
A32: 2022-12-31 | B32: 24 | C32: 1864573.392 | D32: =IF(ISNA(VLOOKUP($A32,ForecastPmt!$A$6:$C$365,3,0))=TRUE,0,VLOOKUP($A32,ForecastPmt!$A$6:$C$365,3,0)) -> 0 | E32: 19633.38438 | F32: 15926.56439 | G32: 3706.819998 | H32: 1860866.572 | I32: 0.958379412 | K32: 1864573.392 | L32: 19633.38438 | M32: 15926.56439 | N32: 3706.819998 | O32: 1860866.572 | P32: 0.958379412
A33: 2023-01-31 | B33: 25 | C33: 1860866.572 | D33: =IF(ISNA(VLOOKUP($A33,ForecastPmt!$A$6:$C$365,3,0))=TRUE,0,VLOOKUP($A33,ForecastPmt!$A$6:$C$365,3,0)) -> 0 | E33: 19633.38438 | F33: 15894.90197 | G33: 3738.482419 | H33: 1857128.089 | I33: 0.956454027 | K33: 1860866.572 | L33: 19633.38438 | M33: 15894.90197 | N33: 3738.482419 | O33: 1857128.089 | P33: 0.956454027
A34: 2023-02-28 | B34: 26 | C34: 1857128.089 | D34: =IF(ISNA(VLOOKUP($A34,ForecastPmt!$A$6:$C$365,3,0))=TRUE,0,VLOOKUP($A34,ForecastPmt!$A$6:$C$365,3,0)) -> 0 | E34: 19633.38438 | F34: 15862.96909 | G34: 3770.415289 | H34: 1853357.674 | I34: 0.954512196 | K34: 1857128.089 | L34: 19633.38438 | M34: 15862.96909 | N34: 3770.415289 | O34: 1853357.674 | P34: 0.954512196
A35: 2023-03-31 | B35: 27 | C35: 1853357.674 | D35: =IF(ISNA(VLOOKUP($A35,ForecastPmt!$A$6:$C$365,3,0))=TRUE,0,VLOOKUP($A35,ForecastPmt!$A$6:$C$365,3,0)) -> 0 | E35: 19633.38438 | F35: 15830.76346 | G35: 3802.62092 | H35: 1849555.053 | I35: 0.9525537785 | K35: 1853357.674 | L35: 19633.38438 | M35: 15830.76346 | N35: 3802.62092 | O35: 1849555.053 | P35: 0.9525537785
A36: 2023-04-30 | B36: 28 | C36: 1849555.053 | D36: =IF(ISNA(VLOOKUP($A36,ForecastPmt!$A$6:$C$365,3,0))=TRUE,0,VLOOKUP($A36,ForecastPmt!$A$6:$C$365,3,0)) -> 0 | E36: 19633.38438 | F36: 15798.28274 | G36: 3835.10164 | H36: 1845719.951 | I36: 0.9505786329 | K36: 1849555.053 | L36: 19633.38438 | M36: 15798.28274 | N36: 3835.10164 | O36: 1845719.951 | P36: 0.9505786329
A37: 2023-05-31 | B37: 29 | C37: 1845719.951 | D37: =IF(ISNA(VLOOKUP($A37,ForecastPmt!$A$6:$C$365,3,0))=TRUE,0,VLOOKUP($A37,ForecastPmt!$A$6:$C$365,3,0)) -> 0 | E37: 19633.38438 | F37: 15765.52458 | G37: 3867.8598 | H37: 1841852.092 | I37: 0.9485866163 | K37: 1845719.951 | L37: 19633.38438 | M37: 15765.52458 | N37: 3867.8598 | O37: 1841852.092 | P37: 0.9485866163
A38: 2023-06-30 | B38: 30 | C38: 1841852.092 | D38: =IF(ISNA(VLOOKUP($A38,ForecastPmt!$A$6:$C$365,3,0))=TRUE,0,VLOOKUP($A38,ForecastPmt!$A$6:$C$365,3,0)) -> 0 | E38: 19633.38438 | F38: 15732.48662 | G38: 3900.897769 | H38: 1837951.194 | I38: 0.9465775845 | K38: 1841852.092 | L38: 19633.38438 | M38: 15732.48662 | N38: 3900.897769 | O38: 1837951.194 | P38: 0.9465775845
A39: 2023-07-31 | B39: 31 | C39: 1837951.194 | D39: =IF(ISNA(VLOOKUP($A39,ForecastPmt!$A$6:$C$365,3,0))=TRUE,0,VLOOKUP($A39,ForecastPmt!$A$6:$C$365,3,0)) -> 0 | E39: 19633.38438 | F39: 15699.16645 | G39: 3934.217938 | H39: 1834016.976 | I39: 0.9445513922 | K39: 1837951.194 | L39: 19633.38438 | M39: 15699.16645 | N39: 3934.217938 | O39: 1834016.976 | P39: 0.9445513922
A40: 2023-08-31 | B40: 32 | C40: 1834016.976 | D40: =IF(ISNA(VLOOKUP($A40,ForecastPmt!$A$6:$C$365,3,0))=TRUE,0,VLOOKUP($A40,ForecastPmt!$A$6:$C$365,3,0)) -> 0 | E40: 19633.38438 | F40: 15665.56167 | G40: 3967.822716 | H40: 1830049.153 | I40: 0.9425078928 | K40: 1834016.976 | L40: 19633.38438 | M40: 15665.56167 | N40: 3967.822716 | O40: 1830049.153 | P40: 0.9425078928
A41: 2023-09-30 | B41: 33 | C41: 1830049.153 | D41: =IF(ISNA(VLOOKUP($A41,ForecastPmt!$A$6:$C$365,3,0))=TRUE,0,VLOOKUP($A41,ForecastPmt!$A$6:$C$365,3,0)) -> 0 | E41: 19633.38438 | F41: 15631.66985 | G41: 4001.714535 | H41: 1826047.439 | I41: 0.9404469386 | K41: 1830049.153 | L41: 19633.38438 | M41: 15631.66985 | N41: 4001.714535 | O41: 1826047.439 | P41: 0.9404469386
A42: 2023-10-31 | B42: 34 | C42: 1826047.439 | D42: =IF(ISNA(VLOOKUP($A42,ForecastPmt!$A$6:$C$365,3,0))=TRUE,0,VLOOKUP($A42,ForecastPmt!$A$6:$C$365,3,0)) -> 0 | E42: 19633.38438 | F42: 15597.48854 | G42: 4035.895847 | H42: 1822011.543 | I42: 0.9383683804 | K42: 1826047.439 | L42: 19633.38438 | M42: 15597.48854 | N42: 4035.895847 | O42: 1822011.543 | P42: 0.9383683804
A43: 2023-11-30 | B43: 35 | C43: 1822011.543 | D43: =IF(ISNA(VLOOKUP($A43,ForecastPmt!$A$6:$C$365,3,0))=TRUE,0,VLOOKUP($A43,ForecastPmt!$A$6:$C$365,3,0)) -> 0 | E43: 19633.38438 | F43: 15563.01526 | G43: 4070.369124 | H43: 1817941.174 | I43: 0.9362720679 | K43: 1822011.543 | L43: 19633.38438 | M43: 15563.01526 | N43: 4070.369124 | O43: 1817941.174 | P43: 0.9362720679
A44: 2023-12-31 | B44: 36 | C44: 1817941.174 | D44: =IF(ISNA(VLOOKUP($A44,ForecastPmt!$A$6:$C$365,3,0))=TRUE,0,VLOOKUP($A44,ForecastPmt!$A$6:$C$365,3,0)) -> 0 | E44: 19633.38438 | F44: 15528.24752 | G44: 4105.13686 | H44: 1813836.037 | I44: 0.9341578493 | K44: 1817941.174 | L44: 19633.38438 | M44: 15528.24752 | N44: 4105.13686 | O44: 1813836.037 | P44: 0.9341578493
A45: 2024-01-31 | B45: 37 | C45: 1813836.037 | D45: =IF(ISNA(VLOOKUP($A45,ForecastPmt!$A$6:$C$365,3,0))=TRUE,0,VLOOKUP($A45,ForecastPmt!$A$6:$C$365,3,0)) -> 0 | E45: 19633.38438 | F45: 15493.18281 | G45: 4140.201571 | H45: 1809695.835 | I45: 0.9320255718 | K45: 1813836.037 | L45: 19633.38438 | M45: 15493.18281 | N45: 4140.201571 | O45: 1809695.835 | P45: 0.9320255718
A46: 2024-02-29 | B46: 38 | C46: 1809695.835 | D46: =IF(ISNA(VLOOKUP($A46,ForecastPmt!$A$6:$C$365,3,0))=TRUE,0,VLOOKUP($A46,ForecastPmt!$A$6:$C$365,3,0)) -> 0 | E46: 19633.38438 | F46: 15457.81859 | G46: 4175.565792 | H46: 1805520.269 | I46: 0.9298750811 | K46: 1809695.835 | L46: 19633.38438 | M46: 15457.81859 | N46: 4175.565792 | O46: 1805520.269 | P46: 0.9298750811
A47: 2024-03-31 | B47: 39 | C47: 1805520.269 | D47: =IF(ISNA(VLOOKUP($A47,ForecastPmt!$A$6:$C$365,3,0))=TRUE,0,VLOOKUP($A47,ForecastPmt!$A$6:$C$365,3,0)) -> 0 | E47: 19633.38438 | F47: 15422.1523 | G47: 4211.232084 | H47: 1801309.037 | I47: 0.9277062216 | K47: 1805520.269 | L47: 19633.38438 | M47: 15422.1523 | N47: 4211.232084 | O47: 1801309.037 | P47: 0.9277062216
A48: 2024-04-30 | B48: 40 | C48: 1801309.037 | D48: =IF(ISNA(VLOOKUP($A48,ForecastPmt!$A$6:$C$365,3,0))=TRUE,0,VLOOKUP($A48,ForecastPmt!$A$6:$C$365,3,0)) -> 0 | E48: 19633.38438 | F48: 15386.18136 | G48: 4247.203024 | H48: 1797061.834 | I48: 0.9255188364 | K48: 1801309.037 | L48: 19633.38438 | M48: 15386.18136 | N48: 4247.203024 | O48: 1797061.834 | P48: 0.9255188364
A49: 2024-05-31 | B49: 41 | C49: 1797061.834 | D49: =IF(ISNA(VLOOKUP($A49,ForecastPmt!$A$6:$C$365,3,0))=TRUE,0,VLOOKUP($A49,ForecastPmt!$A$6:$C$365,3,0)) -> 0 | E49: 19633.38438 | F49: 15349.90317 | G49: 4283.481217 | H49: 1792778.353 | I49: 0.9233127673 | K49: 1797061.834 | L49: 19633.38438 | M49: 15349.90317 | N49: 4283.481217 | O49: 1792778.353 | P49: 0.9233127673
A50: 2024-06-30 | B50: 42 | C50: 1792778.353 | D50: =IF(ISNA(VLOOKUP($A50,ForecastPmt!$A$6:$C$365,3,0))=TRUE,0,VLOOKUP($A50,ForecastPmt!$A$6:$C$365,3,0)) -> 0 | E50: 19633.38438 | F50: 15313.3151 | G50: 4320.069285 | H50: 1788458.284 | I50: 0.9210878547 | K50: 1792778.353 | L50: 19633.38438 | M50: 15313.3151 | N50: 4320.069285 | O50: 1788458.284 | P50: 0.9210878547
A51: 2024-07-31 | B51: 43 | C51: 1788458.284 | D51: =IF(ISNA(VLOOKUP($A51,ForecastPmt!$A$6:$C$365,3,0))=TRUE,0,VLOOKUP($A51,ForecastPmt!$A$6:$C$365,3,0)) -> 0 | E51: 19633.38438 | F51: 15276.41451 | G51: 4356.969877 | H51: 1784101.314 | I51: 0.9188439377 | K51: 1788458.284 | L51: 19633.38438 | M51: 15276.41451 | N51: 4356.969877 | O51: 1784101.314 | P51: 0.9188439377
A52: 2024-08-31 | B52: 44 | C52: 1784101.314 | D52: =IF(ISNA(VLOOKUP($A52,ForecastPmt!$A$6:$C$365,3,0))=TRUE,0,VLOOKUP($A52,ForecastPmt!$A$6:$C$365,3,0)) -> 0 | E52: 19633.38438 | F52: 15239.19872 | G52: 4394.185662 | H52: 1779707.128 | I52: 0.9165808538 | K52: 1784101.314 | L52: 19633.38438 | M52: 15239.19872 | N52: 4394.185662 | O52: 1779707.128 | P52: 0.9165808538
A53: 2024-09-30 | B53: 45 | C53: 1779707.128 | D53: =IF(ISNA(VLOOKUP($A53,ForecastPmt!$A$6:$C$365,3,0))=TRUE,0,VLOOKUP($A53,ForecastPmt!$A$6:$C$365,3,0)) -> 0 | E53: 19633.38438 | F53: 15201.66505 | G53: 4431.719331 | H53: 1775275.409 | I53: 0.9142984395 | K53: 1779707.128 | L53: 19633.38438 | M53: 15201.66505 | N53: 4431.719331 | O53: 1775275.409 | P53: 0.9142984395
A54: 2024-10-31 | B54: 46 | C54: 1775275.409 | D54: =IF(ISNA(VLOOKUP($A54,ForecastPmt!$A$6:$C$365,3,0))=TRUE,0,VLOOKUP($A54,ForecastPmt!$A$6:$C$365,3,0)) -> 0 | E54: 19633.38438 | F54: 15163.81078 | G54: 4469.5736 | H54: 1770805.835 | I54: 0.9119965295 | K54: 1775275.409 | L54: 19633.38438 | M54: 15163.81078 | N54: 4469.5736 | O54: 1770805.835 | P54: 0.9119965295
A55: 2024-11-30 | B55: 47 | C55: 1770805.835 | D55: =IF(ISNA(VLOOKUP($A55,ForecastPmt!$A$6:$C$365,3,0))=TRUE,0,VLOOKUP($A55,ForecastPmt!$A$6:$C$365,3,0)) -> 0 | E55: 19633.38438 | F55: 15125.63318 | G55: 4507.751208 | H55: 1766298.084 | I55: 0.9096749574 | K55: 1770805.835 | L55: 19633.38438 | M55: 15125.63318 | N55: 4507.751208 | O55: 1766298.084 | P55: 0.9096749574
A56: 2024-12-31 | B56: 48 | C56: 1766298.084 | D56: =IF(ISNA(VLOOKUP($A56,ForecastPmt!$A$6:$C$365,3,0))=TRUE,0,VLOOKUP($A56,ForecastPmt!$A$6:$C$365,3,0)) -> 0 | E56: 19633.38438 | F56: 15087.12947 | G56: 4546.254916 | H56: 1761751.829 | I56: 0.9073335552 | K56: 1766298.084 | L56: 19633.38438 | M56: 15087.12947 | N56: 4546.254916 | O56: 1761751.829 | P56: 0.9073335552
A57: 2025-01-31 | B57: 49 | C57: 1761751.829 | D57: =IF(ISNA(VLOOKUP($A57,ForecastPmt!$A$6:$C$365,3,0))=TRUE,0,VLOOKUP($A57,ForecastPmt!$A$6:$C$365,3,0)) -> 0 | E57: 19633.38438 | F57: 15048.29687 | G57: 4585.08751 | H57: 1757166.742 | I57: 0.9049721535 | K57: 1761751.829 | L57: 19633.38438 | M57: 15048.29687 | N57: 4585.08751 | O57: 1757166.742 | P57: 0.9049721535
A58: 2025-02-28 | B58: 50 | C58: 1757166.742 | D58: =IF(ISNA(VLOOKUP($A58,ForecastPmt!$A$6:$C$365,3,0))=TRUE,0,VLOOKUP($A58,ForecastPmt!$A$6:$C$365,3,0)) -> 0 | E58: 19633.38438 | F58: 15009.13258 | G58: 4624.251799 | H58: 1752542.49 | I58: 0.9025905815 | K58: 1757166.742 | L58: 19633.38438 | M58: 15009.13258 | N58: 4624.251799 | O58: 1752542.49 | P58: 0.9025905815
A59: 2025-03-31 | B59: 51 | C59: 1752542.49 | D59: =IF(ISNA(VLOOKUP($A59,ForecastPmt!$A$6:$C$365,3,0))=TRUE,0,VLOOKUP($A59,ForecastPmt!$A$6:$C$365,3,0)) -> 0 | E59: 19633.38438 | F59: 14969.63377 | G59: 4663.750617 | H59: 1747878.739 | I59: 0.9001886669 | K59: 1752542.49 | L59: 19633.38438 | M59: 14969.63377 | N59: 4663.750617 | O59: 1747878.739 | P59: 0.9001886669
A60: 2025-04-30 | B60: 52 | C60: 1747878.739 | D60: =IF(ISNA(VLOOKUP($A60,ForecastPmt!$A$6:$C$365,3,0))=TRUE,0,VLOOKUP($A60,ForecastPmt!$A$6:$C$365,3,0)) -> 0 | E60: 19633.38438 | F60: 14929.79756 | G60: 4703.58682 | H60: 1743175.152 | I60: 0.8977662359 | K60: 1747878.739 | L60: 19633.38438 | M60: 14929.79756 | N60: 4703.58682 | O60: 1743175.152 | P60: 0.8977662359
A61: 2025-05-31 | B61: 53 | C61: 1743175.152 | D61: =IF(ISNA(VLOOKUP($A61,ForecastPmt!$A$6:$C$365,3,0))=TRUE,0,VLOOKUP($A61,ForecastPmt!$A$6:$C$365,3,0)) -> 0 | E61: 19633.38438 | F61: 14889.62109 | G61: 4743.763291 | H61: 1738431.389 | I61: 0.8953231134 | K61: 1743175.152 | L61: 19633.38438 | M61: 14889.62109 | N61: 4743.763291 | O61: 1738431.389 | P61: 0.8953231134
A62: 2025-06-30 | B62: 54 | C62: 1738431.389 | D62: =IF(ISNA(VLOOKUP($A62,ForecastPmt!$A$6:$C$365,3,0))=TRUE,0,VLOOKUP($A62,ForecastPmt!$A$6:$C$365,3,0)) -> 0 | E62: 19633.38438 | F62: 14849.10145 | G62: 4784.282936 | H62: 1733647.106 | I62: 0.8928591225 | K62: 1738431.389 | L62: 19633.38438 | M62: 14849.10145 | N62: 4784.282936 | O62: 1733647.106 | P62: 0.8928591225
A63: 2025-07-31 | B63: 55 | C63: 1733647.106 | D63: =IF(ISNA(VLOOKUP($A63,ForecastPmt!$A$6:$C$365,3,0))=TRUE,0,VLOOKUP($A63,ForecastPmt!$A$6:$C$365,3,0)) -> 0 | E63: 19633.38438 | F63: 14808.2357 | G63: 4825.148686 | H63: 1728821.958 | I63: 0.890374085 | K63: 1733647.106 | L63: 19633.38438 | M63: 14808.2357 | N63: 4825.148686 | O63: 1728821.958 | P63: 0.890374085
A64: 2025-08-31 | B64: 56 | C64: 1728821.958 | D64: =IF(ISNA(VLOOKUP($A64,ForecastPmt!$A$6:$C$365,3,0))=TRUE,0,VLOOKUP($A64,ForecastPmt!$A$6:$C$365,3,0)) -> 0 | E64: 19633.38438 | F64: 14767.02089 | G64: 4866.363497 | H64: 1723955.594 | I64: 0.8878678212 | K64: 1728821.958 | L64: 19633.38438 | M64: 14767.02089 | N64: 4866.363497 | O64: 1723955.594 | P64: 0.8878678212
A65: 2025-09-30 | B65: 57 | C65: 1723955.594 | D65: =IF(ISNA(VLOOKUP($A65,ForecastPmt!$A$6:$C$365,3,0))=TRUE,0,VLOOKUP($A65,ForecastPmt!$A$6:$C$365,3,0)) -> 0 | E65: 19633.38438 | F65: 14725.45403 | G65: 4907.930352 | H65: 1719047.664 | I65: 0.8853401497 | K65: 1723955.594 | L65: 19633.38438 | M65: 14725.45403 | N65: 4907.930352 | O65: 1719047.664 | P65: 0.8853401497
A66: 2025-10-31 | B66: 58 | C66: 1719047.664 | D66: =IF(ISNA(VLOOKUP($A66,ForecastPmt!$A$6:$C$365,3,0))=TRUE,0,VLOOKUP($A66,ForecastPmt!$A$6:$C$365,3,0)) -> 0 | E66: 19633.38438 | F66: 14683.53213 | G66: 4949.852257 | H66: 1714097.811 | I66: 0.8827908877 | K66: 1719047.664 | L66: 19633.38438 | M66: 14683.53213 | N66: 4949.852257 | O66: 1714097.811 | P66: 0.8827908877
A67: 2025-11-30 | B67: 59 | C67: 1714097.811 | D67: =IF(ISNA(VLOOKUP($A67,ForecastPmt!$A$6:$C$365,3,0))=TRUE,0,VLOOKUP($A67,ForecastPmt!$A$6:$C$365,3,0)) -> 0 | E67: 19633.38438 | F67: 14641.25214 | G67: 4992.132245 | H67: 1709105.679 | I67: 0.8802198507 | K67: 1714097.811 | L67: 19633.38438 | M67: 14641.25214 | N67: 4992.132245 | O67: 1709105.679 | P67: 0.8802198507
A68: 2025-12-31 | B68: 60 | C68: 1709105.679 | D68: =IF(ISNA(VLOOKUP($A68,ForecastPmt!$A$6:$C$365,3,0))=TRUE,0,VLOOKUP($A68,ForecastPmt!$A$6:$C$365,3,0)) -> 0 | E68: 19633.38438 | F68: 14598.61101 | G68: 5034.773375 | H68: 1704070.906 | I68: 0.8776268528 | K68: 1709105.679 | L68: 19633.38438 | M68: 14598.61101 | N68: 5034.773375 | O68: 1704070.906 | P68: 0.8776268528
A69: 2026-01-31 | B69: 61 | C69: 1704070.906 | D69: =IF(ISNA(VLOOKUP($A69,ForecastPmt!$A$6:$C$365,3,0))=TRUE,0,VLOOKUP($A69,ForecastPmt!$A$6:$C$365,3,0)) -> 0 | E69: 19633.38438 | F69: 14555.60565 | G69: 5077.778731 | H69: 1698993.127 | I69: 0.8750117063 | K69: 1704070.906 | L69: 19633.38438 | M69: 14555.60565 | N69: 5077.778731 | O69: 1698993.127 | P69: 0.8750117063
A70: 2026-02-28 | B70: 62 | C70: 1698993.127 | D70: =IF(ISNA(VLOOKUP($A70,ForecastPmt!$A$6:$C$365,3,0))=TRUE,0,VLOOKUP($A70,ForecastPmt!$A$6:$C$365,3,0)) -> 0 | E70: 19633.38438 | F70: 14512.23296 | G70: 5121.151424 | H70: 1693871.976 | I70: 0.8723742222 | K70: 1698993.127 | L70: 19633.38438 | M70: 14512.23296 | N70: 5121.151424 | O70: 1693871.976 | P70: 0.8723742222
A71: 2026-03-31 | B71: 63 | C71: 1693871.976 | D71: =IF(ISNA(VLOOKUP($A71,ForecastPmt!$A$6:$C$365,3,0))=TRUE,0,VLOOKUP($A71,ForecastPmt!$A$6:$C$365,3,0)) -> 0 | E71: 19633.38438 | F71: 14468.48979 | G71: 5164.894593 | H71: 1688707.081 | I71: 0.8697142095 | K71: 1693871.976 | L71: 19633.38438 | M71: 14468.48979 | N71: 5164.894593 | O71: 1688707.081 | P71: 0.8697142095
A72: 2026-04-30 | B72: 64 | C72: 1688707.081 | D72: =IF(ISNA(VLOOKUP($A72,ForecastPmt!$A$6:$C$365,3,0))=TRUE,0,VLOOKUP($A72,ForecastPmt!$A$6:$C$365,3,0)) -> 0 | E72: 19633.38438 | F72: 14424.37298 | G72: 5209.011401 | H72: 1683498.07 | I72: 0.8670314759 | K72: 1688707.081 | L72: 19633.38438 | M72: 14424.37298 | N72: 5209.011401 | O72: 1683498.07 | P72: 0.8670314759
A73: 2026-05-31 | B73: 65 | C73: 1683498.07 | D73: =IF(ISNA(VLOOKUP($A73,ForecastPmt!$A$6:$C$365,3,0))=TRUE,0,VLOOKUP($A73,ForecastPmt!$A$6:$C$365,3,0)) -> 0 | E73: 19633.38438 | F73: =C73*$C$4/12 -> 14379.87934 | G73: 5253.50504 | H73: 1678244.565 | I73: =H73/$C$3 -> 0.8643258273 | K73: 1683498.07 | L73: 19633.38438 | M73: =K73*$C$4/12 -> 14379.87934 | N73: =L73-M73 -> 5253.50504 | O73: 1678244.565 | P73: =O73/$C$3 -> 0.8643258273
A74: =DATE(YEAR(A73),MONTH(A73)+2,1-1) -> 2026-06-30 | B74: 66 | C74: 1678244.565 | D74: =IF(ISNA(VLOOKUP($A74,ForecastPmt!$A$6:$C$365,3,0))=TRUE,0,VLOOKUP($A74,ForecastPmt!$A$6:$C$365,3,0)) -> 0 | E74: 19633.38438 | F74: 14335.00566 | G74: =D74+E74-F74 -> 5298.378728 | H74: =IF(C74-G74<0.009,0,C74-G74) -> 1672946.186 | I74: 0.8615970679 | K74: 1678244.565 | L74: 19633.38438 | M74: 14335.00566 | N74: 5298.378728 | O74: =IF(K74-N74<0.009,0,K74-N74) -> 1672946.186 | P74: 0.8615970679
A75: 2026-07-31 | B75: 67 | C75: =IF(H74>0,H74,0) -> 1672946.186 | D75: =IF(ISNA(VLOOKUP($A75,ForecastPmt!$A$6:$C$365,3,0))=TRUE,0,VLOOKUP($A75,ForecastPmt!$A$6:$C$365,3,0)) -> 0 | E75: =IF(H74>$E$9,$E$9,IF(H74+F75>$E$9,$E$9,H74+F75)) -> 19633.38438 | F75: 14289.74867 | G75: 5343.635713 | H75: 1667602.55 | I75: 0.8588450004 | K75: =IF(O74>0,O74,0) -> 1672946.186 | L75: =IF($C$5+1-B75=0,0,L74) -> 19633.38438 | M75: 14289.74867 | N75: 5343.635713 | O75: 1667602.55 | P75: 0.8588450004
A76: 2026-08-31 | B76: 68 | C76: 1667602.55 | D76: =IF(ISNA(VLOOKUP($A76,ForecastPmt!$A$6:$C$365,3,0))=TRUE,0,VLOOKUP($A76,ForecastPmt!$A$6:$C$365,3,0)) -> 0 | E76: 19633.38438 | F76: 14244.10512 | G76: 5389.279269 | H76: 1662213.271 | I76: 0.8560694256 | K76: 1667602.55 | L76: 19633.38438 | M76: 14244.10512 | N76: 5389.279269 | O76: 1662213.271 | P76: 0.8560694256
A77: 2026-09-30 | B77: 69 | C77: 1662213.271 | D77: =IF(ISNA(VLOOKUP($A77,ForecastPmt!$A$6:$C$365,3,0))=TRUE,0,VLOOKUP($A77,ForecastPmt!$A$6:$C$365,3,0)) -> 0 | E77: 19633.38438 | F77: 14198.07169 | G77: 5435.312696 | H77: 1656777.958 | I77: 0.8532701429 | K77: 1662213.271 | L77: 19633.38438 | M77: 14198.07169 | N77: 5435.312696 | O77: 1656777.958 | P77: 0.8532701429
A78: 2026-10-31 | B78: 70 | C78: 1656777.958 | D78: =IF(ISNA(VLOOKUP($A78,ForecastPmt!$A$6:$C$365,3,0))=TRUE,0,VLOOKUP($A78,ForecastPmt!$A$6:$C$365,3,0)) -> 0 | E78: 19633.38438 | F78: 14151.64506 | G78: 5481.739325 | H78: 1651296.219 | I78: 0.8504469495 | K78: 1656777.958 | L78: 19633.38438 | M78: 14151.64506 | N78: 5481.739325 | O78: 1651296.219 | P78: 0.8504469495
A79: 2026-11-30 | B79: 71 | C79: 1651296.219 | D79: =IF(ISNA(VLOOKUP($A79,ForecastPmt!$A$6:$C$365,3,0))=TRUE,0,VLOOKUP($A79,ForecastPmt!$A$6:$C$365,3,0)) -> 0 | E79: 19633.38438 | F79: 14104.82187 | G79: 5528.562515 | H79: 1645767.656 | I79: 0.8475996414 | K79: 1651296.219 | L79: 19633.38438 | M79: 14104.82187 | N79: 5528.562515 | O79: 1645767.656 | P79: 0.8475996414
A80: 2026-12-31 | B80: 72 | C80: 1645767.656 | D80: =IF(ISNA(VLOOKUP($A80,ForecastPmt!$A$6:$C$365,3,0))=TRUE,0,VLOOKUP($A80,ForecastPmt!$A$6:$C$365,3,0)) -> 0 | E80: 19633.38438 | F80: 14057.59873 | G80: 5575.785653 | H80: 1640191.871 | I80: 0.8447280125 | K80: 1645767.656 | L80: 19633.38438 | M80: 14057.59873 | N80: 5575.785653 | O80: 1640191.871 | P80: 0.8447280125
A81: 2027-01-31 | B81: 73 | C81: 1640191.871 | D81: =IF(ISNA(VLOOKUP($A81,ForecastPmt!$A$6:$C$365,3,0))=TRUE,0,VLOOKUP($A81,ForecastPmt!$A$6:$C$365,3,0)) -> 0 | E81: 19633.38438 | F81: 14009.97223 | G81: 5623.412156 | H81: 1634568.459 | I81: 0.8418318552 | K81: 1640191.871 | L81: 19633.38438 | M81: 14009.97223 | N81: 5623.412156 | O81: 1634568.459 | P81: 0.8418318552
A82: 2027-02-28 | B82: 74 | C82: 1634568.459 | D82: =IF(ISNA(VLOOKUP($A82,ForecastPmt!$A$6:$C$365,3,0))=TRUE,0,VLOOKUP($A82,ForecastPmt!$A$6:$C$365,3,0)) -> 0 | E82: 19633.38438 | F82: 13961.93892 | G82: 5671.445468 | H82: 1628897.013 | I82: 0.8389109598 | K82: 1634568.459 | L82: 19633.38438 | M82: 13961.93892 | N82: 5671.445468 | O82: 1628897.013 | P82: 0.8389109598
A83: 2027-03-31 | B83: 75 | C83: 1628897.013 | D83: =IF(ISNA(VLOOKUP($A83,ForecastPmt!$A$6:$C$365,3,0))=TRUE,0,VLOOKUP($A83,ForecastPmt!$A$6:$C$365,3,0)) -> 0 | E83: 19633.38438 | F83: 13913.49532 | G83: 5719.889064 | H83: 1623177.124 | I83: 0.8359651151 | K83: 1628897.013 | L83: 19633.38438 | M83: 13913.49532 | N83: 5719.889064 | O83: 1623177.124 | P83: 0.8359651151
A84: 2027-04-30 | B84: 76 | C84: 1623177.124 | D84: =IF(ISNA(VLOOKUP($A84,ForecastPmt!$A$6:$C$365,3,0))=TRUE,0,VLOOKUP($A84,ForecastPmt!$A$6:$C$365,3,0)) -> 0 | E84: 19633.38438 | F84: 13864.63793 | G84: 5768.74645 | H84: 1617408.378 | I84: 0.832994108 | K84: 1623177.124 | L84: 19633.38438 | M84: 13864.63793 | N84: 5768.74645 | O84: 1617408.378 | P84: 0.832994108
A85: 2027-05-31 | B85: 77 | C85: 1617408.378 | D85: =IF(ISNA(VLOOKUP($A85,ForecastPmt!$A$6:$C$365,3,0))=TRUE,0,VLOOKUP($A85,ForecastPmt!$A$6:$C$365,3,0)) -> 0 | E85: 19633.38438 | F85: 13815.36322 | G85: 5818.021159 | H85: 1611590.356 | I85: 0.8299977235 | K85: 1617408.378 | L85: 19633.38438 | M85: 13815.36322 | N85: 5818.021159 | O85: 1611590.356 | P85: 0.8299977235
A86: 2027-06-30 | B86: 78 | C86: 1611590.356 | D86: =IF(ISNA(VLOOKUP($A86,ForecastPmt!$A$6:$C$365,3,0))=TRUE,0,VLOOKUP($A86,ForecastPmt!$A$6:$C$365,3,0)) -> 0 | E86: 19633.38438 | F86: 13765.66763 | G86: 5867.716757 | H86: 1605722.64 | I86: 0.8269757449 | K86: 1611590.356 | L86: 19633.38438 | M86: 13765.66763 | N86: 5867.716757 | O86: 1605722.64 | P86: 0.8269757449
A87: 2027-07-31 | B87: 79 | C87: 1605722.64 | D87: =IF(ISNA(VLOOKUP($A87,ForecastPmt!$A$6:$C$365,3,0))=TRUE,0,VLOOKUP($A87,ForecastPmt!$A$6:$C$365,3,0)) -> 0 | E87: 19633.38438 | F87: 13715.54755 | G87: 5917.836837 | H87: 1599804.803 | I87: 0.8239279536 | K87: 1605722.64 | L87: 19633.38438 | M87: 13715.54755 | N87: 5917.836837 | O87: 1599804.803 | P87: 0.8239279536
A88: 2027-08-31 | B88: 80 | C88: 1599804.803 | D88: =IF(ISNA(VLOOKUP($A88,ForecastPmt!$A$6:$C$365,3,0))=TRUE,0,VLOOKUP($A88,ForecastPmt!$A$6:$C$365,3,0)) -> 0 | E88: 19633.38438 | F88: 13664.99936 | G88: 5968.385027 | H88: 1593836.418 | I88: 0.820854129 | K88: 1599804.803 | L88: 19633.38438 | M88: 13664.99936 | N88: 5968.385027 | O88: 1593836.418 | P88: 0.820854129
A89: 2027-09-30 | B89: 81 | C89: 1593836.418 | D89: =IF(ISNA(VLOOKUP($A89,ForecastPmt!$A$6:$C$365,3,0))=TRUE,0,VLOOKUP($A89,ForecastPmt!$A$6:$C$365,3,0)) -> 0 | E89: 19633.38438 | F89: 13614.0194 | G89: 6019.364983 | H89: 1587817.053 | I89: 0.8177540489 | K89: 1593836.418 | L89: 19633.38438 | M89: 13614.0194 | N89: 6019.364983 | O89: 1587817.053 | P89: 0.8177540489
A90: 2027-10-31 | B90: 82 | C90: 1587817.053 | D90: =IF(ISNA(VLOOKUP($A90,ForecastPmt!$A$6:$C$365,3,0))=TRUE,0,VLOOKUP($A90,ForecastPmt!$A$6:$C$365,3,0)) -> 0 | E90: 19633.38438 | F90: 13562.60399 | G90: 6070.780392 | H90: 1581746.272 | I90: 0.8146274889 | K90: 1587817.053 | L90: 19633.38438 | M90: 13562.60399 | N90: 6070.780392 | O90: 1581746.272 | P90: 0.8146274889
A91: 2027-11-30 | B91: 83 | C91: 1581746.272 | D91: =IF(ISNA(VLOOKUP($A91,ForecastPmt!$A$6:$C$365,3,0))=TRUE,0,VLOOKUP($A91,ForecastPmt!$A$6:$C$365,3,0)) -> 0 | E91: 19633.38438 | F91: 13510.74941 | G91: 6122.634974 | H91: 1575623.637 | I91: 0.8114742229 | K91: 1581746.272 | L91: 19633.38438 | M91: 13510.74941 | N91: 6122.634974 | O91: 1575623.637 | P91: 0.8114742229
A92: 2027-12-31 | B92: 84 | C92: 1575623.637 | D92: =IF(ISNA(VLOOKUP($A92,ForecastPmt!$A$6:$C$365,3,0))=TRUE,0,VLOOKUP($A92,ForecastPmt!$A$6:$C$365,3,0)) -> 0 | E92: 19633.38438 | F92: 13458.4519 | G92: 6174.932481 | H92: 1569448.705 | I92: 0.8082940228 | K92: 1575623.637 | L92: 19633.38438 | M92: 13458.4519 | N92: 6174.932481 | O92: 1569448.705 | P92: 0.8082940228
A93: 2028-01-31 | B93: 85 | C93: 1569448.705 | D93: =IF(ISNA(VLOOKUP($A93,ForecastPmt!$A$6:$C$365,3,0))=TRUE,0,VLOOKUP($A93,ForecastPmt!$A$6:$C$365,3,0)) -> 0 | E93: 19633.38438 | F93: 13405.70769 | G93: 6227.676696 | H93: 1563221.028 | I93: 0.8050866584 | K93: 1569448.705 | L93: 19633.38438 | M93: 13405.70769 | N93: 6227.676696 | O93: 1563221.028 | P93: 0.8050866584
A94: 2028-02-29 | B94: 86 | C94: 1563221.028 | D94: =IF(ISNA(VLOOKUP($A94,ForecastPmt!$A$6:$C$365,3,0))=TRUE,0,VLOOKUP($A94,ForecastPmt!$A$6:$C$365,3,0)) -> 0 | E94: 19633.38438 | F94: 13352.51295 | G94: 6280.871435 | H94: 1556940.157 | I94: 0.8018518978 | K94: 1563221.028 | L94: 19633.38438 | M94: 13352.51295 | N94: 6280.871435 | O94: 1556940.157 | P94: 0.8018518978
A95: 2028-03-31 | B95: 87 | C95: 1556940.157 | D95: =IF(ISNA(VLOOKUP($A95,ForecastPmt!$A$6:$C$365,3,0))=TRUE,0,VLOOKUP($A95,ForecastPmt!$A$6:$C$365,3,0)) -> 0 | E95: 19633.38438 | F95: 13298.86384 | G95: 6334.520545 | H95: 1550605.636 | I95: 0.798589507 | K95: 1556940.157 | L95: 19633.38438 | M95: 13298.86384 | N95: 6334.520545 | O95: 1550605.636 | P95: 0.798589507
A96: 2028-04-30 | B96: 88 | C96: 1550605.636 | D96: =IF(ISNA(VLOOKUP($A96,ForecastPmt!$A$6:$C$365,3,0))=TRUE,0,VLOOKUP($A96,ForecastPmt!$A$6:$C$365,3,0)) -> 0 | E96: 19633.38438 | F96: 13244.75648 | G96: 6388.627908 | H96: 1544217.008 | I96: 0.7952992499 | K96: 1550605.636 | L96: 19633.38438 | M96: 13244.75648 | N96: 6388.627908 | O96: 1544217.008 | P96: 0.7952992499
A97: 2028-05-31 | B97: 89 | C97: 1544217.008 | D97: =IF(ISNA(VLOOKUP($A97,ForecastPmt!$A$6:$C$365,3,0))=TRUE,0,VLOOKUP($A97,ForecastPmt!$A$6:$C$365,3,0)) -> 0 | E97: 19633.38438 | F97: 13190.18695 | G97: 6443.197438 | H97: 1537773.811 | I97: 0.7919808885 | K97: 1544217.008 | L97: 19633.38438 | M97: 13190.18695 | N97: 6443.197438 | O97: 1537773.811 | P97: 0.7919808885
A98: 2028-06-30 | B98: 90 | C98: 1537773.811 | D98: =IF(ISNA(VLOOKUP($A98,ForecastPmt!$A$6:$C$365,3,0))=TRUE,0,VLOOKUP($A98,ForecastPmt!$A$6:$C$365,3,0)) -> 0 | E98: 19633.38438 | F98: 13135.1513 | G98: 6498.233083 | H98: 1531275.578 | I98: 0.7886341827 | K98: 1537773.811 | L98: 19633.38438 | M98: 13135.1513 | N98: 6498.233083 | O98: 1531275.578 | P98: 0.7886341827
A99: 2028-07-31 | B99: 91 | C99: 1531275.578 | D99: =IF(ISNA(VLOOKUP($A99,ForecastPmt!$A$6:$C$365,3,0))=TRUE,0,VLOOKUP($A99,ForecastPmt!$A$6:$C$365,3,0)) -> 0 | E99: 19633.38438 | F99: 13079.64556 | G99: 6553.738824 | H99: 1524721.839 | I99: 0.7852588906 | K99: 1531275.578 | L99: 19633.38438 | M99: 13079.64556 | N99: 6553.738824 | O99: 1524721.839 | P99: 0.7852588906
A100: 2028-08-31 | B100: 92 | C100: 1524721.839 | D100: =IF(ISNA(VLOOKUP($A100,ForecastPmt!$A$6:$C$365,3,0))=TRUE,0,VLOOKUP($A100,ForecastPmt!$A$6:$C$365,3,0)) -> 0 | E100: 19633.38438 | F100: 13023.66571 | G100: 6609.718676 | H100: 1518112.12 | I100: 0.7818547678 | K100: 1524721.839 | L100: 19633.38438 | M100: 13023.66571 | N100: 6609.718676 | O100: 1518112.12 | P100: 0.7818547678
A101: 2028-09-30 | B101: 93 | C101: 1518112.12 | D101: =IF(ISNA(VLOOKUP($A101,ForecastPmt!$A$6:$C$365,3,0))=TRUE,0,VLOOKUP($A101,ForecastPmt!$A$6:$C$365,3,0)) -> 0 | E101: 19633.38438 | F101: 12967.20769 | G101: 6666.17669 | H101: 1511445.944 | I101: 0.7784215681 | K101: 1518112.12 | L101: 19633.38438 | M101: 12967.20769 | N101: 6666.17669 | O101: 1511445.944 | P101: 0.7784215681
A102: 2028-10-31 | B102: 94 | C102: 1511445.944 | D102: =IF(ISNA(VLOOKUP($A102,ForecastPmt!$A$6:$C$365,3,0))=TRUE,0,VLOOKUP($A102,ForecastPmt!$A$6:$C$365,3,0)) -> 0 | E102: 19633.38438 | F102: 12910.26744 | G102: 6723.116949 | H102: 1504722.827 | I102: 0.7749590432 | K102: 1511445.944 | L102: 19633.38438 | M102: 12910.26744 | N102: 6723.116949 | O102: 1504722.827 | P102: 0.7749590432
A103: 2028-11-30 | B103: 95 | C103: 1504722.827 | D103: =IF(ISNA(VLOOKUP($A103,ForecastPmt!$A$6:$C$365,3,0))=TRUE,0,VLOOKUP($A103,ForecastPmt!$A$6:$C$365,3,0)) -> 0 | E103: 19633.38438 | F103: 12852.84081 | G103: 6780.543573 | H103: 1497942.283 | I103: 0.7714669426 | K103: 1504722.827 | L103: 19633.38438 | M103: 12852.84081 | N103: 6780.543573 | O103: 1497942.283 | P103: 0.7714669426
A104: 2028-12-31 | B104: 96 | C104: 1497942.283 | D104: =IF(ISNA(VLOOKUP($A104,ForecastPmt!$A$6:$C$365,3,0))=TRUE,0,VLOOKUP($A104,ForecastPmt!$A$6:$C$365,3,0)) -> 0 | E104: 19633.38438 | F104: 12794.92367 | G104: 6838.460716 | H104: 1491103.822 | I104: 0.7679450136 | K104: 1497942.283 | L104: 19633.38438 | M104: 12794.92367 | N104: 6838.460716 | O104: 1491103.822 | P104: 0.7679450136
A105: 2029-01-31 | B105: 97 | C105: 1491103.822 | D105: =IF(ISNA(VLOOKUP($A105,ForecastPmt!$A$6:$C$365,3,0))=TRUE,0,VLOOKUP($A105,ForecastPmt!$A$6:$C$365,3,0)) -> 0 | E105: 19633.38438 | F105: 12736.51182 | G105: 6896.872568 | H105: 1484206.95 | I105: 0.7643930014 | K105: 1491103.822 | L105: 19633.38438 | M105: 12736.51182 | N105: 6896.872568 | O105: 1484206.95 | P105: 0.7643930014
A106: 2029-02-28 | B106: 98 | C106: 1484206.95 | D106: =IF(ISNA(VLOOKUP($A106,ForecastPmt!$A$6:$C$365,3,0))=TRUE,0,VLOOKUP($A106,ForecastPmt!$A$6:$C$365,3,0)) -> 0 | E106: 19633.38438 | F106: 12677.60103 | G106: 6955.783354 | H106: 1477251.166 | I106: 0.7608106491 | K106: 1484206.95 | L106: 19633.38438 | M106: 12677.60103 | N106: 6955.783354 | O106: 1477251.166 | P106: 0.7608106491
A107: 2029-03-31 | B107: 99 | C107: 1477251.166 | D107: =IF(ISNA(VLOOKUP($A107,ForecastPmt!$A$6:$C$365,3,0))=TRUE,0,VLOOKUP($A107,ForecastPmt!$A$6:$C$365,3,0)) -> 0 | E107: 19633.38438 | F107: 12618.18705 | G107: 7015.197337 | H107: 1470235.969 | I107: 0.7571976976 | K107: 1477251.166 | L107: 19633.38438 | M107: 12618.18705 | N107: 7015.197337 | O107: 1470235.969 | P107: 0.7571976976
A108: 2029-04-30 | B108: 100 | C108: 1470235.969 | D108: =IF(ISNA(VLOOKUP($A108,ForecastPmt!$A$6:$C$365,3,0))=TRUE,0,VLOOKUP($A108,ForecastPmt!$A$6:$C$365,3,0)) -> 0 | E108: 19633.38438 | F108: 12558.26557 | G108: 7075.118815 | H108: 1463160.85 | I108: 0.7535538855 | K108: 1470235.969 | L108: 19633.38438 | M108: 12558.26557 | N108: 7075.118815 | O108: 1463160.85 | P108: 0.7535538855
A109: 2029-05-31 | B109: 101 | C109: 1463160.85 | D109: =IF(ISNA(VLOOKUP($A109,ForecastPmt!$A$6:$C$365,3,0))=TRUE,0,VLOOKUP($A109,ForecastPmt!$A$6:$C$365,3,0)) -> 0 | E109: 19633.38438 | F109: 12497.83226 | G109: 7135.552121 | H109: 1456025.298 | I109: 0.7498789491 | K109: 1463160.85 | L109: 19633.38438 | M109: 12497.83226 | N109: 7135.552121 | O109: 1456025.298 | P109: 0.7498789491
A110: 2029-06-30 | B110: 102 | C110: 1456025.298 | D110: =IF(ISNA(VLOOKUP($A110,ForecastPmt!$A$6:$C$365,3,0))=TRUE,0,VLOOKUP($A110,ForecastPmt!$A$6:$C$365,3,0)) -> 0 | E110: 19633.38438 | F110: 12436.88276 | G110: 7196.501629 | H110: 1448828.797 | I110: 0.7461726227 | K110: 1456025.298 | L110: 19633.38438 | M110: 12436.88276 | N110: 7196.501629 | O110: 1448828.797 | P110: 0.7461726227
A111: 2029-07-31 | B111: 103 | C111: 1448828.797 | D111: =IF(ISNA(VLOOKUP($A111,ForecastPmt!$A$6:$C$365,3,0))=TRUE,0,VLOOKUP($A111,ForecastPmt!$A$6:$C$365,3,0)) -> 0 | E111: 19633.38438 | F111: 12375.41264 | G111: 7257.971747 | H111: 1441570.825 | I111: 0.742434638 | K111: 1448828.797 | L111: 19633.38438 | M111: 12375.41264 | N111: 7257.971747 | O111: 1441570.825 | P111: 0.742434638
A112: 2029-08-31 | B112: 104 | C112: 1441570.825 | D112: =IF(ISNA(VLOOKUP($A112,ForecastPmt!$A$6:$C$365,3,0))=TRUE,0,VLOOKUP($A112,ForecastPmt!$A$6:$C$365,3,0)) -> 0 | E112: 19633.38438 | F112: 12313.41746 | G112: 7319.966922 | H112: 1434250.858 | I112: 0.7386647247 | K112: 1441570.825 | L112: 19633.38438 | M112: 12313.41746 | N112: 7319.966922 | O112: 1434250.858 | P112: 0.7386647247
A113: 2029-09-30 | B113: 105 | C113: 1434250.858 | D113: =IF(ISNA(VLOOKUP($A113,ForecastPmt!$A$6:$C$365,3,0))=TRUE,0,VLOOKUP($A113,ForecastPmt!$A$6:$C$365,3,0)) -> 0 | E113: 19633.38438 | F113: 12250.89274 | G113: 7382.49164 | H113: 1426868.366 | I113: 0.7348626101 | K113: 1434250.858 | L113: 19633.38438 | M113: 12250.89274 | N113: 7382.49164 | O113: 1426868.366 | P113: 0.7348626101
A114: 2029-10-31 | B114: 106 | C114: 1426868.366 | D114: =IF(ISNA(VLOOKUP($A114,ForecastPmt!$A$6:$C$365,3,0))=TRUE,0,VLOOKUP($A114,ForecastPmt!$A$6:$C$365,3,0)) -> 0 | E114: 19633.38438 | F114: 12187.83396 | G114: 7445.550422 | H114: 1419422.816 | I114: 0.7310280191 | K114: 1426868.366 | L114: 19633.38438 | M114: 12187.83396 | N114: 7445.550422 | O114: 1419422.816 | P114: 0.7310280191
A115: 2029-11-30 | B115: 107 | C115: 1419422.816 | D115: =IF(ISNA(VLOOKUP($A115,ForecastPmt!$A$6:$C$365,3,0))=TRUE,0,VLOOKUP($A115,ForecastPmt!$A$6:$C$365,3,0)) -> 0 | E115: 19633.38438 | F115: 12124.23655 | G115: 7509.147832 | H115: 1411913.668 | I115: 0.7271606743 | K115: 1419422.816 | L115: 19633.38438 | M115: 12124.23655 | N115: 7509.147832 | O115: 1411913.668 | P115: 0.7271606743
A116: 2029-12-31 | B116: 108 | C116: 1411913.668 | D116: =IF(ISNA(VLOOKUP($A116,ForecastPmt!$A$6:$C$365,3,0))=TRUE,0,VLOOKUP($A116,ForecastPmt!$A$6:$C$365,3,0)) -> 0 | E116: 19633.38438 | F116: 12060.09591 | G116: 7573.28847 | H116: 1404340.38 | I116: 0.7232602959 | K116: 1411913.668 | L116: 19633.38438 | M116: 12060.09591 | N116: 7573.28847 | O116: 1404340.38 | P116: 0.7232602959
A117: 2030-01-31 | B117: 109 | C117: 1404340.38 | D117: =IF(ISNA(VLOOKUP($A117,ForecastPmt!$A$6:$C$365,3,0))=TRUE,0,VLOOKUP($A117,ForecastPmt!$A$6:$C$365,3,0)) -> 0 | E117: 19633.38438 | F117: 11995.40741 | G117: 7637.976976 | H117: 1396702.403 | I117: 0.7193266018 | K117: 1404340.38 | L117: 19633.38438 | M117: 11995.40741 | N117: 7637.976976 | O117: 1396702.403 | P117: 0.7193266018
A118: 2030-02-28 | B118: 110 | C118: 1396702.403 | D118: =IF(ISNA(VLOOKUP($A118,ForecastPmt!$A$6:$C$365,3,0))=TRUE,0,VLOOKUP($A118,ForecastPmt!$A$6:$C$365,3,0)) -> 0 | E118: 19633.38438 | F118: 11930.16636 | G118: 7703.218029 | H118: 1388999.185 | I118: 0.7153593074 | K118: 1396702.403 | L118: 19633.38438 | M118: 11930.16636 | N118: 7703.218029 | O118: 1388999.185 | P118: 0.7153593074
A119: 2030-03-31 | B119: 111 | C119: 1388999.185 | D119: =IF(ISNA(VLOOKUP($A119,ForecastPmt!$A$6:$C$365,3,0))=TRUE,0,VLOOKUP($A119,ForecastPmt!$A$6:$C$365,3,0)) -> 0 | E119: 19633.38438 | F119: 11864.36803 | G119: 7769.01635 | H119: 1381230.168 | I119: 0.7113581256 | K119: 1388999.185 | L119: 19633.38438 | M119: 11864.36803 | N119: 7769.01635 | O119: 1381230.168 | P119: 0.7113581256
A120: 2030-04-30 | B120: 112 | C120: 1381230.168 | D120: =IF(ISNA(VLOOKUP($A120,ForecastPmt!$A$6:$C$365,3,0))=TRUE,0,VLOOKUP($A120,ForecastPmt!$A$6:$C$365,3,0)) -> 0 | E120: 19633.38438 | F120: 11798.00769 | G120: 7835.376698 | H120: 1373394.792 | I120: 0.7073227671 | K120: 1381230.168 | L120: 19633.38438 | M120: 11798.00769 | N120: 7835.376698 | O120: 1373394.792 | P120: 0.7073227671
A121: 2030-05-31 | B121: 113 | C121: 1373394.792 | D121: =IF(ISNA(VLOOKUP($A121,ForecastPmt!$A$6:$C$365,3,0))=TRUE,0,VLOOKUP($A121,ForecastPmt!$A$6:$C$365,3,0)) -> 0 | E121: 19633.38438 | F121: 11731.08051 | G121: 7902.303874 | H121: 1365492.488 | I121: 0.70325294 | K121: 1373394.792 | L121: 19633.38438 | M121: 11731.08051 | N121: 7902.303874 | O121: 1365492.488 | P121: 0.70325294
A122: 2030-06-30 | B122: 114 | C122: 1365492.488 | D122: =IF(ISNA(VLOOKUP($A122,ForecastPmt!$A$6:$C$365,3,0))=TRUE,0,VLOOKUP($A122,ForecastPmt!$A$6:$C$365,3,0)) -> 0 | E122: 19633.38438 | F122: 11663.58167 | G122: 7969.802719 | H122: 1357522.685 | I122: 0.6991483497 | K122: 1365492.488 | L122: 19633.38438 | M122: 11663.58167 | N122: 7969.802719 | O122: 1357522.685 | P122: 0.6991483497
A123: 2030-07-31 | B123: 115 | C123: 1357522.685 | D123: =IF(ISNA(VLOOKUP($A123,ForecastPmt!$A$6:$C$365,3,0))=TRUE,0,VLOOKUP($A123,ForecastPmt!$A$6:$C$365,3,0)) -> 0 | E123: 19633.38438 | F123: 11595.50627 | G123: 8037.878117 | H123: 1349484.807 | I123: 0.6950086994 | K123: 1357522.685 | L123: 19633.38438 | M123: 11595.50627 | N123: 8037.878117 | O123: 1349484.807 | P123: 0.6950086994
A124: 2030-08-31 | B124: 116 | C124: 1349484.807 | D124: =IF(ISNA(VLOOKUP($A124,ForecastPmt!$A$6:$C$365,3,0))=TRUE,0,VLOOKUP($A124,ForecastPmt!$A$6:$C$365,3,0)) -> 0 | E124: 19633.38438 | F124: 11526.84939 | G124: 8106.534993 | H124: 1341378.272 | I124: 0.6908336895 | K124: 1349484.807 | L124: 19633.38438 | M124: 11526.84939 | N124: 8106.534993 | O124: 1341378.272 | P124: 0.6908336895
A125: 2030-09-30 | B125: 117 | C125: 1341378.272 | D125: =IF(ISNA(VLOOKUP($A125,ForecastPmt!$A$6:$C$365,3,0))=TRUE,0,VLOOKUP($A125,ForecastPmt!$A$6:$C$365,3,0)) -> 0 | E125: 19633.38438 | F125: 11457.60607 | G125: 8175.778313 | H125: 1333202.493 | I125: 0.6866230182 | K125: 1341378.272 | L125: 19633.38438 | M125: 11457.60607 | N125: 8175.778313 | O125: 1333202.493 | P125: 0.6866230182
A126: 2030-10-31 | B126: 118 | C126: 1333202.493 | D126: =IF(ISNA(VLOOKUP($A126,ForecastPmt!$A$6:$C$365,3,0))=TRUE,0,VLOOKUP($A126,ForecastPmt!$A$6:$C$365,3,0)) -> 0 | E126: 19633.38438 | F126: 11387.7713 | G126: 8245.613086 | H126: 1324956.88 | I126: 0.6823763806 | K126: 1333202.493 | L126: 19633.38438 | M126: 11387.7713 | N126: 8245.613086 | O126: 1324956.88 | P126: 0.6823763806
A127: 2030-11-30 | B127: 119 | C127: 1324956.88 | D127: =IF(ISNA(VLOOKUP($A127,ForecastPmt!$A$6:$C$365,3,0))=TRUE,0,VLOOKUP($A127,ForecastPmt!$A$6:$C$365,3,0)) -> 0 | E127: 19633.38438 | F127: 11317.34002 | G127: 8316.044364 | H127: 1316640.836 | I127: 0.6780934697 | K127: 1324956.88 | L127: 19633.38438 | M127: 11317.34002 | N127: 8316.044364 | O127: 1316640.836 | P127: 0.6780934697
A128: 2030-12-31 | B128: 120 | C128: 1316640.836 | D128: =IF(ISNA(VLOOKUP($A128,ForecastPmt!$A$6:$C$365,3,0))=TRUE,0,VLOOKUP($A128,ForecastPmt!$A$6:$C$365,3,0)) -> 0 | E128: 19633.38438 | F128: 11246.30714 | G128: 8387.077243 | H128: 1308253.759 | I128: 0.6737739756 | K128: 1316640.836 | L128: 19633.38438 | M128: 11246.30714 | N128: 8387.077243 | O128: 1308253.759 | P128: 0.6737739756
A129: 2031-01-31 | B129: 121 | C129: 1308253.759 | D129: =IF(ISNA(VLOOKUP($A129,ForecastPmt!$A$6:$C$365,3,0))=TRUE,0,VLOOKUP($A129,ForecastPmt!$A$6:$C$365,3,0)) -> 0 | E129: 19633.38438 | F129: 11174.66752 | G129: 8458.716861 | H129: 1299795.042 | I129: 0.6694175859 | K129: 1308253.759 | L129: 19633.38438 | M129: 11174.66752 | N129: 8458.716861 | O129: 1299795.042 | P129: 0.6694175859
A130: 2031-02-28 | B130: 122 | C130: 1299795.042 | D130: =IF(ISNA(VLOOKUP($A130,ForecastPmt!$A$6:$C$365,3,0))=TRUE,0,VLOOKUP($A130,ForecastPmt!$A$6:$C$365,3,0)) -> 0 | E130: 19633.38438 | F130: 11102.41598 | G130: 8530.968401 | H130: 1291264.074 | I130: 0.6650239853 | K130: 1299795.042 | L130: 19633.38438 | M130: 11102.41598 | N130: 8530.968401 | O130: 1291264.074 | P130: 0.6650239853
A131: 2031-03-31 | B131: 123 | C131: 1291264.074 | D131: =IF(ISNA(VLOOKUP($A131,ForecastPmt!$A$6:$C$365,3,0))=TRUE,0,VLOOKUP($A131,ForecastPmt!$A$6:$C$365,3,0)) -> 0 | E131: 19633.38438 | F131: 11029.54729 | G131: 8603.83709 | H131: 1282660.236 | I131: 0.660592856 | K131: 1291264.074 | L131: 19633.38438 | M131: 11029.54729 | N131: 8603.83709 | O131: 1282660.236 | P131: 0.660592856
A132: 2031-04-30 | B132: 124 | C132: 1282660.236 | D132: =IF(ISNA(VLOOKUP($A132,ForecastPmt!$A$6:$C$365,3,0))=TRUE,0,VLOOKUP($A132,ForecastPmt!$A$6:$C$365,3,0)) -> 0 | E132: 19633.38438 | F132: 10956.05619 | G132: 8677.328198 | H132: 1273982.908 | I132: 0.6561238775 | K132: 1282660.236 | L132: 19633.38438 | M132: 10956.05619 | N132: 8677.328198 | O132: 1273982.908 | P132: 0.6561238775
A133: 2031-05-31 | B133: 125 | C133: 1273982.908 | D133: =IF(ISNA(VLOOKUP($A133,ForecastPmt!$A$6:$C$365,3,0))=TRUE,0,VLOOKUP($A133,ForecastPmt!$A$6:$C$365,3,0)) -> 0 | E133: 19633.38438 | F133: 10881.93734 | G133: 8751.447043 | H133: 1265231.461 | I133: 0.6516167265 | K133: 1273982.908 | L133: 19633.38438 | M133: 10881.93734 | N133: 8751.447043 | O133: 1265231.461 | P133: 0.6516167265
A134: 2031-06-30 | B134: 126 | C134: 1265231.461 | D134: =IF(ISNA(VLOOKUP($A134,ForecastPmt!$A$6:$C$365,3,0))=TRUE,0,VLOOKUP($A134,ForecastPmt!$A$6:$C$365,3,0)) -> 0 | E134: 19633.38438 | F134: 10807.1854 | G134: 8826.198987 | H134: 1256405.262 | I134: 0.6470710769 | K134: 1265231.461 | L134: 19633.38438 | M134: 10807.1854 | N134: 8826.198987 | O134: 1256405.262 | P134: 0.6470710769
A135: 2031-07-31 | B135: 127 | C135: 1256405.262 | D135: =IF(ISNA(VLOOKUP($A135,ForecastPmt!$A$6:$C$365,3,0))=TRUE,0,VLOOKUP($A135,ForecastPmt!$A$6:$C$365,3,0)) -> 0 | E135: 19633.38438 | F135: 10731.79495 | G135: 8901.589436 | H135: 1247503.673 | I135: 0.6424865999 | K135: 1256405.262 | L135: 19633.38438 | M135: 10731.79495 | N135: 8901.589436 | O135: 1247503.673 | P135: 0.6424865999
A136: 2031-08-31 | B136: 128 | C136: 1247503.673 | D136: =IF(ISNA(VLOOKUP($A136,ForecastPmt!$A$6:$C$365,3,0))=TRUE,0,VLOOKUP($A136,ForecastPmt!$A$6:$C$365,3,0)) -> 0 | E136: 19633.38438 | F136: 10655.76054 | G136: 8977.623846 | H136: 1238526.049 | I136: 0.6378629638 | K136: 1247503.673 | L136: 19633.38438 | M136: 10655.76054 | N136: 8977.623846 | O136: 1238526.049 | P136: 0.6378629638
A137: 2031-09-30 | B137: 129 | C137: 1238526.049 | D137: =IF(ISNA(VLOOKUP($A137,ForecastPmt!$A$6:$C$365,3,0))=TRUE,0,VLOOKUP($A137,ForecastPmt!$A$6:$C$365,3,0)) -> 0 | E137: 19633.38438 | F137: =C137*$C$4/12 -> 10579.07667 | G137: 9054.307716 | H137: 1229471.741 | I137: =H137/$C$3 -> 0.6331998341 | K137: 1238526.049 | L137: 19633.38438 | M137: =K137*$C$4/12 -> 10579.07667 | N137: =L137-M137 -> 9054.307716 | O137: 1229471.741 | P137: =O137/$C$3 -> 0.6331998341
A138: =DATE(YEAR(A137),MONTH(A137)+2,1-1) -> 2031-10-31 | B138: 130 | C138: 1229471.741 | D138: =IF(ISNA(VLOOKUP($A138,ForecastPmt!$A$6:$C$365,3,0))=TRUE,0,VLOOKUP($A138,ForecastPmt!$A$6:$C$365,3,0)) -> 0 | E138: 19633.38438 | F138: 10501.73779 | G138: =D138+E138-F138 -> 9131.646595 | H138: =IF(C138-G138<0.009,0,C138-G138) -> 1220340.095 | I138: 0.6284968735 | K138: 1229471.741 | L138: 19633.38438 | M138: 10501.73779 | N138: 9131.646595 | O138: =IF(K138-N138<0.009,0,K138-N138) -> 1220340.095 | P138: 0.6284968735
A139: 2031-11-30 | B139: 131 | C139: =IF(H138>0,H138,0) -> 1220340.095 | D139: =IF(ISNA(VLOOKUP($A139,ForecastPmt!$A$6:$C$365,3,0))=TRUE,0,VLOOKUP($A139,ForecastPmt!$A$6:$C$365,3,0)) -> 0 | E139: =IF(H138>$E$9,$E$9,IF(H138+F139>$E$9,$E$9,H138+F139)) -> 19633.38438 | F139: 10423.73831 | G139: 9209.646076 | H139: 1211130.449 | I139: 0.6237537419 | K139: =IF(O138>0,O138,0) -> 1220340.095 | L139: =IF($C$5+1-B139=0,0,L138) -> 19633.38438 | M139: 10423.73831 | N139: 9209.646076 | O139: 1211130.449 | P139: 0.6237537419
A140: 2031-12-31 | B140: 132 | C140: 1211130.449 | D140: =IF(ISNA(VLOOKUP($A140,ForecastPmt!$A$6:$C$365,3,0))=TRUE,0,VLOOKUP($A140,ForecastPmt!$A$6:$C$365,3,0)) -> 0 | E140: 19633.38438 | F140: 10345.07258 | G140: 9288.311803 | H140: 1201842.137 | I140: 0.6189700959 | K140: 1211130.449 | L140: 19633.38438 | M140: 10345.07258 | N140: 9288.311803 | O140: 1201842.137 | P140: 0.6189700959
A141: 2032-01-31 | B141: 133 | C141: 1201842.137 | D141: =IF(ISNA(VLOOKUP($A141,ForecastPmt!$A$6:$C$365,3,0))=TRUE,0,VLOOKUP($A141,ForecastPmt!$A$6:$C$365,3,0)) -> 0 | E141: 19633.38438 | F141: 10265.73492 | G141: 9367.649466 | H141: 1192474.487 | I141: 0.6141455897 | K141: 1201842.137 | L141: 19633.38438 | M141: 10265.73492 | N141: 9367.649466 | O141: 1192474.487 | P141: 0.6141455897
A142: 2032-02-29 | B142: 134 | C142: 1192474.487 | D142: =IF(ISNA(VLOOKUP($A142,ForecastPmt!$A$6:$C$365,3,0))=TRUE,0,VLOOKUP($A142,ForecastPmt!$A$6:$C$365,3,0)) -> 0 | E142: 19633.38438 | F142: 10185.71958 | G142: 9447.664806 | H142: 1183026.822 | I142: 0.6092798741 | K142: 1192474.487 | L142: 19633.38438 | M142: 10185.71958 | N142: 9447.664806 | O142: 1183026.822 | P142: 0.6092798741
A143: 2032-03-31 | B143: 135 | C143: 1183026.822 | D143: =IF(ISNA(VLOOKUP($A143,ForecastPmt!$A$6:$C$365,3,0))=TRUE,0,VLOOKUP($A143,ForecastPmt!$A$6:$C$365,3,0)) -> 0 | E143: 19633.38438 | F143: 10105.02078 | G143: 9528.363609 | H143: 1173498.459 | I143: 0.6043725972 | K143: 1183026.822 | L143: 19633.38438 | M143: 10105.02078 | N143: 9528.363609 | O143: 1173498.459 | P143: 0.6043725972
A144: 2032-04-30 | B144: 136 | C144: 1173498.459 | D144: =IF(ISNA(VLOOKUP($A144,ForecastPmt!$A$6:$C$365,3,0))=TRUE,0,VLOOKUP($A144,ForecastPmt!$A$6:$C$365,3,0)) -> 0 | E144: 19633.38438 | F144: 10023.63267 | G144: 9609.751715 | H144: 1163888.707 | I144: 0.599423404 | K144: 1173498.459 | L144: 19633.38438 | M144: 10023.63267 | N144: 9609.751715 | O144: 1163888.707 | P144: 0.599423404
A145: 2032-05-31 | B145: 137 | C145: 1163888.707 | D145: =IF(ISNA(VLOOKUP($A145,ForecastPmt!$A$6:$C$365,3,0))=TRUE,0,VLOOKUP($A145,ForecastPmt!$A$6:$C$365,3,0)) -> 0 | E145: 19633.38438 | F145: 9941.549374 | G145: 9691.835011 | H145: 1154196.872 | I145: 0.5944319365 | K145: 1163888.707 | L145: 19633.38438 | M145: 9941.549374 | N145: 9691.835011 | O145: 1154196.872 | P145: 0.5944319365
A146: 2032-06-30 | B146: 138 | C146: 1154196.872 | D146: =IF(ISNA(VLOOKUP($A146,ForecastPmt!$A$6:$C$365,3,0))=TRUE,0,VLOOKUP($A146,ForecastPmt!$A$6:$C$365,3,0)) -> 0 | E146: 19633.38438 | F146: 9858.764949 | G146: 9774.619435 | H146: 1144422.253 | I146: 0.5893978334 | K146: 1154196.872 | L146: 19633.38438 | M146: 9858.764949 | N146: 9774.619435 | O146: 1144422.253 | P146: 0.5893978334
A147: 2032-07-31 | B147: 139 | C147: 1144422.253 | D147: =IF(ISNA(VLOOKUP($A147,ForecastPmt!$A$6:$C$365,3,0))=TRUE,0,VLOOKUP($A147,ForecastPmt!$A$6:$C$365,3,0)) -> 0 | E147: 19633.38438 | F147: 9775.273408 | G147: 9858.110976 | H147: 1134564.142 | I147: 0.5843207308 | K147: 1144422.253 | L147: 19633.38438 | M147: 9775.273408 | N147: 9858.110976 | O147: 1134564.142 | P147: 0.5843207308
A148: 2032-08-31 | B148: 140 | C148: 1134564.142 | D148: =IF(ISNA(VLOOKUP($A148,ForecastPmt!$A$6:$C$365,3,0))=TRUE,0,VLOOKUP($A148,ForecastPmt!$A$6:$C$365,3,0)) -> 0 | E148: 19633.38438 | F148: 9691.068711 | G148: 9942.315674 | H148: 1124621.826 | I148: 0.5792002612 | K148: 1134564.142 | L148: 19633.38438 | M148: 9691.068711 | N148: 9942.315674 | O148: 1124621.826 | P148: 0.5792002612
A149: 2032-09-30 | B149: 141 | C149: 1124621.826 | D149: =IF(ISNA(VLOOKUP($A149,ForecastPmt!$A$6:$C$365,3,0))=TRUE,0,VLOOKUP($A149,ForecastPmt!$A$6:$C$365,3,0)) -> 0 | E149: 19633.38438 | F149: 9606.144764 | G149: 10027.23962 | H149: 1114594.586 | I149: 0.5740360543 | K149: 1124621.826 | L149: 19633.38438 | M149: 9606.144764 | N149: 10027.23962 | O149: 1114594.586 | P149: 0.5740360543
A150: 2032-10-31 | B150: 142 | C150: 1114594.586 | D150: =IF(ISNA(VLOOKUP($A150,ForecastPmt!$A$6:$C$365,3,0))=TRUE,0,VLOOKUP($A150,ForecastPmt!$A$6:$C$365,3,0)) -> 0 | E150: 19633.38438 | F150: 9520.495426 | G150: 10112.88896 | H150: 1104481.697 | I150: 0.5688277365 | K150: 1114594.586 | L150: 19633.38438 | M150: 9520.495426 | N150: 10112.88896 | O150: 1104481.697 | P150: 0.5688277365
A151: 2032-11-30 | B151: 143 | C151: 1104481.697 | D151: =IF(ISNA(VLOOKUP($A151,ForecastPmt!$A$6:$C$365,3,0))=TRUE,0,VLOOKUP($A151,ForecastPmt!$A$6:$C$365,3,0)) -> 0 | E151: 19633.38438 | F151: 9434.114499 | G151: 10199.26989 | H151: 1094282.428 | I151: 0.5635749309 | K151: 1104481.697 | L151: 19633.38438 | M151: 9434.114499 | N151: 10199.26989 | O151: 1094282.428 | P151: 0.5635749309
A152: 2032-12-31 | B152: 144 | C152: 1094282.428 | D152: =IF(ISNA(VLOOKUP($A152,ForecastPmt!$A$6:$C$365,3,0))=TRUE,0,VLOOKUP($A152,ForecastPmt!$A$6:$C$365,3,0)) -> 0 | E152: 19633.38438 | F152: 9346.995736 | G152: 10286.38865 | H152: 1083996.039 | I152: 0.5582772576 | K152: 1094282.428 | L152: 19633.38438 | M152: 9346.995736 | N152: 10286.38865 | O152: 1083996.039 | P152: 0.5582772576
A153: 2033-01-31 | B153: 145 | C153: 1083996.039 | D153: =IF(ISNA(VLOOKUP($A153,ForecastPmt!$A$6:$C$365,3,0))=TRUE,0,VLOOKUP($A153,ForecastPmt!$A$6:$C$365,3,0)) -> 0 | E153: 19633.38438 | F153: 9259.132833 | G153: 10374.25155 | H153: 1073621.787 | I153: 0.5529343334 | K153: 1083996.039 | L153: 19633.38438 | M153: 9259.132833 | N153: 10374.25155 | O153: 1073621.787 | P153: 0.5529343334
A154: 2033-02-28 | B154: 146 | C154: 1073621.787 | D154: =IF(ISNA(VLOOKUP($A154,ForecastPmt!$A$6:$C$365,3,0))=TRUE,0,VLOOKUP($A154,ForecastPmt!$A$6:$C$365,3,0)) -> 0 | E154: 19633.38438 | F154: 9170.519434 | G154: 10462.86495 | H154: 1063158.922 | I154: 0.5475457717 | K154: 1073621.787 | L154: 19633.38438 | M154: 9170.519434 | N154: 10462.86495 | O154: 1063158.922 | P154: 0.5475457717
A155: 2033-03-31 | B155: 147 | C155: 1063158.922 | D155: =IF(ISNA(VLOOKUP($A155,ForecastPmt!$A$6:$C$365,3,0))=TRUE,0,VLOOKUP($A155,ForecastPmt!$A$6:$C$365,3,0)) -> 0 | E155: 19633.38438 | F155: 9081.149129 | G155: 10552.23526 | H155: 1052606.687 | I155: 0.5421111827 | K155: 1063158.922 | L155: 19633.38438 | M155: 9081.149129 | N155: 10552.23526 | O155: 1052606.687 | P155: 0.5421111827
A156: 2033-04-30 | B156: 148 | C156: 1052606.687 | D156: =IF(ISNA(VLOOKUP($A156,ForecastPmt!$A$6:$C$365,3,0))=TRUE,0,VLOOKUP($A156,ForecastPmt!$A$6:$C$365,3,0)) -> 0 | E156: 19633.38438 | F156: 8991.015453 | G156: 10642.36893 | H156: 1041964.318 | I156: 0.5366301732 | K156: 1052606.687 | L156: 19633.38438 | M156: 8991.015453 | N156: 10642.36893 | O156: 1041964.318 | P156: 0.5366301732
A157: 2033-05-31 | B157: 149 | C157: 1041964.318 | D157: =IF(ISNA(VLOOKUP($A157,ForecastPmt!$A$6:$C$365,3,0))=TRUE,0,VLOOKUP($A157,ForecastPmt!$A$6:$C$365,3,0)) -> 0 | E157: 19633.38438 | F157: 8900.111885 | G157: 10733.2725 | H157: 1031231.046 | I157: 0.5311023468 | K157: 1041964.318 | L157: 19633.38438 | M157: 8900.111885 | N157: 10733.2725 | O157: 1031231.046 | P157: 0.5311023468
A158: 2033-06-30 | B158: 150 | C158: 1031231.046 | D158: =IF(ISNA(VLOOKUP($A158,ForecastPmt!$A$6:$C$365,3,0))=TRUE,0,VLOOKUP($A158,ForecastPmt!$A$6:$C$365,3,0)) -> 0 | E158: 19633.38438 | F158: 8808.431849 | G158: 10824.95254 | H158: 1020406.093 | I158: 0.5255273035 | K158: 1031231.046 | L158: 19633.38438 | M158: 8808.431849 | N158: 10824.95254 | O158: 1020406.093 | P158: 0.5255273035
A159: 2033-07-31 | B159: 151 | C159: 1020406.093 | D159: =IF(ISNA(VLOOKUP($A159,ForecastPmt!$A$6:$C$365,3,0))=TRUE,0,VLOOKUP($A159,ForecastPmt!$A$6:$C$365,3,0)) -> 0 | E159: 19633.38438 | F159: 8715.968713 | G159: 10917.41567 | H159: 1009488.678 | I159: 0.5199046401 | K159: 1020406.093 | L159: 19633.38438 | M159: 8715.968713 | N159: 10917.41567 | O159: 1009488.678 | P159: 0.5199046401
A160: 2033-08-31 | B160: 152 | C160: 1009488.678 | D160: =IF(ISNA(VLOOKUP($A160,ForecastPmt!$A$6:$C$365,3,0))=TRUE,0,VLOOKUP($A160,ForecastPmt!$A$6:$C$365,3,0)) -> 0 | E160: 19633.38438 | F160: 8622.715787 | G160: 11010.6686 | H160: 998478.0089 | I160: 0.5142339498 | K160: 1009488.678 | L160: 19633.38438 | M160: 8622.715787 | N160: 11010.6686 | O160: 998478.0089 | P160: 0.5142339498
A161: 2033-09-30 | B161: 153 | C161: 998478.0089 | D161: =IF(ISNA(VLOOKUP($A161,ForecastPmt!$A$6:$C$365,3,0))=TRUE,0,VLOOKUP($A161,ForecastPmt!$A$6:$C$365,3,0)) -> 0 | E161: 19633.38438 | F161: 8528.666326 | G161: 11104.71806 | H161: 987373.2909 | I161: 0.5085148223 | K161: 998478.0089 | L161: 19633.38438 | M161: 8528.666326 | N161: 11104.71806 | O161: 987373.2909 | P161: 0.5085148223
A162: 2033-10-31 | B162: 154 | C162: 987373.2909 | D162: =IF(ISNA(VLOOKUP($A162,ForecastPmt!$A$6:$C$365,3,0))=TRUE,0,VLOOKUP($A162,ForecastPmt!$A$6:$C$365,3,0)) -> 0 | E162: 19633.38438 | F162: 8433.813526 | G162: 11199.57086 | H162: 976173.72 | I162: 0.5027468439 | K162: 987373.2909 | L162: 19633.38438 | M162: 8433.813526 | N162: 11199.57086 | O162: 976173.72 | P162: 0.5027468439
A163: 2033-11-30 | B163: 155 | C163: 976173.72 | D163: =IF(ISNA(VLOOKUP($A163,ForecastPmt!$A$6:$C$365,3,0))=TRUE,0,VLOOKUP($A163,ForecastPmt!$A$6:$C$365,3,0)) -> 0 | E163: 19633.38438 | F163: 8338.150525 | G163: 11295.23386 | H163: 964878.4862 | I163: 0.4969295974 | K163: 976173.72 | L163: 19633.38438 | M163: 8338.150525 | N163: 11295.23386 | O163: 964878.4862 | P163: 0.4969295974
A164: 2033-12-31 | B164: 156 | C164: 964878.4862 | D164: =IF(ISNA(VLOOKUP($A164,ForecastPmt!$A$6:$C$365,3,0))=TRUE,0,VLOOKUP($A164,ForecastPmt!$A$6:$C$365,3,0)) -> 0 | E164: 19633.38438 | F164: 8241.670403 | G164: 11391.71398 | H164: 953486.7722 | I164: 0.4910626619 | K164: 964878.4862 | L164: 19633.38438 | M164: 8241.670403 | N164: 11391.71398 | O164: 953486.7722 | P164: 0.4910626619
A165: 2034-01-31 | B165: 157 | C165: 953486.7722 | D165: =IF(ISNA(VLOOKUP($A165,ForecastPmt!$A$6:$C$365,3,0))=TRUE,0,VLOOKUP($A165,ForecastPmt!$A$6:$C$365,3,0)) -> 0 | E165: 19633.38438 | F165: 8144.366179 | G165: 11489.01821 | H165: 941997.754 | I165: 0.485145613 | K165: 953486.7722 | L165: 19633.38438 | M165: 8144.366179 | N165: 11489.01821 | O165: 941997.754 | P165: 0.485145613
A166: 2034-02-28 | B166: 158 | C166: 941997.754 | D166: =IF(ISNA(VLOOKUP($A166,ForecastPmt!$A$6:$C$365,3,0))=TRUE,0,VLOOKUP($A166,ForecastPmt!$A$6:$C$365,3,0)) -> 0 | E166: 19633.38438 | F166: 8046.230815 | G166: 11587.15357 | H166: 930410.6004 | I166: 0.4791780226 | K166: 941997.754 | L166: 19633.38438 | M166: 8046.230815 | N166: 11587.15357 | O166: 930410.6004 | P166: 0.4791780226
A167: 2034-03-31 | B167: 159 | C167: 930410.6004 | D167: =IF(ISNA(VLOOKUP($A167,ForecastPmt!$A$6:$C$365,3,0))=TRUE,0,VLOOKUP($A167,ForecastPmt!$A$6:$C$365,3,0)) -> 0 | E167: 19633.38438 | F167: 7947.257212 | G167: 11686.12717 | H167: 918724.4732 | I167: 0.4731594591 | K167: 930410.6004 | L167: 19633.38438 | M167: 7947.257212 | N167: 11686.12717 | O167: 918724.4732 | P167: 0.4731594591
A168: 2034-04-30 | B168: 160 | C168: 918724.4732 | D168: =IF(ISNA(VLOOKUP($A168,ForecastPmt!$A$6:$C$365,3,0))=TRUE,0,VLOOKUP($A168,ForecastPmt!$A$6:$C$365,3,0)) -> 0 | E168: 19633.38438 | F168: 7847.438209 | G168: 11785.94618 | H168: 906938.5271 | I168: 0.467089487 | K168: 918724.4732 | L168: 19633.38438 | M168: 7847.438209 | N168: 11785.94618 | O168: 906938.5271 | P168: 0.467089487
A169: 2034-05-31 | B169: 161 | C169: 906938.5271 | D169: =IF(ISNA(VLOOKUP($A169,ForecastPmt!$A$6:$C$365,3,0))=TRUE,0,VLOOKUP($A169,ForecastPmt!$A$6:$C$365,3,0)) -> 0 | E169: 19633.38438 | F169: 7746.766585 | G169: 11886.6178 | H169: 895051.9093 | I169: 0.4609676672 | K169: 906938.5271 | L169: 19633.38438 | M169: 7746.766585 | N169: 11886.6178 | O169: 895051.9093 | P169: 0.4609676672
A170: 2034-06-30 | B170: 162 | C170: 895051.9093 | D170: =IF(ISNA(VLOOKUP($A170,ForecastPmt!$A$6:$C$365,3,0))=TRUE,0,VLOOKUP($A170,ForecastPmt!$A$6:$C$365,3,0)) -> 0 | E170: 19633.38438 | F170: 7645.235058 | G170: 11988.14933 | H170: 883063.7599 | I170: 0.4547935569 | K170: 895051.9093 | L170: 19633.38438 | M170: 7645.235058 | N170: 11988.14933 | O170: 883063.7599 | P170: 0.4547935569
A171: 2034-07-31 | B171: 163 | C171: 883063.7599 | D171: =IF(ISNA(VLOOKUP($A171,ForecastPmt!$A$6:$C$365,3,0))=TRUE,0,VLOOKUP($A171,ForecastPmt!$A$6:$C$365,3,0)) -> 0 | E171: 19633.38438 | F171: 7542.836283 | G171: 12090.5481 | H171: 870973.2118 | I171: 0.4485667094 | K171: 883063.7599 | L171: 19633.38438 | M171: 7542.836283 | N171: 12090.5481 | O171: 870973.2118 | P171: 0.4485667094
A172: 2034-08-31 | B172: 164 | C172: 870973.2118 | D172: =IF(ISNA(VLOOKUP($A172,ForecastPmt!$A$6:$C$365,3,0))=TRUE,0,VLOOKUP($A172,ForecastPmt!$A$6:$C$365,3,0)) -> 0 | E172: 19633.38438 | F172: 7439.562851 | G172: 12193.82153 | H172: 858779.3903 | I172: 0.4422866742 | K172: 870973.2118 | L172: 19633.38438 | M172: 7439.562851 | N172: 12193.82153 | O172: 858779.3903 | P172: 0.4422866742
A173: 2034-09-30 | B173: 165 | C173: 858779.3903 | D173: =IF(ISNA(VLOOKUP($A173,ForecastPmt!$A$6:$C$365,3,0))=TRUE,0,VLOOKUP($A173,ForecastPmt!$A$6:$C$365,3,0)) -> 0 | E173: 19633.38438 | F173: 7335.407292 | G173: 12297.97709 | H173: 846481.4132 | I173: 0.4359529971 | K173: 858779.3903 | L173: 19633.38438 | M173: 7335.407292 | N173: 12297.97709 | O173: 846481.4132 | P173: 0.4359529971
A174: 2034-10-31 | B174: 166 | C174: 846481.4132 | D174: =IF(ISNA(VLOOKUP($A174,ForecastPmt!$A$6:$C$365,3,0))=TRUE,0,VLOOKUP($A174,ForecastPmt!$A$6:$C$365,3,0)) -> 0 | E174: 19633.38438 | F174: 7230.362071 | G174: 12403.02231 | H174: 834078.3909 | I174: 0.4295652198 | K174: 846481.4132 | L174: 19633.38438 | M174: 7230.362071 | N174: 12403.02231 | O174: 834078.3909 | P174: 0.4295652198
A175: 2034-11-30 | B175: 167 | C175: 834078.3909 | D175: =IF(ISNA(VLOOKUP($A175,ForecastPmt!$A$6:$C$365,3,0))=TRUE,0,VLOOKUP($A175,ForecastPmt!$A$6:$C$365,3,0)) -> 0 | E175: 19633.38438 | F175: 7124.419589 | G175: 12508.9648 | H175: 821569.4261 | I175: 0.4231228802 | K175: 834078.3909 | L175: 19633.38438 | M175: 7124.419589 | N175: 12508.9648 | O175: 821569.4261 | P175: 0.4231228802
A176: 2034-12-31 | B176: 168 | C176: 821569.4261 | D176: =IF(ISNA(VLOOKUP($A176,ForecastPmt!$A$6:$C$365,3,0))=TRUE,0,VLOOKUP($A176,ForecastPmt!$A$6:$C$365,3,0)) -> 0 | E176: 19633.38438 | F176: 7017.572181 | G176: 12615.8122 | H176: 808953.6139 | I176: 0.4166255124 | K176: 821569.4261 | L176: 19633.38438 | M176: 7017.572181 | N176: 12615.8122 | O176: 808953.6139 | P176: 0.4166255124
A177: 2035-01-31 | B177: 169 | C177: 808953.6139 | D177: =IF(ISNA(VLOOKUP($A177,ForecastPmt!$A$6:$C$365,3,0))=TRUE,0,VLOOKUP($A177,ForecastPmt!$A$6:$C$365,3,0)) -> 0 | E177: 19633.38438 | F177: 6909.812119 | G177: 12723.57227 | H177: 796230.0416 | I177: 0.4100726461 | K177: 808953.6139 | L177: 19633.38438 | M177: 6909.812119 | N177: 12723.57227 | O177: 796230.0416 | P177: 0.4100726461
A178: 2035-02-28 | B178: 170 | C178: 796230.0416 | D178: =IF(ISNA(VLOOKUP($A178,ForecastPmt!$A$6:$C$365,3,0))=TRUE,0,VLOOKUP($A178,ForecastPmt!$A$6:$C$365,3,0)) -> 0 | E178: 19633.38438 | F178: 6801.131606 | G178: 12832.25278 | H178: 783397.7889 | I178: 0.4034638075 | K178: 796230.0416 | L178: 19633.38438 | M178: 6801.131606 | N178: 12832.25278 | O178: 783397.7889 | P178: 0.4034638075
A179: 2035-03-31 | B179: 171 | C179: 783397.7889 | D179: =IF(ISNA(VLOOKUP($A179,ForecastPmt!$A$6:$C$365,3,0))=TRUE,0,VLOOKUP($A179,ForecastPmt!$A$6:$C$365,3,0)) -> 0 | E179: 19633.38438 | F179: 6691.52278 | G179: 12941.8616 | H179: 770455.9272 | I179: 0.3967985184 | K179: 783397.7889 | L179: 19633.38438 | M179: 6691.52278 | N179: 12941.8616 | O179: 770455.9272 | P179: 0.3967985184
A180: 2035-04-30 | B180: 172 | C180: 770455.9272 | D180: =IF(ISNA(VLOOKUP($A180,ForecastPmt!$A$6:$C$365,3,0))=TRUE,0,VLOOKUP($A180,ForecastPmt!$A$6:$C$365,3,0)) -> 0 | E180: 19633.38438 | F180: 6580.977712 | G180: 13052.40667 | H180: 757403.5206 | I180: 0.3900762966 | K180: 770455.9272 | L180: 19633.38438 | M180: 6580.977712 | N180: 13052.40667 | O180: 757403.5206 | P180: 0.3900762966
A181: 2035-05-31 | B181: 173 | C181: 757403.5206 | D181: =IF(ISNA(VLOOKUP($A181,ForecastPmt!$A$6:$C$365,3,0))=TRUE,0,VLOOKUP($A181,ForecastPmt!$A$6:$C$365,3,0)) -> 0 | E181: 19633.38438 | F181: 6469.488405 | G181: 13163.89598 | H181: 744239.6246 | I181: 0.3832966558 | K181: 757403.5206 | L181: 19633.38438 | M181: 6469.488405 | N181: 13163.89598 | O181: 744239.6246 | P181: 0.3832966558
A182: 2035-06-30 | B182: 174 | C182: 744239.6246 | D182: =IF(ISNA(VLOOKUP($A182,ForecastPmt!$A$6:$C$365,3,0))=TRUE,0,VLOOKUP($A182,ForecastPmt!$A$6:$C$365,3,0)) -> 0 | E182: 19633.38438 | F182: 6357.046793 | G182: 13276.33759 | H182: 730963.287 | I182: 0.3764591056 | K182: 744239.6246 | L182: 19633.38438 | M182: 6357.046793 | N182: 13276.33759 | O182: 730963.287 | P182: 0.3764591056
A183: 2035-07-31 | B183: 175 | C183: 730963.287 | D183: =IF(ISNA(VLOOKUP($A183,ForecastPmt!$A$6:$C$365,3,0))=TRUE,0,VLOOKUP($A183,ForecastPmt!$A$6:$C$365,3,0)) -> 0 | E183: 19633.38438 | F183: 6243.644743 | G183: 13389.73964 | H183: 717573.5474 | I183: 0.3695631513 | K183: 730963.287 | L183: 19633.38438 | M183: 6243.644743 | N183: 13389.73964 | O183: 717573.5474 | P183: 0.3695631513
A184: 2035-08-31 | B184: 176 | C184: 717573.5474 | D184: =IF(ISNA(VLOOKUP($A184,ForecastPmt!$A$6:$C$365,3,0))=TRUE,0,VLOOKUP($A184,ForecastPmt!$A$6:$C$365,3,0)) -> 0 | E184: 19633.38438 | F184: 6129.27405 | G184: 13504.11033 | H184: 704069.437 | I184: 0.3626082941 | K184: 717573.5474 | L184: 19633.38438 | M184: 6129.27405 | N184: 13504.11033 | O184: 704069.437 | P184: 0.3626082941
A185: 2035-09-30 | B185: 177 | C185: 704069.437 | D185: =IF(ISNA(VLOOKUP($A185,ForecastPmt!$A$6:$C$365,3,0))=TRUE,0,VLOOKUP($A185,ForecastPmt!$A$6:$C$365,3,0)) -> 0 | E185: 19633.38438 | F185: 6013.926441 | G185: 13619.45794 | H185: 690449.9791 | I185: 0.3555940308 | K185: 704069.437 | L185: 19633.38438 | M185: 6013.926441 | N185: 13619.45794 | O185: 690449.9791 | P185: 0.3555940308
A186: 2035-10-31 | B186: 178 | C186: 690449.9791 | D186: =IF(ISNA(VLOOKUP($A186,ForecastPmt!$A$6:$C$365,3,0))=TRUE,0,VLOOKUP($A186,ForecastPmt!$A$6:$C$365,3,0)) -> 0 | E186: 19633.38438 | F186: 5897.593571 | G186: 13735.79081 | H186: 676714.1883 | I186: 0.348519854 | K186: 690449.9791 | L186: 19633.38438 | M186: 5897.593571 | N186: 13735.79081 | O186: 676714.1883 | P186: 0.348519854
A187: 2035-11-30 | B187: 179 | C187: 676714.1883 | D187: =IF(ISNA(VLOOKUP($A187,ForecastPmt!$A$6:$C$365,3,0))=TRUE,0,VLOOKUP($A187,ForecastPmt!$A$6:$C$365,3,0)) -> 0 | E187: 19633.38438 | F187: 5780.267025 | G187: 13853.11736 | H187: 662861.0709 | I187: 0.3413852519 | K187: 676714.1883 | L187: 19633.38438 | M187: 5780.267025 | N187: 13853.11736 | O187: 662861.0709 | P187: 0.3413852519
A188: 2035-12-31 | B188: 180 | C188: 662861.0709 | D188: =IF(ISNA(VLOOKUP($A188,ForecastPmt!$A$6:$C$365,3,0))=TRUE,0,VLOOKUP($A188,ForecastPmt!$A$6:$C$365,3,0)) -> 0 | E188: 19633.38438 | F188: 5661.938314 | G188: 13971.44607 | H188: 648889.6248 | I188: 0.3341897085 | K188: 662861.0709 | L188: 19633.38438 | M188: 5661.938314 | N188: 13971.44607 | O188: 648889.6248 | P188: 0.3341897085
A189: 2036-01-31 | B189: 181 | C189: 648889.6248 | D189: =IF(ISNA(VLOOKUP($A189,ForecastPmt!$A$6:$C$365,3,0))=TRUE,0,VLOOKUP($A189,ForecastPmt!$A$6:$C$365,3,0)) -> 0 | E189: 19633.38438 | F189: 5542.598879 | G189: 14090.78551 | H189: 634798.8393 | I189: 0.3269327031 | K189: 648889.6248 | L189: 19633.38438 | M189: 5542.598879 | N189: 14090.78551 | O189: 634798.8393 | P189: 0.3269327031
A190: 2036-02-29 | B190: 182 | C190: 634798.8393 | D190: =IF(ISNA(VLOOKUP($A190,ForecastPmt!$A$6:$C$365,3,0))=TRUE,0,VLOOKUP($A190,ForecastPmt!$A$6:$C$365,3,0)) -> 0 | E190: 19633.38438 | F190: 5422.240086 | G190: 14211.1443 | H190: 620587.695 | I190: 0.3196137108 | K190: 634798.8393 | L190: 19633.38438 | M190: 5422.240086 | N190: 14211.1443 | O190: 620587.695 | P190: 0.3196137108
A191: 2036-03-31 | B191: 183 | C191: 620587.695 | D191: =IF(ISNA(VLOOKUP($A191,ForecastPmt!$A$6:$C$365,3,0))=TRUE,0,VLOOKUP($A191,ForecastPmt!$A$6:$C$365,3,0)) -> 0 | E191: 19633.38438 | F191: 5300.853228 | G191: 14332.53116 | H191: 606255.1639 | I191: 0.3122322021 | K191: 620587.695 | L191: 19633.38438 | M191: 5300.853228 | N191: 14332.53116 | O191: 606255.1639 | P191: 0.3122322021
A192: 2036-04-30 | B192: 184 | C192: 606255.1639 | D192: =IF(ISNA(VLOOKUP($A192,ForecastPmt!$A$6:$C$365,3,0))=TRUE,0,VLOOKUP($A192,ForecastPmt!$A$6:$C$365,3,0)) -> 0 | E192: 19633.38438 | F192: 5178.429525 | G192: 14454.95486 | H192: 591800.209 | I192: 0.304787643 | K192: 606255.1639 | L192: 19633.38438 | M192: 5178.429525 | N192: 14454.95486 | O192: 591800.209 | P192: 0.304787643
A193: 2036-05-31 | B193: 185 | C193: 591800.209 | D193: =IF(ISNA(VLOOKUP($A193,ForecastPmt!$A$6:$C$365,3,0))=TRUE,0,VLOOKUP($A193,ForecastPmt!$A$6:$C$365,3,0)) -> 0 | E193: 19633.38438 | F193: 5054.960119 | G193: 14578.42427 | H193: 577221.7848 | I193: 0.297279495 | K193: 591800.209 | L193: 19633.38438 | M193: 5054.960119 | N193: 14578.42427 | O193: 577221.7848 | P193: 0.297279495
A194: 2036-06-30 | B194: 186 | C194: 577221.7848 | D194: =IF(ISNA(VLOOKUP($A194,ForecastPmt!$A$6:$C$365,3,0))=TRUE,0,VLOOKUP($A194,ForecastPmt!$A$6:$C$365,3,0)) -> 0 | E194: 19633.38438 | F194: 4930.436078 | G194: 14702.94831 | H194: 562518.8365 | I194: 0.2897072149 | K194: 577221.7848 | L194: 19633.38438 | M194: 4930.436078 | N194: 14702.94831 | O194: 562518.8365 | P194: 0.2897072149
A195: 2036-07-31 | B195: 187 | C195: 562518.8365 | D195: =IF(ISNA(VLOOKUP($A195,ForecastPmt!$A$6:$C$365,3,0))=TRUE,0,VLOOKUP($A195,ForecastPmt!$A$6:$C$365,3,0)) -> 0 | E195: 19633.38438 | F195: 4804.848395 | G195: 14828.53599 | H195: 547690.3005 | I195: 0.2820702549 | K195: 562518.8365 | L195: 19633.38438 | M195: 4804.848395 | N195: 14828.53599 | O195: 547690.3005 | P195: 0.2820702549
A196: 2036-08-31 | B196: 188 | C196: 547690.3005 | D196: =IF(ISNA(VLOOKUP($A196,ForecastPmt!$A$6:$C$365,3,0))=TRUE,0,VLOOKUP($A196,ForecastPmt!$A$6:$C$365,3,0)) -> 0 | E196: 19633.38438 | F196: 4678.187983 | G196: 14955.1964 | H196: 532735.1041 | I196: 0.2743680625 | K196: 547690.3005 | L196: 19633.38438 | M196: 4678.187983 | N196: 14955.1964 | O196: 532735.1041 | P196: 0.2743680625
A197: 2036-09-30 | B197: 189 | C197: 532735.1041 | D197: =IF(ISNA(VLOOKUP($A197,ForecastPmt!$A$6:$C$365,3,0))=TRUE,0,VLOOKUP($A197,ForecastPmt!$A$6:$C$365,3,0)) -> 0 | E197: 19633.38438 | F197: 4550.445681 | G197: 15082.9387 | H197: 517652.1654 | I197: 0.2666000805 | K197: 532735.1041 | L197: 19633.38438 | M197: 4550.445681 | N197: 15082.9387 | O197: 517652.1654 | P197: 0.2666000805
A198: 2036-10-31 | B198: 190 | C198: 517652.1654 | D198: =IF(ISNA(VLOOKUP($A198,ForecastPmt!$A$6:$C$365,3,0))=TRUE,0,VLOOKUP($A198,ForecastPmt!$A$6:$C$365,3,0)) -> 0 | E198: 19633.38438 | F198: 4421.612246 | G198: 15211.77214 | H198: 502440.3932 | I198: 0.2587657471 | K198: 517652.1654 | L198: 19633.38438 | M198: 4421.612246 | N198: 15211.77214 | O198: 502440.3932 | P198: 0.2587657471
A199: 2036-11-30 | B199: 191 | C199: 502440.3932 | D199: =IF(ISNA(VLOOKUP($A199,ForecastPmt!$A$6:$C$365,3,0))=TRUE,0,VLOOKUP($A199,ForecastPmt!$A$6:$C$365,3,0)) -> 0 | E199: 19633.38438 | F199: 4291.678359 | G199: 15341.70603 | H199: 487098.6872 | I199: 0.2508644954 | K199: 502440.3932 | L199: 19633.38438 | M199: 4291.678359 | N199: 15341.70603 | O199: 487098.6872 | P199: 0.2508644954
A200: 2036-12-31 | B200: 192 | C200: 487098.6872 | D200: =IF(ISNA(VLOOKUP($A200,ForecastPmt!$A$6:$C$365,3,0))=TRUE,0,VLOOKUP($A200,ForecastPmt!$A$6:$C$365,3,0)) -> 0 | E200: 19633.38438 | F200: 4160.63462 | G200: 15472.74976 | H200: 471625.9374 | I200: 0.2428957538 | K200: 487098.6872 | L200: 19633.38438 | M200: 4160.63462 | N200: 15472.74976 | O200: 471625.9374 | P200: 0.2428957538
A201: 2037-01-31 | B201: 193 | C201: 471625.9374 | D201: =IF(ISNA(VLOOKUP($A201,ForecastPmt!$A$6:$C$365,3,0))=TRUE,0,VLOOKUP($A201,ForecastPmt!$A$6:$C$365,3,0)) -> 0 | E201: 19633.38438 | F201: =C201*$C$4/12 -> 4028.471549 | G201: 15604.91284 | H201: 456021.0246 | I201: =H201/$C$3 -> 0.2348589459 | K201: 471625.9374 | L201: 19633.38438 | M201: =K201*$C$4/12 -> 4028.471549 | N201: =L201-M201 -> 15604.91284 | O201: 456021.0246 | P201: =O201/$C$3 -> 0.2348589459
... 168 more rows

Sheet CalcAmort (hidden)
A1: Loan Amortization Calculator
A3: Outstanding Loan Balance | C3: 2000000
A4: Annual Interest Rate | C4: 0.1
A5: Loan Period (Months) | C5: 240
A6: Calculation Date | C6: 43922
A7: © www.excel-skills.com
A8: Month | B8: Repayment Number | C8: Opening Balance | D8: Loan Repayment | E8: Interest Charged | F8: Capital Repaid | G8: Closing Balance | H8: % Outstanding
A9: =DATE(YEAR(C6),MONTH(C6)+1,1-1) -> 2020-04-30 | B9: 1 | C9: =$C$3 -> 2000000 | D9: =-PMT(C4/12,C5,C3,0,0) -> 19300.4329 | E9: =C9*$C$4/12 -> 16666.66667 | F9: =D9-E9 -> 2633.766235 | G9: =C9-F9 -> 1997366.234 | H9: =G9/$C$3 -> 0.9986831169
A10: =DATE(YEAR(A9),MONTH(A9)+2,1-1) -> 2020-05-31 | B10: 2 | C10: =IF(ROUND(G9,0)>0,G9,0) -> 1997366.234 | D10: =IF($C$5+1-B10=0,0,D9) -> 19300.4329 | E10: 16644.71861 | F10: 2655.714287 | G10: 1994710.519 | H10: 0.9973552597
A11: 2020-06-30 | B11: 3 | C11: 1994710.519 | D11: 19300.4329 | E11: 16622.58766 | F11: 2677.845239 | G11: 1992032.674 | H11: 0.9960163371
A12: 2020-07-31 | B12: 4 | C12: 1992032.674 | D12: 19300.4329 | E12: 16600.27229 | F12: 2700.160616 | G12: 1989332.514 | H12: 0.9946662568
A13: 2020-08-31 | B13: 5 | C13: 1989332.514 | D13: 19300.4329 | E13: 16577.77095 | F13: 2722.661955 | G13: 1986609.852 | H13: 0.9933049258
A14: 2020-09-30 | B14: 6 | C14: 1986609.852 | D14: 19300.4329 | E14: 16555.0821 | F14: 2745.350804 | G14: 1983864.501 | H14: 0.9919322504
A15: 2020-10-31 | B15: 7 | C15: 1983864.501 | D15: 19300.4329 | E15: 16532.20417 | F15: 2768.228728 | G15: 1981096.272 | H15: 0.9905481361
A16: 2020-11-30 | B16: 8 | C16: 1981096.272 | D16: 19300.4329 | E16: 16509.1356 | F16: 2791.2973 | G16: 1978304.975 | H16: 0.9891524874
A17: 2020-12-31 | B17: 9 | C17: 1978304.975 | D17: 19300.4329 | E17: 16485.87479 | F17: 2814.558111 | G17: 1975490.417 | H17: 0.9877452084
A18: 2021-01-31 | B18: 10 | C18: 1975490.417 | D18: 19300.4329 | E18: 16462.42014 | F18: 2838.012762 | G18: 1972652.404 | H18: 0.986326202
A19: 2021-02-28 | B19: 11 | C19: 1972652.404 | D19: 19300.4329 | E19: 16438.77003 | F19: 2861.662868 | G19: 1969790.741 | H19: 0.9848953705
A20: 2021-03-31 | B20: 12 | C20: 1969790.741 | D20: 19300.4329 | E20: 16414.92284 | F20: 2885.510059 | G20: 1966905.231 | H20: 0.9834526155
A21: 2021-04-30 | B21: 13 | C21: 1966905.231 | D21: 19300.4329 | E21: 16390.87693 | F21: 2909.555976 | G21: 1963995.675 | H21: 0.9819978375
A22: 2021-05-31 | B22: 14 | C22: 1963995.675 | D22: 19300.4329 | E22: 16366.63063 | F22: 2933.802276 | G22: 1961061.873 | H22: 0.9805309364
A23: 2021-06-30 | B23: 15 | C23: 1961061.873 | D23: 19300.4329 | E23: 16342.18227 | F23: 2958.250628 | G23: 1958103.622 | H23: 0.9790518111
A24: 2021-07-31 | B24: 16 | C24: 1958103.622 | D24: 19300.4329 | E24: 16317.53018 | F24: 2982.902717 | G24: 1955120.719 | H24: 0.9775603597
A25: 2021-08-31 | B25: 17 | C25: 1955120.719 | D25: 19300.4329 | E25: 16292.67266 | F25: 3007.760239 | G25: 1952112.959 | H25: 0.9760564796
A26: 2021-09-30 | B26: 18 | C26: 1952112.959 | D26: 19300.4329 | E26: 16267.60799 | F26: 3032.824908 | G26: 1949080.134 | H26: 0.9745400671
A27: 2021-10-31 | B27: 19 | C27: 1949080.134 | D27: 19300.4329 | E27: 16242.33445 | F27: 3058.098449 | G27: 1946022.036 | H27: 0.9730110179
A28: 2021-11-30 | B28: 20 | C28: 1946022.036 | D28: 19300.4329 | E28: 16216.8503 | F28: 3083.582603 | G28: 1942938.453 | H28: 0.9714692266
A29: 2021-12-31 | B29: 21 | C29: 1942938.453 | D29: 19300.4329 | E29: 16191.15378 | F29: 3109.279124 | G29: 1939829.174 | H29: 0.9699145871
A30: 2022-01-31 | B30: 22 | C30: 1939829.174 | D30: 19300.4329 | E30: 16165.24312 | F30: 3135.189784 | G30: 1936693.984 | H30: 0.9683469922
A31: 2022-02-28 | B31: 23 | C31: 1936693.984 | D31: 19300.4329 | E31: 16139.11654 | F31: 3161.316365 | G31: 1933532.668 | H31: 0.966766334
A32: 2022-03-31 | B32: 24 | C32: 1933532.668 | D32: 19300.4329 | E32: 16112.77223 | F32: 3187.660668 | G32: 1930345.007 | H32: 0.9651725036
A33: 2022-04-30 | B33: 25 | C33: 1930345.007 | D33: 19300.4329 | E33: 16086.20839 | F33: 3214.224507 | G33: 1927130.783 | H33: 0.9635653914
A34: 2022-05-31 | B34: 26 | C34: 1927130.783 | D34: 19300.4329 | E34: 16059.42319 | F34: 3241.009712 | G34: 1923889.773 | H34: 0.9619448865
A35: 2022-06-30 | B35: 27 | C35: 1923889.773 | D35: 19300.4329 | E35: 16032.41478 | F35: 3268.018126 | G35: 1920621.755 | H35: 0.9603108775
A36: 2022-07-31 | B36: 28 | C36: 1920621.755 | D36: 19300.4329 | E36: 16005.18129 | F36: 3295.25161 | G36: 1917326.503 | H36: 0.9586632517
A37: 2022-08-31 | B37: 29 | C37: 1917326.503 | D37: 19300.4329 | E37: 15977.72086 | F37: 3322.71204 | G37: 1914003.791 | H37: 0.9570018957
A38: 2022-09-30 | B38: 30 | C38: 1914003.791 | D38: 19300.4329 | E38: 15950.03159 | F38: 3350.401307 | G38: 1910653.39 | H38: 0.955326695
A39: 2022-10-31 | B39: 31 | C39: 1910653.39 | D39: 19300.4329 | E39: 15922.11158 | F39: 3378.321318 | G39: 1907275.069 | H39: 0.9536375343
A40: 2022-11-30 | B40: 32 | C40: 1907275.069 | D40: 19300.4329 | E40: 15893.95891 | F40: 3406.473996 | G40: 1903868.595 | H40: 0.9519342973
A41: 2022-12-31 | B41: 33 | C41: 1903868.595 | D41: 19300.4329 | E41: 15865.57162 | F41: 3434.861279 | G41: 1900433.733 | H41: 0.9502168667
A42: 2023-01-31 | B42: 34 | C42: 1900433.733 | D42: 19300.4329 | E42: 15836.94778 | F42: 3463.485123 | G42: 1896970.248 | H42: 0.9484851241
A43: 2023-02-28 | B43: 35 | C43: 1896970.248 | D43: 19300.4329 | E43: 15808.0854 | F43: 3492.347499 | G43: 1893477.901 | H43: 0.9467389504
A44: 2023-03-31 | B44: 36 | C44: 1893477.901 | D44: 19300.4329 | E44: 15778.98251 | F44: 3521.450395 | G44: 1889956.45 | H44: 0.9449782252
A45: 2023-04-30 | B45: 37 | C45: 1889956.45 | D45: 19300.4329 | E45: 15749.63709 | F45: 3550.795815 | G45: 1886405.655 | H45: 0.9432028273
A46: 2023-05-31 | B46: 38 | C46: 1886405.655 | D46: 19300.4329 | E46: 15720.04712 | F46: 3580.38578 | G46: 1882825.269 | H46: 0.9414126344
A47: 2023-06-30 | B47: 39 | C47: 1882825.269 | D47: 19300.4329 | E47: 15690.21057 | F47: 3610.222328 | G47: 1879215.046 | H47: 0.9396075232
A48: 2023-07-31 | B48: 40 | C48: 1879215.046 | D48: 19300.4329 | E48: 15660.12539 | F48: 3640.307514 | G48: 1875574.739 | H48: 0.9377873695
A49: 2023-08-31 | B49: 41 | C49: 1875574.739 | D49: 19300.4329 | E49: 15629.78949 | F49: 3670.64341 | G49: 1871904.096 | H49: 0.9359520478
A50: 2023-09-30 | B50: 42 | C50: 1871904.096 | D50: 19300.4329 | E50: 15599.2008 | F50: 3701.232105 | G50: 1868202.863 | H50: 0.9341014317
A51: 2023-10-31 | B51: 43 | C51: 1868202.863 | D51: 19300.4329 | E51: 15568.3572 | F51: 3732.075706 | G51: 1864470.788 | H51: 0.9322353939
A52: 2023-11-30 | B52: 44 | C52: 1864470.788 | D52: 19300.4329 | E52: 15537.25656 | F52: 3763.176337 | G52: 1860707.611 | H52: 0.9303538057
A53: 2023-12-31 | B53: 45 | C53: 1860707.611 | D53: 19300.4329 | E53: 15505.89676 | F53: 3794.53614 | G53: 1856913.075 | H53: 0.9284565376
A54: 2024-01-31 | B54: 46 | C54: 1856913.075 | D54: 19300.4329 | E54: 15474.27563 | F54: 3826.157274 | G54: 1853086.918 | H54: 0.926543459
A55: 2024-02-29 | B55: 47 | C55: 1853086.918 | D55: 19300.4329 | E55: 15442.39098 | F55: 3858.041918 | G55: 1849228.876 | H55: 0.924614438
A56: 2024-03-31 | B56: 48 | C56: 1849228.876 | D56: 19300.4329 | E56: 15410.24063 | F56: 3890.192268 | G56: 1845338.684 | H56: 0.9226693419
A57: 2024-04-30 | B57: 49 | C57: 1845338.684 | D57: 19300.4329 | E57: 15377.82236 | F57: 3922.610537 | G57: 1841416.073 | H57: 0.9207080366
A58: 2024-05-31 | B58: 50 | C58: 1841416.073 | D58: 19300.4329 | E58: 15345.13394 | F58: 3955.298958 | G58: 1837460.774 | H58: 0.9187303871
A59: 2024-06-30 | B59: 51 | C59: 1837460.774 | D59: 19300.4329 | E59: 15312.17312 | F59: 3988.259782 | G59: 1833472.515 | H59: 0.9167362573
A60: 2024-07-31 | B60: 52 | C60: 1833472.515 | D60: 19300.4329 | E60: 15278.93762 | F60: 4021.495281 | G60: 1829451.019 | H60: 0.9147255096
A61: 2024-08-31 | B61: 53 | C61: 1829451.019 | D61: 19300.4329 | E61: 15245.42516 | F61: 4055.007741 | G61: 1825396.011 | H61: 0.9126980057
A62: 2024-09-30 | B62: 54 | C62: 1825396.011 | D62: 19300.4329 | E62: 15211.63343 | F62: 4088.799472 | G62: 1821307.212 | H62: 0.910653606
A63: 2024-10-31 | B63: 55 | C63: 1821307.212 | D63: 19300.4329 | E63: 15177.5601 | F63: 4122.872801 | G63: 1817184.339 | H63: 0.9085921696
A64: 2024-11-30 | B64: 56 | C64: 1817184.339 | D64: 19300.4329 | E64: 15143.20283 | F64: 4157.230075 | G64: 1813027.109 | H64: 0.9065135546
A65: 2024-12-31 | B65: 57 | C65: 1813027.109 | D65: 19300.4329 | E65: 15108.55924 | F65: 4191.873659 | G65: 1808835.235 | H65: 0.9044176177
A66: 2025-01-31 | B66: 58 | C66: 1808835.235 | D66: 19300.4329 | E66: 15073.62696 | F66: 4226.805939 | G66: 1804608.43 | H66: 0.9023042148
A67: 2025-02-28 | B67: 59 | C67: 1804608.43 | D67: 19300.4329 | E67: 15038.40358 | F67: 4262.029322 | G67: 1800346.4 | H67: 0.9001732001
A68: 2025-03-31 | B68: 60 | C68: 1800346.4 | D68: 19300.4329 | E68: 15002.88667 | F68: 4297.546233 | G68: 1796048.854 | H68: 0.898024427
A69: 2025-04-30 | B69: 61 | C69: 1796048.854 | D69: 19300.4329 | E69: 14967.07378 | F69: 4333.359118 | G69: 1791715.495 | H69: 0.8958577474
A70: 2025-05-31 | B70: 62 | C70: 1791715.495 | D70: 19300.4329 | E70: 14930.96246 | F70: 4369.470444 | G70: 1787346.024 | H70: 0.8936730122
A71: 2025-06-30 | B71: 63 | C71: 1787346.024 | D71: 19300.4329 | E71: 14894.5502 | F71: 4405.882698 | G71: 1782940.142 | H71: 0.8914700709
A72: 2025-07-31 | B72: 64 | C72: 1782940.142 | D72: 19300.4329 | E72: 14857.83451 | F72: 4442.598387 | G72: 1778497.543 | H72: 0.8892487717
A73: 2025-08-31 | B73: 65 | C73: 1778497.543 | D73: 19300.4329 | E73: =C73*$C$4/12 -> 14820.81286 | F73: =D73-E73 -> 4479.62004 | G73: =C73-F73 -> 1774017.923 | H73: =G73/$C$3 -> 0.8870089616
A74: =DATE(YEAR(A73),MONTH(A73)+2,1-1) -> 2025-09-30 | B74: 66 | C74: =IF(ROUND(G73,0)>0,G73,0) -> 1774017.923 | D74: =IF($C$5+1-B74=0,0,D73) -> 19300.4329 | E74: 14783.48269 | F74: 4516.950207 | G74: 1769500.973 | H74: 0.8847504865
A75: 2025-10-31 | B75: 67 | C75: 1769500.973 | D75: 19300.4329 | E75: 14745.84144 | F75: 4554.591459 | G75: 1764946.382 | H75: 0.8824731908
A76: 2025-11-30 | B76: 68 | C76: 1764946.382 | D76: 19300.4329 | E76: 14707.88651 | F76: 4592.546388 | G76: 1760353.835 | H76: 0.8801769176
A77: 2025-12-31 | B77: 69 | C77: 1760353.835 | D77: 19300.4329 | E77: 14669.61529 | F77: 4630.817608 | G77: 1755723.018 | H77: 0.8778615088
A78: 2026-01-31 | B78: 70 | C78: 1755723.018 | D78: 19300.4329 | E78: 14631.02515 | F78: 4669.407755 | G78: 1751053.61 | H78: 0.8755268049
A79: 2026-02-28 | B79: 71 | C79: 1751053.61 | D79: 19300.4329 | E79: 14592.11342 | F79: 4708.319486 | G79: 1746345.29 | H79: 0.8731726452
A80: 2026-03-31 | B80: 72 | C80: 1746345.29 | D80: 19300.4329 | E80: 14552.87742 | F80: 4747.555482 | G80: 1741597.735 | H80: 0.8707988675
A81: 2026-04-30 | B81: 73 | C81: 1741597.735 | D81: 19300.4329 | E81: 14513.31446 | F81: 4787.118444 | G81: 1736810.616 | H81: 0.8684053082
A82: 2026-05-31 | B82: 74 | C82: 1736810.616 | D82: 19300.4329 | E82: 14473.4218 | F82: 4827.011098 | G82: 1731983.605 | H82: 0.8659918027
A83: 2026-06-30 | B83: 75 | C83: 1731983.605 | D83: 19300.4329 | E83: 14433.19671 | F83: 4867.23619 | G83: 1727116.369 | H83: 0.8635581846
A84: 2026-07-31 | B84: 76 | C84: 1727116.369 | D84: 19300.4329 | E84: 14392.63641 | F84: 4907.796492 | G84: 1722208.573 | H84: 0.8611042863
A85: 2026-08-31 | B85: 77 | C85: 1722208.573 | D85: 19300.4329 | E85: 14351.73811 | F85: 4948.694796 | G85: 1717259.878 | H85: 0.8586299389
A86: 2026-09-30 | B86: 78 | C86: 1717259.878 | D86: 19300.4329 | E86: 14310.49898 | F86: 4989.933919 | G86: 1712269.944 | H86: 0.856134972
A87: 2026-10-31 | B87: 79 | C87: 1712269.944 | D87: 19300.4329 | E87: 14268.9162 | F87: 5031.516702 | G87: 1707238.427 | H87: 0.8536192136
A88: 2026-11-30 | B88: 80 | C88: 1707238.427 | D88: 19300.4329 | E88: 14226.98689 | F88: 5073.446008 | G88: 1702164.981 | H88: 0.8510824906
A89: 2026-12-31 | B89: 81 | C89: 1702164.981 | D89: 19300.4329 | E89: 14184.70818 | F89: 5115.724724 | G89: 1697049.257 | H89: 0.8485246283
A90: 2027-01-31 | B90: 82 | C90: 1697049.257 | D90: 19300.4329 | E90: 14142.07714 | F90: 5158.355764 | G90: 1691890.901 | H90: 0.8459454504
A91: 2027-02-28 | B91: 83 | C91: 1691890.901 | D91: 19300.4329 | E91: 14099.09084 | F91: 5201.342062 | G91: 1686689.559 | H91: 0.8433447794
A92: 2027-03-31 | B92: 84 | C92: 1686689.559 | D92: 19300.4329 | E92: 14055.74632 | F92: 5244.686579 | G92: 1681444.872 | H92: 0.8407224361
A93: 2027-04-30 | B93: 85 | C93: 1681444.872 | D93: 19300.4329 | E93: 14012.0406 | F93: 5288.3923 | G93: 1676156.48 | H93: 0.8380782399
A94: 2027-05-31 | B94: 86 | C94: 1676156.48 | D94: 19300.4329 | E94: 13967.97067 | F94: 5332.462236 | G94: 1670824.018 | H94: 0.8354120088
A95: 2027-06-30 | B95: 87 | C95: 1670824.018 | D95: 19300.4329 | E95: 13923.53348 | F95: 5376.899421 | G95: 1665447.118 | H95: 0.8327235591
A96: 2027-07-31 | B96: 88 | C96: 1665447.118 | D96: 19300.4329 | E96: 13878.72598 | F96: 5421.706917 | G96: 1660025.411 | H96: 0.8300127056
A97: 2027-08-31 | B97: 89 | C97: 1660025.411 | D97: 19300.4329 | E97: 13833.54509 | F97: 5466.887808 | G97: 1654558.523 | H97: 0.8272792617
A98: 2027-09-30 | B98: 90 | C98: 1654558.523 | D98: 19300.4329 | E98: 13787.9877 | F98: 5512.445206 | G98: 1649046.078 | H98: 0.8245230391
A99: 2027-10-31 | B99: 91 | C99: 1649046.078 | D99: 19300.4329 | E99: 13742.05065 | F99: 5558.382249 | G99: 1643487.696 | H99: 0.821743848
A100: 2027-11-30 | B100: 92 | C100: 1643487.696 | D100: 19300.4329 | E100: 13695.7308 | F100: 5604.702101 | G100: 1637882.994 | H100: 0.818941497
A101: 2027-12-31 | B101: 93 | C101: 1637882.994 | D101: 19300.4329 | E101: 13649.02495 | F101: 5651.407952 | G101: 1632231.586 | H101: 0.816115793
A102: 2028-01-31 | B102: 94 | C102: 1632231.586 | D102: 19300.4329 | E102: 13601.92988 | F102: 5698.503019 | G102: 1626533.083 | H102: 0.8132665415
A103: 2028-02-29 | B103: 95 | C103: 1626533.083 | D103: 19300.4329 | E103: 13554.44236 | F103: 5745.990544 | G103: 1620787.092 | H103: 0.8103935462
A104: 2028-03-31 | B104: 96 | C104: 1620787.092 | D104: 19300.4329 | E104: 13506.5591 | F104: 5793.873798 | G104: 1614993.219 | H104: 0.8074966093
A105: 2028-04-30 | B105: 97 | C105: 1614993.219 | D105: 19300.4329 | E105: 13458.27682 | F105: 5842.15608 | G105: 1609151.063 | H105: 0.8045755313
A106: 2028-05-31 | B106: 98 | C106: 1609151.063 | D106: 19300.4329 | E106: 13409.59219 | F106: 5890.840714 | G106: 1603260.222 | H106: 0.8016301109
A107: 2028-06-30 | B107: 99 | C107: 1603260.222 | D107: 19300.4329 | E107: 13360.50185 | F107: 5939.931053 | G107: 1597320.291 | H107: 0.7986601454
A108: 2028-07-31 | B108: 100 | C108: 1597320.291 | D108: 19300.4329 | E108: 13311.00242 | F108: 5989.430479 | G108: 1591330.86 | H108: 0.7956654301
A109: 2028-08-31 | B109: 101 | C109: 1591330.86 | D109: 19300.4329 | E109: 13261.0905 | F109: 6039.342399 | G109: 1585291.518 | H109: 0.7926457589
A110: 2028-09-30 | B110: 102 | C110: 1585291.518 | D110: 19300.4329 | E110: 13210.76265 | F110: 6089.670253 | G110: 1579201.848 | H110: 0.7896009238
A111: 2028-10-31 | B111: 103 | C111: 1579201.848 | D111: 19300.4329 | E111: 13160.0154 | F111: 6140.417505 | G111: 1573061.43 | H111: 0.7865307151
A112: 2028-11-30 | B112: 104 | C112: 1573061.43 | D112: 19300.4329 | E112: 13108.84525 | F112: 6191.587651 | G112: 1566869.842 | H112: 0.7834349212
A113: 2028-12-31 | B113: 105 | C113: 1566869.842 | D113: 19300.4329 | E113: 13057.24869 | F113: 6243.184214 | G113: 1560626.658 | H113: 0.7803133291
A114: 2029-01-31 | B114: 106 | C114: 1560626.658 | D114: 19300.4329 | E114: 13005.22215 | F114: 6295.210749 | G114: 1554331.447 | H114: 0.7771657237
A115: 2029-02-28 | B115: 107 | C115: 1554331.447 | D115: 19300.4329 | E115: 12952.76206 | F115: 6347.670839 | G115: 1547983.777 | H115: 0.7739918883
A116: 2029-03-31 | B116: 108 | C116: 1547983.777 | D116: 19300.4329 | E116: 12899.86481 | F116: 6400.568096 | G116: 1541583.209 | H116: 0.7707916043
A117: 2029-04-30 | B117: 109 | C117: 1541583.209 | D117: 19300.4329 | E117: 12846.52674 | F117: 6453.906164 | G117: 1535129.302 | H117: 0.7675646512
A118: 2029-05-31 | B118: 110 | C118: 1535129.302 | D118: 19300.4329 | E118: 12792.74419 | F118: 6507.688715 | G118: 1528621.614 | H118: 0.7643108068
A119: 2029-06-30 | B119: 111 | C119: 1528621.614 | D119: 19300.4329 | E119: 12738.51345 | F119: 6561.919454 | G119: 1522059.694 | H119: 0.7610298471
A120: 2029-07-31 | B120: 112 | C120: 1522059.694 | D120: 19300.4329 | E120: 12683.83079 | F120: 6616.602116 | G120: 1515443.092 | H120: 0.7577215461
A121: 2029-08-31 | B121: 113 | C121: 1515443.092 | D121: 19300.4329 | E121: 12628.69243 | F121: 6671.740467 | G121: 1508771.352 | H121: 0.7543856758
A122: 2029-09-30 | B122: 114 | C122: 1508771.352 | D122: 19300.4329 | E122: 12573.0946 | F122: 6727.338304 | G122: 1502044.013 | H122: 0.7510220067
A123: 2029-10-31 | B123: 115 | C123: 1502044.013 | D123: 19300.4329 | E123: 12517.03344 | F123: 6783.399457 | G123: 1495260.614 | H123: 0.7476303069
A124: 2029-11-30 | B124: 116 | C124: 1495260.614 | D124: 19300.4329 | E124: 12460.50512 | F124: 6839.927786 | G124: 1488420.686 | H124: 0.744210343
A125: 2029-12-31 | B125: 117 | C125: 1488420.686 | D125: 19300.4329 | E125: 12403.50572 | F125: 6896.927184 | G125: 1481523.759 | H125: 0.7407618795
A126: 2030-01-31 | B126: 118 | C126: 1481523.759 | D126: 19300.4329 | E126: 12346.03132 | F126: 6954.401577 | G126: 1474569.357 | H126: 0.7372846787
A127: 2030-02-28 | B127: 119 | C127: 1474569.357 | D127: 19300.4329 | E127: 12288.07798 | F127: 7012.354924 | G127: 1467557.002 | H127: 0.7337785012
A128: 2030-03-31 | B128: 120 | C128: 1467557.002 | D128: 19300.4329 | E128: 12229.64169 | F128: 7070.791215 | G128: 1460486.211 | H128: 0.7302431056
A129: 2030-04-30 | B129: 121 | C129: 1460486.211 | D129: 19300.4329 | E129: 12170.71843 | F129: 7129.714475 | G129: 1453356.497 | H129: 0.7266782484
A130: 2030-05-31 | B130: 122 | C130: 1453356.497 | D130: 19300.4329 | E130: 12111.30414 | F130: 7189.128762 | G130: 1446167.368 | H130: 0.723083684
A131: 2030-06-30 | B131: 123 | C131: 1446167.368 | D131: 19300.4329 | E131: 12051.39473 | F131: 7249.038169 | G131: 1438918.33 | H131: 0.7194591649
A132: 2030-07-31 | B132: 124 | C132: 1438918.33 | D132: 19300.4329 | E132: 11990.98608 | F132: 7309.44682 | G132: 1431608.883 | H132: 0.7158044415
A133: 2030-08-31 | B133: 125 | C133: 1431608.883 | D133: 19300.4329 | E133: 11930.07402 | F133: 7370.358877 | G133: 1424238.524 | H133: 0.712119262
A134: 2030-09-30 | B134: 126 | C134: 1424238.524 | D134: 19300.4329 | E134: 11868.65437 | F134: 7431.778534 | G134: 1416806.746 | H134: 0.7084033728
A135: 2030-10-31 | B135: 127 | C135: 1416806.746 | D135: 19300.4329 | E135: 11806.72288 | F135: 7493.710022 | G135: 1409313.036 | H135: 0.7046565178
A136: 2030-11-30 | B136: 128 | C136: 1409313.036 | D136: 19300.4329 | E136: 11744.2753 | F136: 7556.157605 | G136: 1401756.878 | H136: 0.700878439
A137: 2030-12-31 | B137: 129 | C137: 1401756.878 | D137: 19300.4329 | E137: =C137*$C$4/12 -> 11681.30732 | F137: =D137-E137 -> 7619.125585 | G137: =C137-F137 -> 1394137.752 | H137: =G137/$C$3 -> 0.6970688762
A138: =DATE(YEAR(A137),MONTH(A137)+2,1-1) -> 2031-01-31 | B138: 130 | C138: =IF(ROUND(G137,0)>0,G137,0) -> 1394137.752 | D138: =IF($C$5+1-B138=0,0,D137) -> 19300.4329 | E138: 11617.8146 | F138: 7682.618299 | G138: 1386455.134 | H138: 0.693227567
A139: 2031-02-28 | B139: 131 | C139: 1386455.134 | D139: 19300.4329 | E139: 11553.79278 | F139: 7746.640118 | G139: 1378708.494 | H139: 0.689354247
A140: 2031-03-31 | B140: 132 | C140: 1378708.494 | D140: 19300.4329 | E140: 11489.23745 | F140: 7811.195452 | G140: 1370897.298 | H140: 0.6854486492
A141: 2031-04-30 | B141: 133 | C141: 1370897.298 | D141: 19300.4329 | E141: 11424.14415 | F141: 7876.288748 | G141: 1363021.01 | H141: 0.6815105049
A142: 2031-05-31 | B142: 134 | C142: 1363021.01 | D142: 19300.4329 | E142: 11358.50841 | F142: 7941.924487 | G142: 1355079.085 | H142: 0.6775395426
A143: 2031-06-30 | B143: 135 | C143: 1355079.085 | D143: 19300.4329 | E143: 11292.32571 | F143: 8008.107191 | G143: 1347070.978 | H143: 0.673535489
A144: 2031-07-31 | B144: 136 | C144: 1347070.978 | D144: 19300.4329 | E144: 11225.59148 | F144: 8074.841418 | G144: 1338996.137 | H144: 0.6694980683
A145: 2031-08-31 | B145: 137 | C145: 1338996.137 | D145: 19300.4329 | E145: 11158.30114 | F145: 8142.131763 | G145: 1330854.005 | H145: 0.6654270024
A146: 2031-09-30 | B146: 138 | C146: 1330854.005 | D146: 19300.4329 | E146: 11090.45004 | F146: 8209.982861 | G146: 1322644.022 | H146: 0.661322011
A147: 2031-10-31 | B147: 139 | C147: 1322644.022 | D147: 19300.4329 | E147: 11022.03352 | F147: 8278.399385 | G147: 1314365.623 | H147: 0.6571828113
A148: 2031-11-30 | B148: 140 | C148: 1314365.623 | D148: 19300.4329 | E148: 10953.04686 | F148: 8347.386046 | G148: 1306018.237 | H148: 0.6530091183
A149: 2031-12-31 | B149: 141 | C149: 1306018.237 | D149: 19300.4329 | E149: 10883.4853 | F149: 8416.947597 | G149: 1297601.289 | H149: 0.6488006445
A150: 2032-01-31 | B150: 142 | C150: 1297601.289 | D150: 19300.4329 | E150: 10813.34407 | F150: 8487.088827 | G150: 1289114.2 | H150: 0.6445571001
A151: 2032-02-29 | B151: 143 | C151: 1289114.2 | D151: 19300.4329 | E151: 10742.61833 | F151: 8557.814567 | G151: 1280556.386 | H151: 0.6402781928
A152: 2032-03-31 | B152: 144 | C152: 1280556.386 | D152: 19300.4329 | E152: 10671.30321 | F152: 8629.129688 | G152: 1271927.256 | H152: 0.6359636279
A153: 2032-04-30 | B153: 145 | C153: 1271927.256 | D153: 19300.4329 | E153: 10599.3938 | F153: 8701.039102 | G153: 1263226.217 | H153: 0.6316131084
A154: 2032-05-31 | B154: 146 | C154: 1263226.217 | D154: 19300.4329 | E154: 10526.88514 | F154: 8773.547762 | G154: 1254452.669 | H154: 0.6272263345
A155: 2032-06-30 | B155: 147 | C155: 1254452.669 | D155: 19300.4329 | E155: 10453.77224 | F155: 8846.66066 | G155: 1245606.008 | H155: 0.6228030042
A156: 2032-07-31 | B156: 148 | C156: 1245606.008 | D156: 19300.4329 | E156: 10380.05007 | F156: 8920.382832 | G156: 1236685.626 | H156: 0.6183428128
A157: 2032-08-31 | B157: 149 | C157: 1236685.626 | D157: 19300.4329 | E157: 10305.71355 | F157: 8994.719355 | G157: 1227690.906 | H157: 0.6138454531
A158: 2032-09-30 | B158: 150 | C158: 1227690.906 | D158: 19300.4329 | E158: 10230.75755 | F158: 9069.67535 | G158: 1218621.231 | H158: 0.6093106154
A159: 2032-10-31 | B159: 151 | C159: 1218621.231 | D159: 19300.4329 | E159: 10155.17692 | F159: 9145.255978 | G159: 1209475.975 | H159: 0.6047379874
A160: 2032-11-30 | B160: 152 | C160: 1209475.975 | D160: 19300.4329 | E160: 10078.96646 | F160: 9221.466444 | G160: 1200254.508 | H160: 0.6001272542
A161: 2032-12-31 | B161: 153 | C161: 1200254.508 | D161: 19300.4329 | E161: 10002.1209 | F161: 9298.311998 | G161: 1190956.196 | H161: 0.5954780982
A162: 2033-01-31 | B162: 154 | C162: 1190956.196 | D162: 19300.4329 | E162: 9924.63497 | F162: 9375.797931 | G162: 1181580.398 | H162: 0.5907901992
A163: 2033-02-28 | B163: 155 | C163: 1181580.398 | D163: 19300.4329 | E163: 9846.503321 | F163: 9453.929581 | G163: 1172126.469 | H163: 0.5860632345
A164: 2033-03-31 | B164: 156 | C164: 1172126.469 | D164: 19300.4329 | E164: 9767.720574 | F164: 9532.712327 | G164: 1162593.757 | H164: 0.5812968783
A165: 2033-04-30 | B165: 157 | C165: 1162593.757 | D165: 19300.4329 | E165: 9688.281305 | F165: 9612.151597 | G165: 1152981.605 | H165: 0.5764908025
A166: 2033-05-31 | B166: 158 | C166: 1152981.605 | D166: 19300.4329 | E166: 9608.180042 | F166: 9692.25286 | G166: 1143289.352 | H166: 0.5716446761
A167: 2033-06-30 | B167: 159 | C167: 1143289.352 | D167: 19300.4329 | E167: 9527.411268 | F167: 9773.021634 | G167: 1133516.33 | H167: 0.5667581652
A168: 2033-07-31 | B168: 160 | C168: 1133516.33 | D168: 19300.4329 | E168: 9445.969421 | F168: 9854.463481 | G168: 1123661.867 | H168: 0.5618309335
A169: 2033-08-31 | B169: 161 | C169: 1123661.867 | D169: 19300.4329 | E169: 9363.848892 | F169: 9936.58401 | G169: 1113725.283 | H169: 0.5568626415
A170: 2033-09-30 | B170: 162 | C170: 1113725.283 | D170: 19300.4329 | E170: 9281.044025 | F170: 10019.38888 | G170: 1103705.894 | H170: 0.5518529471
A171: 2033-10-31 | B171: 163 | C171: 1103705.894 | D171: 19300.4329 | E171: 9197.549118 | F171: 10102.88378 | G171: 1093603.01 | H171: 0.5468015052
A172: 2033-11-30 | B172: 164 | C172: 1093603.01 | D172: 19300.4329 | E172: 9113.358419 | F172: 10187.07448 | G172: 1083415.936 | H172: 0.5417079679
A173: 2033-12-31 | B173: 165 | C173: 1083415.936 | D173: 19300.4329 | E173: 9028.466132 | F173: 10271.96677 | G173: 1073143.969 | H173: 0.5365719845
A174: 2034-01-31 | B174: 166 | C174: 1073143.969 | D174: 19300.4329 | E174: 8942.866409 | F174: 10357.56649 | G174: 1062786.403 | H174: 0.5313932013
A175: 2034-02-28 | B175: 167 | C175: 1062786.403 | D175: 19300.4329 | E175: 8856.553355 | F175: 10443.87955 | G175: 1052342.523 | H175: 0.5261712615
A176: 2034-03-31 | B176: 168 | C176: 1052342.523 | D176: 19300.4329 | E176: 8769.521025 | F176: 10530.91188 | G176: 1041811.611 | H176: 0.5209058056
A177: 2034-04-30 | B177: 169 | C177: 1041811.611 | D177: 19300.4329 | E177: 8681.763426 | F177: 10618.66948 | G177: 1031192.942 | H177: 0.5155964708
A178: 2034-05-31 | B178: 170 | C178: 1031192.942 | D178: 19300.4329 | E178: 8593.274514 | F178: 10707.15839 | G178: 1020485.783 | H178: 0.5102428917
A179: 2034-06-30 | B179: 171 | C179: 1020485.783 | D179: 19300.4329 | E179: 8504.048194 | F179: 10796.38471 | G179: 1009689.399 | H179: 0.5048446993
A180: 2034-07-31 | B180: 172 | C180: 1009689.399 | D180: 19300.4329 | E180: 8414.078322 | F180: 10886.35458 | G180: 998803.044 | H180: 0.499401522
A181: 2034-08-31 | B181: 173 | C181: 998803.044 | D181: 19300.4329 | E181: 8323.3587 | F181: 10977.0742 | G181: 987825.9698 | H181: 0.4939129849
A182: 2034-09-30 | B182: 174 | C182: 987825.9698 | D182: 19300.4329 | E182: 8231.883082 | F182: 11068.54982 | G182: 976757.42 | H182: 0.48837871
A183: 2034-10-31 | B183: 175 | C183: 976757.42 | D183: 19300.4329 | E183: 8139.645167 | F183: 11160.78773 | G183: 965596.6323 | H183: 0.4827983161
A184: 2034-11-30 | B184: 176 | C184: 965596.6323 | D184: 19300.4329 | E184: 8046.638602 | F184: 11253.7943 | G184: 954342.838 | H184: 0.477171419
A185: 2034-12-31 | B185: 177 | C185: 954342.838 | D185: 19300.4329 | E185: 7952.856983 | F185: 11347.57592 | G185: 942995.262 | H185: 0.471497631
A186: 2035-01-31 | B186: 178 | C186: 942995.262 | D186: 19300.4329 | E186: 7858.29385 | F186: 11442.13905 | G186: 931553.123 | H186: 0.4657765615
A187: 2035-02-28 | B187: 179 | C187: 931553.123 | D187: 19300.4329 | E187: 7762.942692 | F187: 11537.49021 | G187: 920015.6328 | H187: 0.4600078164
A188: 2035-03-31 | B188: 180 | C188: 920015.6328 | D188: 19300.4329 | E188: 7666.79694 | F188: 11633.63596 | G188: 908381.9968 | H188: 0.4541909984
A189: 2035-04-30 | B189: 181 | C189: 908381.9968 | D189: 19300.4329 | E189: 7569.849974 | F189: 11730.58293 | G189: 896651.4139 | H189: 0.4483257069
A190: 2035-05-31 | B190: 182 | C190: 896651.4139 | D190: 19300.4329 | E190: 7472.095116 | F190: 11828.33779 | G190: 884823.0761 | H190: 0.4424115381
A191: 2035-06-30 | B191: 183 | C191: 884823.0761 | D191: 19300.4329 | E191: 7373.525634 | F191: 11926.90727 | G191: 872896.1688 | H191: 0.4364480844
A192: 2035-07-31 | B192: 184 | C192: 872896.1688 | D192: 19300.4329 | E192: 7274.13474 | F192: 12026.29816 | G192: 860869.8707 | H192: 0.4304349353
A193: 2035-08-31 | B193: 185 | C193: 860869.8707 | D193: 19300.4329 | E193: 7173.915589 | F193: 12126.51731 | G193: 848743.3534 | H193: 0.4243716767
A194: 2035-09-30 | B194: 186 | C194: 848743.3534 | D194: 19300.4329 | E194: 7072.861278 | F194: 12227.57162 | G194: 836515.7817 | H194: 0.4182578909
A195: 2035-10-31 | B195: 187 | C195: 836515.7817 | D195: 19300.4329 | E195: 6970.964848 | F195: 12329.46805 | G195: 824186.3137 | H195: 0.4120931568
A196: 2035-11-30 | B196: 188 | C196: 824186.3137 | D196: 19300.4329 | E196: 6868.219281 | F196: 12432.21362 | G196: 811754.1001 | H196: 0.40587705
A197: 2035-12-31 | B197: 189 | C197: 811754.1001 | D197: 19300.4329 | E197: 6764.617501 | F197: 12535.8154 | G197: 799218.2847 | H197: 0.3996091423
A198: 2036-01-31 | B198: 190 | C198: 799218.2847 | D198: 19300.4329 | E198: 6660.152372 | F198: 12640.28053 | G198: 786578.0041 | H198: 0.3932890021
A199: 2036-02-29 | B199: 191 | C199: 786578.0041 | D199: 19300.4329 | E199: 6554.816701 | F199: 12745.6162 | G199: 773832.3879 | H199: 0.386916194
A200: 2036-03-31 | B200: 192 | C200: 773832.3879 | D200: 19300.4329 | E200: 6448.603233 | F200: 12851.82967 | G200: 760980.5583 | H200: 0.3804902791
A201: 2036-04-30 | B201: 193 | C201: 760980.5583 | D201: 19300.4329 | E201: =C201*$C$4/12 -> 6341.504652 | F201: =D201-E201 -> 12958.92825 | G201: =C201-F201 -> 748021.63 | H201: =G201/$C$3 -> 0.374010815
... 168 more rows
